{"text_format":"3","workbook":"xlsx","n_sheets":5,"sheets":["ÎNCEPUT","CHELTUIELI PLANIFICATE","CHELTUIELI REALE","DIFERENȚA CHELTUIELILOR","ANALIZA CHELTUIELILOR"],"not_rendered":{"charts":2,"images":3,"defined_names":1},"read":"whole","date_system":"1900"}

{"sheet":"ÎNCEPUT","index":0,"n_rows":8,"n_cols":2,"rows_kept":8}
[null,"DESPRE ACEST ȘABLON"]
[null,"Utilizați registrul de lucru Bugetul de cheltuieli al firmei pentru a urmări cheltuielile planificate, cheltuielile reale și diferențele."]
[null,"Completați numele firmei și adăugați sigla."]
[null,"Introduceți detaliile în tabelele din foaia de lucru Cheltuieli planificate și Cheltuieli reale."]
[null,"Tabelele sunt actualizate automat în foaia de lucru Diferența cheltuielilor și în diagramele din foaia de lucru Analiza cheltuielilor."]
[null,"Notă: "]
[null,"Găsiți instrucțiuni suplimentare în coloana A din fiecare foaie de lucru. Acest text a fost ascuns intenționat. Pentru a elimina textul, selectați coloana A, apoi DELETE. Pentru a reafișa textul, selectați coloana A, apoi schimbați culoarea de font."]
[null,"Pentru a afla mai multe despre tabele, apăsați SHIFT, apoi F10 într-un tabel, selectați opțiunea TABEL, apoi selectați TEXT ALTERNATIV."]

{"sheet":"CHELTUIELI PLANIFICATE","index":1,"n_rows":37,"n_cols":16,"rows_kept":37,"merged":[[1,10,1,12],[2,10,2,12],[3,17,12,19]]}
[{"$nulls":15}," "]
[null,"Numele firmei",{"$nulls":8},"Estimări detaliate cheltuieli"]
[{"$nulls":10},"Celule umbrite reprezintă calcule."]
[null,"CHELTUIELI PLANIFICATE","IAN","FEB","MAR","APR","MAI","IUN","IUL","AUG","SEP","OCT","NOV","DEC","AN"]
[null,"Costuri cu angajații","Ian","Feb","Mar","Apr","Mai","Iun","Iul","Aug","Sep","Oct","Nov","Dec","AN"]
[null,"Salarii",{"v":85000,"d":"85,000.00 lei"},{"v":85000,"d":"85,000.00 lei"},{"v":85000,"d":"85,000.00 lei"},{"v":87500,"d":"87,500.00 lei"},{"v":87500,"d":"87,500.00 lei"},{"v":87500,"d":"87,500.00 lei"},{"v":87500,"d":"87,500.00 lei"},{"v":92400,"d":"92,400.00 lei"},{"v":92400,"d":"92,400.00 lei"},{"v":92400,"d":"92,400.00 lei"},{"v":92400,"d":"92,400.00 lei"},{"v":92400,"d":"92,400.00 lei"},{"$f":"SUM(C6:N6)","v":{"v":1067000,"d":"1,067,000.00 lei"}}]
[null,"Avantaje",{"$f":"C6*0.27","v":{"v":22950,"d":"22,950.00 lei"}},{"v":22950,"d":"22,950.00 lei"},{"v":22950,"d":"22,950.00 lei"},{"v":23625,"d":"23,625.00 lei"},{"v":23625,"d":"23,625.00 lei"},{"v":23625,"d":"23,625.00 lei"},{"v":23625,"d":"23,625.00 lei"},{"v":24948,"d":"24,948.00 lei"},{"v":24948,"d":"24,948.00 lei"},{"v":24948,"d":"24,948.00 lei"},{"v":24948,"d":"24,948.00 lei"},{"v":24948,"d":"24,948.00 lei"},{"$f":"SUM(C7:N7)","v":{"v":288090,"d":"288,090.00 lei"}}]
[null,"Subtotal",{"$f":"SUBTOTAL(109,Planif.Angajați[Ian])","v":{"v":107950,"d":"107,950.00 lei"}},{"$f":"SUBTOTAL(109,Planif.Angajați[Feb])","v":{"v":107950,"d":"107,950.00 lei"}},{"$f":"SUBTOTAL(109,Planif.Angajați[Mar])","v":{"v":107950,"d":"107,950.00 lei"}},{"$f":"SUBTOTAL(109,Planif.Angajați[Apr])","v":{"v":111125,"d":"111,125.00 lei"}},{"$f":"SUBTOTAL(109,Planif.Angajați[Mai])","v":{"v":111125,"d":"111,125.00 lei"}},{"$f":"SUBTOTAL(109,Planif.Angajați[Iun])","v":{"v":111125,"d":"111,125.00 lei"}},{"$f":"SUBTOTAL(109,Planif.Angajați[Iul])","v":{"v":111125,"d":"111,125.00 lei"}},{"$f":"SUBTOTAL(109,Planif.Angajați[Aug])","v":{"v":117348,"d":"117,348.00 lei"}},{"$f":"SUBTOTAL(109,Planif.Angajați[Sep])","v":{"v":117348,"d":"117,348.00 lei"}},{"$f":"SUBTOTAL(109,Planif.Angajați[Oct])","v":{"v":117348,"d":"117,348.00 lei"}},{"$f":"SUBTOTAL(109,Planif.Angajați[Nov])","v":{"v":117348,"d":"117,348.00 lei"}},{"$f":"SUBTOTAL(109,Planif.Angajați[Dec])","v":{"v":117348,"d":"117,348.00 lei"}},{"$f":"SUBTOTAL(109,Planif.Angajați[AN])","v":{"v":1355090,"d":"1,355,090.00 lei"}}]
[]
[null,"Costuri cu biroul","Ian","Feb","Mar","Apr","Mai","Iun","Iul","Aug","Sep","Oct","Nov","Dec","AN"]
[null,"Închiriere birou",{"v":9800,"d":"9,800.00 lei"},{"v":9800,"d":"9,800.00 lei"},{"v":9800,"d":"9,800.00 lei"},{"v":9800,"d":"9,800.00 lei"},{"v":9800,"d":"9,800.00 lei"},{"v":9800,"d":"9,800.00 lei"},{"v":9800,"d":"9,800.00 lei"},{"v":9800,"d":"9,800.00 lei"},{"v":9800,"d":"9,800.00 lei"},{"v":9800,"d":"9,800.00 lei"},{"v":9800,"d":"9,800.00 lei"},{"v":9800,"d":"9,800.00 lei"},{"$f":"SUM(C11:N11)","v":{"v":117600,"d":"117,600.00 lei"}}]
[null,"Gaze",null,{"v":400,"d":"400.00 lei"},{"v":400,"d":"400.00 lei"},{"v":100,"d":"100.00 lei"},{"v":100,"d":"100.00 lei"},{"v":100,"d":"100.00 lei"},{"v":100,"d":"100.00 lei"},{"v":100,"d":"100.00 lei"},{"v":100,"d":"100.00 lei"},{"v":100,"d":"100.00 lei"},{"v":400,"d":"400.00 lei"},{"v":400,"d":"400.00 lei"},{"v":2300,"d":"2,300.00 lei"}]
[null,"Curent electric",{"v":300,"d":"300.00 lei"},{"v":300,"d":"300.00 lei"},{"v":300,"d":"300.00 lei"},{"v":300,"d":"300.00 lei"},{"v":300,"d":"300.00 lei"},{"v":300,"d":"300.00 lei"},{"v":300,"d":"300.00 lei"},{"v":300,"d":"300.00 lei"},{"v":300,"d":"300.00 lei"},{"v":300,"d":"300.00 lei"},{"v":300,"d":"300.00 lei"},{"v":300,"d":"300.00 lei"},{"v":3600,"d":"3,600.00 lei"}]
[null,"Apă",{"v":40,"d":"40.00 lei"},{"v":40,"d":"40.00 lei"},{"v":40,"d":"40.00 lei"},{"v":40,"d":"40.00 lei"},{"v":40,"d":"40.00 lei"},{"v":40,"d":"40.00 lei"},{"v":40,"d":"40.00 lei"},{"v":40,"d":"40.00 lei"},{"v":40,"d":"40.00 lei"},{"v":40,"d":"40.00 lei"},{"v":40,"d":"40.00 lei"},{"v":40,"d":"40.00 lei"},{"v":480,"d":"480.00 lei"}]
[null,"Telefon",{"v":250,"d":"250.00 lei"},{"v":250,"d":"250.00 lei"},{"v":250,"d":"250.00 lei"},{"v":250,"d":"250.00 lei"},{"v":250,"d":"250.00 lei"},{"v":250,"d":"250.00 lei"},{"v":250,"d":"250.00 lei"},{"v":250,"d":"250.00 lei"},{"v":250,"d":"250.00 lei"},{"v":250,"d":"250.00 lei"},{"v":250,"d":"250.00 lei"},{"v":250,"d":"250.00 lei"},{"v":3000,"d":"3,000.00 lei"}]
[null,"Acces la internet",{"v":180,"d":"180.00 lei"},{"v":180,"d":"180.00 lei"},{"v":180,"d":"180.00 lei"},{"v":180,"d":"180.00 lei"},{"v":180,"d":"180.00 lei"},{"v":180,"d":"180.00 lei"},{"v":180,"d":"180.00 lei"},{"v":180,"d":"180.00 lei"},{"v":180,"d":"180.00 lei"},{"v":180,"d":"180.00 lei"},{"v":180,"d":"180.00 lei"},{"v":180,"d":"180.00 lei"},{"v":2160,"d":"2,160.00 lei"}]
[null,"Consumabile de birou",{"v":200,"d":"200.00 lei"},{"v":200,"d":"200.00 lei"},{"v":200,"d":"200.00 lei"},{"v":200,"d":"200.00 lei"},{"v":200,"d":"200.00 lei"},{"v":200,"d":"200.00 lei"},{"v":200,"d":"200.00 lei"},{"v":200,"d":"200.00 lei"},{"v":200,"d":"200.00 lei"},{"v":200,"d":"200.00 lei"},{"v":200,"d":"200.00 lei"},{"v":200,"d":"200.00 lei"},{"v":2400,"d":"2,400.00 lei"}]
[null,"Securitate",{"v":600,"d":"600.00 lei"},{"v":600,"d":"600.00 lei"},{"v":600,"d":"600.00 lei"},{"v":600,"d":"600.00 lei"},{"v":600,"d":"600.00 lei"},{"v":600,"d":"600.00 lei"},{"v":600,"d":"600.00 lei"},{"v":600,"d":"600.00 lei"},{"v":600,"d":"600.00 lei"},{"v":600,"d":"600.00 lei"},{"v":600,"d":"600.00 lei"},{"v":600,"d":"600.00 lei"},{"v":7200,"d":"7,200.00 lei"}]
[null,"Subtotal",{"$f":"SUBTOTAL(109,Planif.Birou[Ian])","v":{"v":11370,"d":"11,370.00 lei"}},{"$f":"SUBTOTAL(109,Planif.Birou[Feb])","v":{"v":11770,"d":"11,770.00 lei"}},{"$f":"SUBTOTAL(109,Planif.Birou[Mar])","v":{"v":11770,"d":"11,770.00 lei"}},{"$f":"SUBTOTAL(109,Planif.Birou[Apr])","v":{"v":11470,"d":"11,470.00 lei"}},{"$f":"SUBTOTAL(109,Planif.Birou[Mai])","v":{"v":11470,"d":"11,470.00 lei"}},{"$f":"SUBTOTAL(109,Planif.Birou[Iun])","v":{"v":11470,"d":"11,470.00 lei"}},{"$f":"SUBTOTAL(109,Planif.Birou[Iul])","v":{"v":11470,"d":"11,470.00 lei"}},{"$f":"SUBTOTAL(109,Planif.Birou[Aug])","v":{"v":11470,"d":"11,470.00 lei"}},{"$f":"SUBTOTAL(109,Planif.Birou[Sep])","v":{"v":11470,"d":"11,470.00 lei"}},{"$f":"SUBTOTAL(109,Planif.Birou[Oct])","v":{"v":11470,"d":"11,470.00 lei"}},{"$f":"SUBTOTAL(109,Planif.Birou[Nov])","v":{"v":11770,"d":"11,770.00 lei"}},{"$f":"SUBTOTAL(109,Planif.Birou[Dec])","v":{"v":11770,"d":"11,770.00 lei"}},{"$f":"SUBTOTAL(109,Planif.Birou[AN])","v":{"v":138740,"d":"138,740.00 lei"}}]
[]
[null,"Costuri de marketing","Ian","Feb","Mar","Apr","Mai","Iun","Iul","Aug","Sep","Oct","Nov","Dec","AN"]
[null,"Găzduire site web",{"v":500,"d":"500.00 lei"},{"v":500,"d":"500.00 lei"},{"v":500,"d":"500.00 lei"},{"v":500,"d":"500.00 lei"},{"v":500,"d":"500.00 lei"},{"v":500,"d":"500.00 lei"},{"v":500,"d":"500.00 lei"},{"v":500,"d":"500.00 lei"},{"v":500,"d":"500.00 lei"},{"v":500,"d":"500.00 lei"},{"v":500,"d":"500.00 lei"},{"v":500,"d":"500.00 lei"},{"$f":"SUM(C22:N22)","v":{"v":6000,"d":"6,000.00 lei"}}]
[null,"Actualizări site web",{"v":200,"d":"200.00 lei"},{"v":200,"d":"200.00 lei"},{"v":200,"d":"200.00 lei"},{"v":200,"d":"200.00 lei"},{"v":200,"d":"200.00 lei"},{"v":1000,"d":"1,000.00 lei"},{"v":200,"d":"200.00 lei"},{"v":200,"d":"200.00 lei"},{"v":200,"d":"200.00 lei"},{"v":200,"d":"200.00 lei"},{"v":200,"d":"200.00 lei"},{"v":1000,"d":"1,000.00 lei"},{"v":4000,"d":"4,000.00 lei"}]
[null,"Creare materiale publicitare",{"v":5000,"d":"5,000.00 lei"},{"v":0,"d":"0.00 lei"},{"v":0,"d":"0.00 lei"},{"v":5000,"d":"5,000.00 lei"},{"v":0,"d":"0.00 lei"},{"v":0,"d":"0.00 lei"},{"v":5000,"d":"5,000.00 lei"},{"v":0,"d":"0.00 lei"},{"v":0,"d":"0.00 lei"},{"v":5000,"d":"5,000.00 lei"},{"v":0,"d":"0.00 lei"},{"v":0,"d":"0.00 lei"},{"v":20000,"d":"20,000.00 lei"}]
[null,"Imprimare materiale publicitare",{"v":200,"d":"200.00 lei"},{"v":200,"d":"200.00 lei"},{"v":200,"d":"200.00 lei"},{"v":200,"d":"200.00 lei"},{"v":200,"d":"200.00 lei"},{"v":200,"d":"200.00 lei"},{"v":200,"d":"200.00 lei"},{"v":200,"d":"200.00 lei"},{"v":200,"d":"200.00 lei"},{"v":200,"d":"200.00 lei"},{"v":200,"d":"200.00 lei"},{"v":200,"d":"200.00 lei"},{"v":2400,"d":"2,400.00 lei"}]
[null,"Evenimente de marketing",{"v":2000,"d":"2,000.00 lei"},{"v":2000,"d":"2,000.00 lei"},{"v":2000,"d":"2,000.00 lei"},{"v":5000,"d":"5,000.00 lei"},{"v":2000,"d":"2,000.00 lei"},{"v":2000,"d":"2,000.00 lei"},{"v":2000,"d":"2,000.00 lei"},{"v":5000,"d":"5,000.00 lei"},{"v":2000,"d":"2,000.00 lei"},{"v":2000,"d":"2,000.00 lei"},{"v":2000,"d":"2,000.00 lei"},{"v":5000,"d":"5,000.00 lei"},{"v":33000,"d":"33,000.00 lei"}]
[null,"Cheltuieli diverse",{"v":200,"d":"200.00 lei"},{"v":200,"d":"200.00 lei"},{"v":200,"d":"200.00 lei"},{"v":200,"d":"200.00 lei"},{"v":200,"d":"200.00 lei"},{"v":200,"d":"200.00 lei"},{"v":200,"d":"200.00 lei"},{"v":200,"d":"200.00 lei"},{"v":200,"d":"200.00 lei"},{"v":200,"d":"200.00 lei"},{"v":200,"d":"200.00 lei"},{"v":200,"d":"200.00 lei"},{"v":2400,"d":"2,400.00 lei"}]
[null,"Subtotal",{"$f":"SUBTOTAL(109,Planif.Marketing[Ian])","v":{"v":8100,"d":"8,100.00 lei"}},{"$f":"SUBTOTAL(109,Planif.Marketing[Feb])","v":{"v":3100,"d":"3,100.00 lei"}},{"$f":"SUBTOTAL(109,Planif.Marketing[Mar])","v":{"v":3100,"d":"3,100.00 lei"}},{"$f":"SUBTOTAL(109,Planif.Marketing[Apr])","v":{"v":11100,"d":"11,100.00 lei"}},{"$f":"SUBTOTAL(109,Planif.Marketing[Mai])","v":{"v":3100,"d":"3,100.00 lei"}},{"$f":"SUBTOTAL(109,Planif.Marketing[Iun])","v":{"v":3900,"d":"3,900.00 lei"}},{"$f":"SUBTOTAL(109,Planif.Marketing[Iul])","v":{"v":8100,"d":"8,100.00 lei"}},{"$f":"SUBTOTAL(109,Planif.Marketing[Aug])","v":{"v":6100,"d":"6,100.00 lei"}},{"$f":"SUBTOTAL(109,Planif.Marketing[Sep])","v":{"v":3100,"d":"3,100.00 lei"}},{"$f":"SUBTOTAL(109,Planif.Marketing[Oct])","v":{"v":8100,"d":"8,100.00 lei"}},{"$f":"SUBTOTAL(109,Planif.Marketing[Nov])","v":{"v":3100,"d":"3,100.00 lei"}},{"$f":"SUBTOTAL(109,Planif.Marketing[Dec])","v":{"v":6900,"d":"6,900.00 lei"}},{"$f":"SUBTOTAL(109,Planif.Marketing[AN])","v":{"v":67800,"d":"67,800.00 lei"}}]
[]
[null,"Instruire/deplasare","Ian","Feb","Mar","Apr","Mai","Iun","Iul","Aug","Sep","Oct","Nov","Dec","AN"]
[null,"Cursuri de instruire",{"v":2000,"d":"2,000.00 lei"},{"v":2000,"d":"2,000.00 lei"},{"v":2000,"d":"2,000.00 lei"},{"v":2000,"d":"2,000.00 lei"},{"v":2000,"d":"2,000.00 lei"},{"v":2000,"d":"2,000.00 lei"},{"v":2000,"d":"2,000.00 lei"},{"v":2000,"d":"2,000.00 lei"},{"v":2000,"d":"2,000.00 lei"},{"v":2000,"d":"2,000.00 lei"},{"v":2000,"d":"2,000.00 lei"},{"v":2000,"d":"2,000.00 lei"},{"$f":"SUM(C31:N31)","v":{"v":24000,"d":"24,000.00 lei"}}]
[null,"Costuri de deplasare în scopul instruirii",{"v":2000,"d":"2,000.00 lei"},{"v":2000,"d":"2,000.00 lei"},{"v":2000,"d":"2,000.00 lei"},{"v":2000,"d":"2,000.00 lei"},{"v":2000,"d":"2,000.00 lei"},{"v":2000,"d":"2,000.00 lei"},{"v":2000,"d":"2,000.00 lei"},{"v":2000,"d":"2,000.00 lei"},{"v":2000,"d":"2,000.00 lei"},{"v":2000,"d":"2,000.00 lei"},{"v":2000,"d":"2,000.00 lei"},{"v":2000,"d":"2,000.00 lei"},{"$f":"SUM(C32:N32)","v":{"v":24000,"d":"24,000.00 lei"}}]
[null,"Subtotal",{"$f":"SUBTOTAL(109,Planif.InstruireȘiDeplasare[Ian])","v":{"v":4000,"d":"4,000.00 lei"}},{"$f":"SUBTOTAL(109,Planif.InstruireȘiDeplasare[Feb])","v":{"v":4000,"d":"4,000.00 lei"}},{"$f":"SUBTOTAL(109,Planif.InstruireȘiDeplasare[Mar])","v":{"v":4000,"d":"4,000.00 lei"}},{"$f":"SUBTOTAL(109,Planif.InstruireȘiDeplasare[Apr])","v":{"v":4000,"d":"4,000.00 lei"}},{"$f":"SUBTOTAL(109,Planif.InstruireȘiDeplasare[Mai])","v":{"v":4000,"d":"4,000.00 lei"}},{"$f":"SUBTOTAL(109,Planif.InstruireȘiDeplasare[Iun])","v":{"v":4000,"d":"4,000.00 lei"}},{"$f":"SUBTOTAL(109,Planif.InstruireȘiDeplasare[Iul])","v":{"v":4000,"d":"4,000.00 lei"}},{"$f":"SUBTOTAL(109,Planif.InstruireȘiDeplasare[Aug])","v":{"v":4000,"d":"4,000.00 lei"}},{"$f":"SUBTOTAL(109,Planif.InstruireȘiDeplasare[Sep])","v":{"v":4000,"d":"4,000.00 lei"}},{"$f":"SUBTOTAL(109,Planif.InstruireȘiDeplasare[Oct])","v":{"v":4000,"d":"4,000.00 lei"}},{"$f":"SUBTOTAL(109,Planif.InstruireȘiDeplasare[Nov])","v":{"v":4000,"d":"4,000.00 lei"}},{"$f":"SUBTOTAL(109,Planif.InstruireȘiDeplasare[Dec])","v":{"v":4000,"d":"4,000.00 lei"}},{"$f":"SUBTOTAL(109,Planif.InstruireȘiDeplasare[AN])","v":{"v":48000,"d":"48,000.00 lei"}}]
[]
[null,"TOTALURI","Ian","Feb","Mar","Apr","Mai","Iun","Iul","Aug","Sep","Oct","Nov","Dec","An"]
[null,"Cheltuieli lunare planificate",{"$f":"Planif.InstruireȘiDeplasare[[#Totals],[Ian]]+Planif.Marketing[[#Totals],[Ian]]+Planif.Birou[[#Totals],[Ian]]+Planif.Angajați[[#Totals],[Ian]]","v":{"v":131420,"d":"131,420.00 lei"}},{"$f":"Planif.InstruireȘiDeplasare[[#Totals],[Feb]]+Planif.Marketing[[#Totals],[Feb]]+Planif.Birou[[#Totals],[Feb]]+Planif.Angajați[[#Totals],[Feb]]","v":{"v":126820,"d":"126,820.00 lei"}},{"$f":"Planif.InstruireȘiDeplasare[[#Totals],[Mar]]+Planif.Marketing[[#Totals],[Mar]]+Planif.Birou[[#Totals],[Mar]]+Planif.Angajați[[#Totals],[Mar]]","v":{"v":126820,"d":"126,820.00 lei"}},{"$f":"Planif.InstruireȘiDeplasare[[#Totals],[Apr]]+Planif.Marketing[[#Totals],[Apr]]+Planif.Birou[[#Totals],[Apr]]+Planif.Angajați[[#Totals],[Apr]]","v":{"v":137695,"d":"137,695.00 lei"}},{"$f":"Planif.InstruireȘiDeplasare[[#Totals],[Mai]]+Planif.Marketing[[#Totals],[Mai]]+Planif.Birou[[#Totals],[Mai]]+Planif.Angajați[[#Totals],[Mai]]","v":{"v":129695,"d":"129,695.00 lei"}},{"$f":"Planif.InstruireȘiDeplasare[[#Totals],[Iun]]+Planif.Marketing[[#Totals],[Iun]]+Planif.Birou[[#Totals],[Iun]]+Planif.Angajați[[#Totals],[Iun]]","v":{"v":130495,"d":"130,495.00 lei"}},{"$f":"Planif.InstruireȘiDeplasare[[#Totals],[Iul]]+Planif.Marketing[[#Totals],[Iul]]+Planif.Birou[[#Totals],[Iul]]+Planif.Angajați[[#Totals],[Iul]]","v":{"v":134695,"d":"134,695.00 lei"}},{"$f":"Planif.InstruireȘiDeplasare[[#Totals],[Aug]]+Planif.Marketing[[#Totals],[Aug]]+Planif.Birou[[#Totals],[Aug]]+Planif.Angajați[[#Totals],[Aug]]","v":{"v":138918,"d":"138,918.00 lei"}},{"$f":"Planif.InstruireȘiDeplasare[[#Totals],[Sep]]+Planif.Marketing[[#Totals],[Sep]]+Planif.Birou[[#Totals],[Sep]]+Planif.Angajați[[#Totals],[Sep]]","v":{"v":135918,"d":"135,918.00 lei"}},{"$f":"Planif.InstruireȘiDeplasare[[#Totals],[Oct]]+Planif.Marketing[[#Totals],[Oct]]+Planif.Birou[[#Totals],[Oct]]+Planif.Angajați[[#Totals],[Oct]]","v":{"v":140918,"d":"140,918.00 lei"}},{"$f":"Planif.InstruireȘiDeplasare[[#Totals],[Nov]]+Planif.Marketing[[#Totals],[Nov]]+Planif.Birou[[#Totals],[Nov]]+Planif.Angajați[[#Totals],[Nov]]","v":{"v":136218,"d":"136,218.00 lei"}},{"$f":"Planif.InstruireȘiDeplasare[[#Totals],[Dec]]+Planif.Marketing[[#Totals],[Dec]]+Planif.Birou[[#Totals],[Dec]]+Planif.Angajați[[#Totals],[Dec]]","v":{"v":140018,"d":"140,018.00 lei"}},{"$f":"Planif.InstruireȘiDeplasare[[#Totals],[AN]]+Planif.Marketing[[#Totals],[AN]]+Planif.Birou[[#Totals],[AN]]+Planif.Angajați[[#Totals],[AN]]","v":{"v":1609630,"d":"1,609,630.00 lei"}}]
[null,"TOTAL cheltuieli planificate",{"$f":"SUM($C$36:C36)","v":{"v":131420,"d":"131,420.00 lei"}},{"$f":"SUM($C$36:D36)","v":{"v":258240,"d":"258,240.00 lei"}},{"$f":"SUM($C$36:E36)","v":{"v":385060,"d":"385,060.00 lei"}},{"$f":"SUM($C$36:F36)","v":{"v":522755,"d":"522,755.00 lei"}},{"$f":"SUM($C$36:G36)","v":{"v":652450,"d":"652,450.00 lei"}},{"$f":"SUM($C$36:H36)","v":{"v":782945,"d":"782,945.00 lei"}},{"$f":"SUM($C$36:I36)","v":{"v":917640,"d":"917,640.00 lei"}},{"$f":"SUM($C$36:J36)","v":{"v":1056558,"d":"1,056,558.00 lei"}},{"$f":"SUM($C$36:K36)","v":{"v":1192476,"d":"1,192,476.00 lei"}},{"$f":"SUM($C$36:L36)","v":{"v":1333394,"d":"1,333,394.00 lei"}},{"$f":"SUM($C$36:M36)","v":{"v":1469612,"d":"1,469,612.00 lei"}},{"$f":"SUM($C$36:N36)","v":{"v":1609630,"d":"1,609,630.00 lei"}}]

{"sheet":"CHELTUIELI REALE","index":2,"n_rows":37,"n_cols":16,"rows_kept":37,"merged":[[1,10,1,12],[2,10,2,12]]}
[{"$nulls":15}," "]
[null,{"$f":"'CHELTUIELI PLANIFICATE'!B2:D3","v":"Numele firmei"},{"$nulls":8},{"$f":"titlu_foaie_de_lucru","v":"Estimări detaliate cheltuieli"}]
[{"$nulls":10},"Celule umbrite reprezintă calcule."]
[null,"CHELTUIELI REALE","IAN","FEB","MAR","APR","MAI","IUN","IUL","AUG","SEP","OCT","NOV","DEC","AN"]
[null,"Costuri cu angajații","Ian","Feb","Mar","Apr","Mai","Iun","Iul","Aug","Sep","Oct","Nov","Dec","AN"]
[null,"Salarii",{"v":85000,"d":"85,000.00 lei"},{"v":85000,"d":"85,000.00 lei"},{"v":85000,"d":"85,000.00 lei"},{"v":88000,"d":"88,000.00 lei"},{"v":88000,"d":"88,000.00 lei"},{"v":88000,"d":"88,000.00 lei"},{"$nulls":6},{"$f":"SUM(C6:N6)","v":{"v":519000,"d":"519,000.00 lei"}}]
[null,"Avantaje",{"$f":"C6*0.27","v":{"v":22950,"d":"22,950.00 lei"}},{"v":22950,"d":"22,950.00 lei"},{"v":22950,"d":"22,950.00 lei"},{"v":23760,"d":"23,760.00 lei"},{"v":23760,"d":"23,760.00 lei"},{"v":23760,"d":"23,760.00 lei"},{"v":0,"d":"0.00 lei"},{"v":0,"d":"0.00 lei"},{"v":0,"d":"0.00 lei"},{"v":0,"d":"0.00 lei"},{"v":0,"d":"0.00 lei"},{"v":0,"d":"0.00 lei"},{"$f":"SUM(C7:N7)","v":{"v":140130,"d":"140,130.00 lei"}}]
[null,"Subtotal",{"$f":"SUBTOTAL(109,RealeAngajați[Ian])","v":{"v":107950,"d":"107,950.00 lei"}},{"$f":"SUBTOTAL(109,RealeAngajați[Feb])","v":{"v":107950,"d":"107,950.00 lei"}},{"$f":"SUBTOTAL(109,RealeAngajați[Mar])","v":{"v":107950,"d":"107,950.00 lei"}},{"$f":"SUBTOTAL(109,RealeAngajați[Apr])","v":{"v":111760,"d":"111,760.00 lei"}},{"$f":"SUBTOTAL(109,RealeAngajați[Mai])","v":{"v":111760,"d":"111,760.00 lei"}},{"$f":"SUBTOTAL(109,RealeAngajați[Iun])","v":{"v":111760,"d":"111,760.00 lei"}},{"$f":"SUBTOTAL(109,RealeAngajați[Iul])","v":{"v":0,"d":"0.00 lei"}},{"$f":"SUBTOTAL(109,RealeAngajați[Aug])","v":{"v":0,"d":"0.00 lei"}},{"$f":"SUBTOTAL(109,RealeAngajați[Sep])","v":{"v":0,"d":"0.00 lei"}},{"$f":"SUBTOTAL(109,RealeAngajați[Oct])","v":{"v":0,"d":"0.00 lei"}},{"$f":"SUBTOTAL(109,RealeAngajați[Nov])","v":{"v":0,"d":"0.00 lei"}},{"$f":"SUBTOTAL(109,RealeAngajați[Dec])","v":{"v":0,"d":"0.00 lei"}},{"$f":"SUBTOTAL(109,RealeAngajați[AN])","v":{"v":659130,"d":"659,130.00 lei"}}]
[]
[null,"Costuri cu biroul","Ian","Feb","Mar","Apr","Mai","Iun","Iul","Aug","Sep","Oct","Nov","Dec","AN"]
[null,"Închiriere birou",{"v":9800,"d":"9,800.00 lei"},{"v":9800,"d":"9,800.00 lei"},{"v":9800,"d":"9,800.00 lei"},{"v":9800,"d":"9,800.00 lei"},{"v":9800,"d":"9,800.00 lei"},{"v":9800,"d":"9,800.00 lei"},{"$nulls":6},{"$f":"SUM(C11:N11)","v":{"v":58800,"d":"58,800.00 lei"}}]
[null,"Gaze",{"v":4,"d":"4.00 lei"},{"v":430,"d":"430.00 lei"},{"v":385,"d":"385.00 lei"},{"v":230,"d":"230.00 lei"},{"v":87,"d":"87.00 lei"},{"v":88,"d":"88.00 lei"},{"$nulls":6},{"v":1224,"d":"1,224.00 lei"}]
[null,"Curent electric",{"v":288,"d":"288.00 lei"},{"v":278,"d":"278.00 lei"},{"v":268,"d":"268.00 lei"},{"v":299,"d":"299.00 lei"},{"v":306,"d":"306.00 lei"},{"v":290,"d":"290.00 lei"},{"$nulls":6},{"v":1729,"d":"1,729.00 lei"}]
[null,"Apă",{"v":35,"d":"35.00 lei"},{"v":33,"d":"33.00 lei"},{"v":34,"d":"34.00 lei"},{"v":36,"d":"36.00 lei"},{"v":34,"d":"34.00 lei"},{"v":36,"d":"36.00 lei"},{"$nulls":6},{"v":208,"d":"208.00 lei"}]
[null,"Telefon",{"v":224,"d":"224.00 lei"},{"v":235,"d":"235.00 lei"},{"v":265,"d":"265.00 lei"},{"v":245,"d":"245.00 lei"},{"v":245,"d":"245.00 lei"},{"v":220,"d":"220.00 lei"},{"$nulls":6},{"v":1434,"d":"1,434.00 lei"}]
[null,"Acces la internet",{"v":180,"d":"180.00 lei"},{"v":180,"d":"180.00 lei"},{"v":180,"d":"180.00 lei"},{"v":180,"d":"180.00 lei"},{"v":180,"d":"180.00 lei"},{"v":180,"d":"180.00 lei"},{"$nulls":6},{"v":1080,"d":"1,080.00 lei"}]
[null,"Consumabile de birou",{"v":256,"d":"256.00 lei"},{"v":142,"d":"142.00 lei"},{"v":160,"d":"160.00 lei"},{"v":221,"d":"221.00 lei"},{"v":256,"d":"256.00 lei"},{"v":240,"d":"240.00 lei"},{"$nulls":6},{"v":1275,"d":"1,275.00 lei"}]
[null,"Securitate",{"v":600,"d":"600.00 lei"},{"v":600,"d":"600.00 lei"},{"v":600,"d":"600.00 lei"},{"v":600,"d":"600.00 lei"},{"v":600,"d":"600.00 lei"},{"v":600,"d":"600.00 lei"},{"$nulls":6},{"v":3600,"d":"3,600.00 lei"}]
[null,"Subtotal",{"$f":"SUBTOTAL(109,RealeBirou[Ian])","v":{"v":11387,"d":"11,387.00 lei"}},{"$f":"SUBTOTAL(109,RealeBirou[Feb])","v":{"v":11698,"d":"11,698.00 lei"}},{"$f":"SUBTOTAL(109,RealeBirou[Mar])","v":{"v":11692,"d":"11,692.00 lei"}},{"$f":"SUBTOTAL(109,RealeBirou[Apr])","v":{"v":11611,"d":"11,611.00 lei"}},{"$f":"SUBTOTAL(109,RealeBirou[Mai])","v":{"v":11508,"d":"11,508.00 lei"}},{"$f":"SUBTOTAL(109,RealeBirou[Iun])","v":{"v":11454,"d":"11,454.00 lei"}},{"$f":"SUBTOTAL(109,RealeBirou[Iul])","v":{"v":0,"d":"0.00 lei"}},{"$f":"SUBTOTAL(109,RealeBirou[Aug])","v":{"v":0,"d":"0.00 lei"}},{"$f":"SUBTOTAL(109,RealeBirou[Sep])","v":{"v":0,"d":"0.00 lei"}},{"$f":"SUBTOTAL(109,RealeBirou[Oct])","v":{"v":0,"d":"0.00 lei"}},{"$f":"SUBTOTAL(109,RealeBirou[Nov])","v":{"v":0,"d":"0.00 lei"}},{"$f":"SUBTOTAL(109,RealeBirou[Dec])","v":{"v":0,"d":"0.00 lei"}},{"$f":"SUBTOTAL(109,RealeBirou[AN])","v":{"v":69350,"d":"69,350.00 lei"}}]
[]
[null,"Costuri de marketing","Ian","Feb","Mar","Apr","Mai","Iun","Iul","Aug","Sep","Oct","Nov","Dec","AN"]
[null,"Găzduire site web",{"v":500,"d":"500.00 lei"},{"v":500,"d":"500.00 lei"},{"v":500,"d":"500.00 lei"},{"v":500,"d":"500.00 lei"},{"v":500,"d":"500.00 lei"},{"v":500,"d":"500.00 lei"},{"$nulls":6},{"$f":"SUM(C22:N22)","v":{"v":3000,"d":"3,000.00 lei"}}]
[null,"Actualizări site web",{"v":200,"d":"200.00 lei"},{"v":200,"d":"200.00 lei"},{"v":200,"d":"200.00 lei"},{"v":200,"d":"200.00 lei"},{"v":200,"d":"200.00 lei"},{"v":1500,"d":"1,500.00 lei"},{"$nulls":6},{"v":2500,"d":"2,500.00 lei"}]
[null,"Creare materiale publicitare",{"v":4800,"d":"4,800.00 lei"},{"v":0,"d":"0.00 lei"},{"v":0,"d":"0.00 lei"},{"v":5500,"d":"5,500.00 lei"},{"v":0,"d":"0.00 lei"},{"v":0,"d":"0.00 lei"},{"$nulls":6},{"v":10300,"d":"10,300.00 lei"}]
[null,"Imprimare materiale publicitare",{"v":100,"d":"100.00 lei"},{"v":500,"d":"500.00 lei"},{"v":100,"d":"100.00 lei"},{"v":100,"d":"100.00 lei"},{"v":600,"d":"600.00 lei"},{"v":180,"d":"180.00 lei"},{"$nulls":6},{"v":1580,"d":"1,580.00 lei"}]
[null,"Evenimente de marketing",{"v":1800,"d":"1,800.00 lei"},{"v":2200,"d":"2,200.00 lei"},{"v":2200,"d":"2,200.00 lei"},{"v":4700,"d":"4,700.00 lei"},{"v":1500,"d":"1,500.00 lei"},{"v":2300,"d":"2,300.00 lei"},{"$nulls":6},{"v":14700,"d":"14,700.00 lei"}]
[null,"Cheltuieli diverse",{"v":145,"d":"145.00 lei"},{"v":156,"d":"156.00 lei"},{"v":123,"d":"123.00 lei"},{"v":223,"d":"223.00 lei"},{"v":187,"d":"187.00 lei"},{"v":245,"d":"245.00 lei"},{"$nulls":6},{"v":1079,"d":"1,079.00 lei"}]
[null,"Subtotal",{"$f":"SUBTOTAL(109,RealeMarketing[Ian])","v":{"v":7545,"d":"7,545.00 lei"}},{"$f":"SUBTOTAL(109,RealeMarketing[Feb])","v":{"v":3556,"d":"3,556.00 lei"}},{"$f":"SUBTOTAL(109,RealeMarketing[Mar])","v":{"v":3123,"d":"3,123.00 lei"}},{"$f":"SUBTOTAL(109,RealeMarketing[Apr])","v":{"v":11223,"d":"11,223.00 lei"}},{"$f":"SUBTOTAL(109,RealeMarketing[Mai])","v":{"v":2987,"d":"2,987.00 lei"}},{"$f":"SUBTOTAL(109,RealeMarketing[Iun])","v":{"v":4725,"d":"4,725.00 lei"}},{"$f":"SUBTOTAL(109,RealeMarketing[Iul])","v":{"v":0,"d":"0.00 lei"}},{"$f":"SUBTOTAL(109,RealeMarketing[Aug])","v":{"v":0,"d":"0.00 lei"}},{"$f":"SUBTOTAL(109,RealeMarketing[Sep])","v":{"v":0,"d":"0.00 lei"}},{"$f":"SUBTOTAL(109,RealeMarketing[Oct])","v":{"v":0,"d":"0.00 lei"}},{"$f":"SUBTOTAL(109,RealeMarketing[Nov])","v":{"v":0,"d":"0.00 lei"}},{"$f":"SUBTOTAL(109,RealeMarketing[Dec])","v":{"v":0,"d":"0.00 lei"}},{"$f":"SUBTOTAL(109,RealeMarketing[AN])","v":{"v":33159,"d":"33,159.00 lei"}}]
[]
[null,"Instruire/deplasare","Ian","Feb","Mar","Apr","Mai","Iun","Iul","Aug","Sep","Oct","Nov","Dec","AN"]
[null,"Cursuri de instruire",{"v":1600,"d":"1,600.00 lei"},{"v":2400,"d":"2,400.00 lei"},{"v":1400,"d":"1,400.00 lei"},{"v":1600,"d":"1,600.00 lei"},{"v":1200,"d":"1,200.00 lei"},{"v":2800,"d":"2,800.00 lei"},{"$nulls":6},{"$f":"SUM(C31:N31)","v":{"v":11000,"d":"11,000.00 lei"}}]
[null,"Costuri de deplasare în scopul instruirii",{"v":1200,"d":"1,200.00 lei"},{"v":2200,"d":"2,200.00 lei"},{"v":1400,"d":"1,400.00 lei"},{"v":1200,"d":"1,200.00 lei"},{"v":800,"d":"800.00 lei"},{"v":3500,"d":"3,500.00 lei"},{"$nulls":6},{"$f":"SUM(C32:N32)","v":{"v":10300,"d":"10,300.00 lei"}}]
[null,"Subtotal",{"$f":"SUBTOTAL(109,RealeInstruireȘiDeplasare[Ian])","v":{"v":2800,"d":"2,800.00 lei"}},{"$f":"SUBTOTAL(109,RealeInstruireȘiDeplasare[Feb])","v":{"v":4600,"d":"4,600.00 lei"}},{"$f":"SUBTOTAL(109,RealeInstruireȘiDeplasare[Mar])","v":{"v":2800,"d":"2,800.00 lei"}},{"$f":"SUBTOTAL(109,RealeInstruireȘiDeplasare[Apr])","v":{"v":2800,"d":"2,800.00 lei"}},{"$f":"SUBTOTAL(109,RealeInstruireȘiDeplasare[Mai])","v":{"v":2000,"d":"2,000.00 lei"}},{"$f":"SUBTOTAL(109,RealeInstruireȘiDeplasare[Iun])","v":{"v":6300,"d":"6,300.00 lei"}},{"$f":"SUBTOTAL(109,RealeInstruireȘiDeplasare[Iul])","v":{"v":0,"d":"0.00 lei"}},{"$f":"SUBTOTAL(109,RealeInstruireȘiDeplasare[Aug])","v":{"v":0,"d":"0.00 lei"}},{"$f":"SUBTOTAL(109,RealeInstruireȘiDeplasare[Sep])","v":{"v":0,"d":"0.00 lei"}},{"$f":"SUBTOTAL(109,RealeInstruireȘiDeplasare[Oct])","v":{"v":0,"d":"0.00 lei"}},{"$f":"SUBTOTAL(109,RealeInstruireȘiDeplasare[Nov])","v":{"v":0,"d":"0.00 lei"}},{"$f":"SUBTOTAL(109,RealeInstruireȘiDeplasare[Dec])","v":{"v":0,"d":"0.00 lei"}},{"$f":"SUBTOTAL(109,RealeInstruireȘiDeplasare[AN])","v":{"v":21300,"d":"21,300.00 lei"}}]
[]
[null,"TOTAL cheltuieli planificate","Ian","Feb","Mar","Apr","Mai","Iun","Iul","Aug","Sep","Oct","Nov","Dec","An"]
[null,"Cheltuieli lunare reale",{"$f":"RealeInstruireȘiDeplasare[[#Totals],[Ian]]+RealeMarketing[[#Totals],[Ian]]+RealeBirou[[#Totals],[Ian]]+RealeAngajați[[#Totals],[Ian]]","v":{"v":129682,"d":"129,682.00 lei"}},{"$f":"RealeInstruireȘiDeplasare[[#Totals],[Feb]]+RealeMarketing[[#Totals],[Feb]]+RealeBirou[[#Totals],[Feb]]+RealeAngajați[[#Totals],[Feb]]","v":{"v":127804,"d":"127,804.00 lei"}},{"$f":"RealeInstruireȘiDeplasare[[#Totals],[Mar]]+RealeMarketing[[#Totals],[Mar]]+RealeBirou[[#Totals],[Mar]]+RealeAngajați[[#Totals],[Mar]]","v":{"v":125565,"d":"125,565.00 lei"}},{"$f":"RealeInstruireȘiDeplasare[[#Totals],[Apr]]+RealeMarketing[[#Totals],[Apr]]+RealeBirou[[#Totals],[Apr]]+RealeAngajați[[#Totals],[Apr]]","v":{"v":137394,"d":"137,394.00 lei"}},{"$f":"RealeInstruireȘiDeplasare[[#Totals],[Mai]]+RealeMarketing[[#Totals],[Mai]]+RealeBirou[[#Totals],[Mai]]+RealeAngajați[[#Totals],[Mai]]","v":{"v":128255,"d":"128,255.00 lei"}},{"$f":"RealeInstruireȘiDeplasare[[#Totals],[Iun]]+RealeMarketing[[#Totals],[Iun]]+RealeBirou[[#Totals],[Iun]]+RealeAngajați[[#Totals],[Iun]]","v":{"v":134239,"d":"134,239.00 lei"}},{"$f":"RealeInstruireȘiDeplasare[[#Totals],[Iul]]+RealeMarketing[[#Totals],[Iul]]+RealeBirou[[#Totals],[Iul]]+RealeAngajați[[#Totals],[Iul]]","v":{"v":0,"d":"0.00 lei"}},{"$f":"RealeInstruireȘiDeplasare[[#Totals],[Aug]]+RealeMarketing[[#Totals],[Aug]]+RealeBirou[[#Totals],[Aug]]+RealeAngajați[[#Totals],[Aug]]","v":{"v":0,"d":"0.00 lei"}},{"$f":"RealeInstruireȘiDeplasare[[#Totals],[Sep]]+RealeMarketing[[#Totals],[Sep]]+RealeBirou[[#Totals],[Sep]]+RealeAngajați[[#Totals],[Sep]]","v":{"v":0,"d":"0.00 lei"}},{"$f":"RealeInstruireȘiDeplasare[[#Totals],[Oct]]+RealeMarketing[[#Totals],[Oct]]+RealeBirou[[#Totals],[Oct]]+RealeAngajați[[#Totals],[Oct]]","v":{"v":0,"d":"0.00 lei"}},{"$f":"RealeInstruireȘiDeplasare[[#Totals],[Nov]]+RealeMarketing[[#Totals],[Nov]]+RealeBirou[[#Totals],[Nov]]+RealeAngajați[[#Totals],[Nov]]","v":{"v":0,"d":"0.00 lei"}},{"$f":"RealeInstruireȘiDeplasare[[#Totals],[Dec]]+RealeMarketing[[#Totals],[Dec]]+RealeBirou[[#Totals],[Dec]]+RealeAngajați[[#Totals],[Dec]]","v":{"v":0,"d":"0.00 lei"}},{"$f":"RealeInstruireȘiDeplasare[[#Totals],[AN]]+RealeMarketing[[#Totals],[AN]]+RealeBirou[[#Totals],[AN]]+RealeAngajați[[#Totals],[AN]]","v":{"v":782939,"d":"782,939.00 lei"}}]
[null,"TOTAL cheltuieli reale",{"$f":"SUM($C$36:C36)","v":{"v":129682,"d":"129,682.00 lei"}},{"$f":"SUM($C$36:D36)","v":{"v":257486,"d":"257,486.00 lei"}},{"$f":"SUM($C$36:E36)","v":{"v":383051,"d":"383,051.00 lei"}},{"$f":"SUM($C$36:F36)","v":{"v":520445,"d":"520,445.00 lei"}},{"$f":"SUM($C$36:G36)","v":{"v":648700,"d":"648,700.00 lei"}},{"$f":"SUM($C$36:H36)","v":{"v":782939,"d":"782,939.00 lei"}},{"$f":"SUM($C$36:I36)","v":{"v":782939,"d":"782,939.00 lei"}},{"$f":"SUM($C$36:J36)","v":{"v":782939,"d":"782,939.00 lei"}},{"$f":"SUM($C$36:K36)","v":{"v":782939,"d":"782,939.00 lei"}},{"$f":"SUM($C$36:L36)","v":{"v":782939,"d":"782,939.00 lei"}},{"$f":"SUM($C$36:M36)","v":{"v":782939,"d":"782,939.00 lei"}},{"$f":"SUM($C$36:N36)","v":{"v":782939,"d":"782,939.00 lei"}}]

{"sheet":"DIFERENȚA CHELTUIELILOR","index":3,"n_rows":37,"n_cols":16,"rows_kept":37,"merged":[[1,10,1,12],[2,10,2,12]]}
[{"$nulls":15}," "]
[null,{"$f":"'CHELTUIELI PLANIFICATE'!B2:D3","v":"Numele firmei"},{"$nulls":8},{"$f":"titlu_foaie_de_lucru","v":"Estimări detaliate cheltuieli"}]
[{"$nulls":10},"Celule umbrite reprezintă calcule."]
[null,"DIFERENȚA CHELTUIELILOR","IAN","FEB","MAR","APR","MAI","IUN","IUL","AUG","SEP","OCT","NOV","DEC","AN"]
[null,"Costuri cu angajații","Ian","Feb","Mar","Apr","Mai","Iun","Iul","Aug","Sep","Oct","Nov","Dec","AN"]
[null,"Salarii",{"$f":"INDEX(Planif.Angajați[],MATCH(INDEX(DiferențăAngajați[],ROW()-ROW(DiferențăAngajați[[#Headers],[Ian]]),1),INDEX(Planif.Angajați[],,1),0),MATCH(DiferențăAngajați[[#Headers],[Ian]],Planif.Angajați[#Headers],0))-INDEX(RealeAngajați[],MATCH(INDEX(DiferențăAngajați[],ROW()-ROW(DiferențăAngajați[[#Headers],[Ian]]),1),INDEX(Planif.Angajați[],,1),0),MATCH(DiferențăAngajați[[#Headers],[Ian]],RealeAngajați[#Headers],0))","v":{"v":0,"d":"0.00 lei"}},{"$f":"INDEX(Planif.Angajați[],MATCH(INDEX(DiferențăAngajați[],ROW()-ROW(DiferențăAngajați[[#Headers],[Feb]]),1),INDEX(Planif.Angajați[],,1),0),MATCH(DiferențăAngajați[[#Headers],[Feb]],Planif.Angajați[#Headers],0))-INDEX(RealeAngajați[],MATCH(INDEX(DiferențăAngajați[],ROW()-ROW(DiferențăAngajați[[#Headers],[Feb]]),1),INDEX(Planif.Angajați[],,1),0),MATCH(DiferențăAngajați[[#Headers],[Feb]],RealeAngajați[#Headers],0))","v":{"v":0,"d":"0.00 lei"}},{"$f":"INDEX(Planif.Angajați[],MATCH(INDEX(DiferențăAngajați[],ROW()-ROW(DiferențăAngajați[[#Headers],[Mar]]),1),INDEX(Planif.Angajați[],,1),0),MATCH(DiferențăAngajați[[#Headers],[Mar]],Planif.Angajați[#Headers],0))-INDEX(RealeAngajați[],MATCH(INDEX(DiferențăAngajați[],ROW()-ROW(DiferențăAngajați[[#Headers],[Mar]]),1),INDEX(Planif.Angajați[],,1),0),MATCH(DiferențăAngajați[[#Headers],[Mar]],RealeAngajați[#Headers],0))","v":{"v":0,"d":"0.00 lei"}},{"$f":"INDEX(Planif.Angajați[],MATCH(INDEX(DiferențăAngajați[],ROW()-ROW(DiferențăAngajați[[#Headers],[Apr]]),1),INDEX(Planif.Angajați[],,1),0),MATCH(DiferențăAngajați[[#Headers],[Apr]],Planif.Angajați[#Headers],0))-INDEX(RealeAngajați[],MATCH(INDEX(DiferențăAngajați[],ROW()-ROW(DiferențăAngajați[[#Headers],[Apr]]),1),INDEX(Planif.Angajați[],,1),0),MATCH(DiferențăAngajați[[#Headers],[Apr]],RealeAngajați[#Headers],0))","v":{"v":-500,"d":"-500.00 lei"}},{"$f":"INDEX(Planif.Angajați[],MATCH(INDEX(DiferențăAngajați[],ROW()-ROW(DiferențăAngajați[[#Headers],[Mai]]),1),INDEX(Planif.Angajați[],,1),0),MATCH(DiferențăAngajați[[#Headers],[Mai]],Planif.Angajați[#Headers],0))-INDEX(RealeAngajați[],MATCH(INDEX(DiferențăAngajați[],ROW()-ROW(DiferențăAngajați[[#Headers],[Mai]]),1),INDEX(Planif.Angajați[],,1),0),MATCH(DiferențăAngajați[[#Headers],[Mai]],RealeAngajați[#Headers],0))","v":{"v":-500,"d":"-500.00 lei"}},{"$f":"INDEX(Planif.Angajați[],MATCH(INDEX(DiferențăAngajați[],ROW()-ROW(DiferențăAngajați[[#Headers],[Iun]]),1),INDEX(Planif.Angajați[],,1),0),MATCH(DiferențăAngajați[[#Headers],[Iun]],Planif.Angajați[#Headers],0))-INDEX(RealeAngajați[],MATCH(INDEX(DiferențăAngajați[],ROW()-ROW(DiferențăAngajați[[#Headers],[Iun]]),1),INDEX(Planif.Angajați[],,1),0),MATCH(DiferențăAngajați[[#Headers],[Iun]],RealeAngajați[#Headers],0))","v":{"v":-500,"d":"-500.00 lei"}},{"$f":"INDEX(Planif.Angajați[],MATCH(INDEX(DiferențăAngajați[],ROW()-ROW(DiferențăAngajați[[#Headers],[Iul]]),1),INDEX(Planif.Angajați[],,1),0),MATCH(DiferențăAngajați[[#Headers],[Iul]],Planif.Angajați[#Headers],0))-INDEX(RealeAngajați[],MATCH(INDEX(DiferențăAngajați[],ROW()-ROW(DiferențăAngajați[[#Headers],[Iul]]),1),INDEX(Planif.Angajați[],,1),0),MATCH(DiferențăAngajați[[#Headers],[Iul]],RealeAngajați[#Headers],0))","v":{"v":87500,"d":"87,500.00 lei"}},{"$f":"INDEX(Planif.Angajați[],MATCH(INDEX(DiferențăAngajați[],ROW()-ROW(DiferențăAngajați[[#Headers],[Aug]]),1),INDEX(Planif.Angajați[],,1),0),MATCH(DiferențăAngajați[[#Headers],[Aug]],Planif.Angajați[#Headers],0))-INDEX(RealeAngajați[],MATCH(INDEX(DiferențăAngajați[],ROW()-ROW(DiferențăAngajați[[#Headers],[Aug]]),1),INDEX(Planif.Angajați[],,1),0),MATCH(DiferențăAngajați[[#Headers],[Aug]],RealeAngajați[#Headers],0))","v":{"v":92400,"d":"92,400.00 lei"}},{"$f":"INDEX(Planif.Angajați[],MATCH(INDEX(DiferențăAngajați[],ROW()-ROW(DiferențăAngajați[[#Headers],[Sep]]),1),INDEX(Planif.Angajați[],,1),0),MATCH(DiferențăAngajați[[#Headers],[Sep]],Planif.Angajați[#Headers],0))-INDEX(RealeAngajați[],MATCH(INDEX(DiferențăAngajați[],ROW()-ROW(DiferențăAngajați[[#Headers],[Sep]]),1),INDEX(Planif.Angajați[],,1),0),MATCH(DiferențăAngajați[[#Headers],[Sep]],RealeAngajați[#Headers],0))","v":{"v":92400,"d":"92,400.00 lei"}},{"$f":"INDEX(Planif.Angajați[],MATCH(INDEX(DiferențăAngajați[],ROW()-ROW(DiferențăAngajați[[#Headers],[Oct]]),1),INDEX(Planif.Angajați[],,1),0),MATCH(DiferențăAngajați[[#Headers],[Oct]],Planif.Angajați[#Headers],0))-INDEX(RealeAngajați[],MATCH(INDEX(DiferențăAngajați[],ROW()-ROW(DiferențăAngajați[[#Headers],[Oct]]),1),INDEX(Planif.Angajați[],,1),0),MATCH(DiferențăAngajați[[#Headers],[Oct]],RealeAngajați[#Headers],0))","v":{"v":92400,"d":"92,400.00 lei"}},{"$f":"INDEX(Planif.Angajați[],MATCH(INDEX(DiferențăAngajați[],ROW()-ROW(DiferențăAngajați[[#Headers],[Nov]]),1),INDEX(Planif.Angajați[],,1),0),MATCH(DiferențăAngajați[[#Headers],[Nov]],Planif.Angajați[#Headers],0))-INDEX(RealeAngajați[],MATCH(INDEX(DiferențăAngajați[],ROW()-ROW(DiferențăAngajați[[#Headers],[Nov]]),1),INDEX(Planif.Angajați[],,1),0),MATCH(DiferențăAngajați[[#Headers],[Nov]],RealeAngajați[#Headers],0))","v":{"v":92400,"d":"92,400.00 lei"}},{"$f":"INDEX(Planif.Angajați[],MATCH(INDEX(DiferențăAngajați[],ROW()-ROW(DiferențăAngajați[[#Headers],[Dec]]),1),INDEX(Planif.Angajați[],,1),0),MATCH(DiferențăAngajați[[#Headers],[Dec]],Planif.Angajați[#Headers],0))-INDEX(RealeAngajați[],MATCH(INDEX(DiferențăAngajați[],ROW()-ROW(DiferențăAngajați[[#Headers],[Dec]]),1),INDEX(Planif.Angajați[],,1),0),MATCH(DiferențăAngajați[[#Headers],[Dec]],RealeAngajați[#Headers],0))","v":{"v":92400,"d":"92,400.00 lei"}},{"$f":"SUM(DiferențăAngajați[[#This Row],[Ian]:[Dec]])","v":{"v":548000,"d":"548,000.00 lei"}}]
[null,"Avantaje",{"$f":"INDEX(Planif.Angajați[],MATCH(INDEX(DiferențăAngajați[],ROW()-ROW(DiferențăAngajați[[#Headers],[Ian]]),1),INDEX(Planif.Angajați[],,1),0),MATCH(DiferențăAngajați[[#Headers],[Ian]],Planif.Angajați[#Headers],0))-INDEX(RealeAngajați[],MATCH(INDEX(DiferențăAngajați[],ROW()-ROW(DiferențăAngajați[[#Headers],[Ian]]),1),INDEX(Planif.Angajați[],,1),0),MATCH(DiferențăAngajați[[#Headers],[Ian]],RealeAngajați[#Headers],0))","v":{"v":0,"d":"0.00 lei"}},{"$f":"INDEX(Planif.Angajați[],MATCH(INDEX(DiferențăAngajați[],ROW()-ROW(DiferențăAngajați[[#Headers],[Feb]]),1),INDEX(Planif.Angajați[],,1),0),MATCH(DiferențăAngajați[[#Headers],[Feb]],Planif.Angajați[#Headers],0))-INDEX(RealeAngajați[],MATCH(INDEX(DiferențăAngajați[],ROW()-ROW(DiferențăAngajați[[#Headers],[Feb]]),1),INDEX(Planif.Angajați[],,1),0),MATCH(DiferențăAngajați[[#Headers],[Feb]],RealeAngajați[#Headers],0))","v":{"v":0,"d":"0.00 lei"}},{"$f":"INDEX(Planif.Angajați[],MATCH(INDEX(DiferențăAngajați[],ROW()-ROW(DiferențăAngajați[[#Headers],[Mar]]),1),INDEX(Planif.Angajați[],,1),0),MATCH(DiferențăAngajați[[#Headers],[Mar]],Planif.Angajați[#Headers],0))-INDEX(RealeAngajați[],MATCH(INDEX(DiferențăAngajați[],ROW()-ROW(DiferențăAngajați[[#Headers],[Mar]]),1),INDEX(Planif.Angajați[],,1),0),MATCH(DiferențăAngajați[[#Headers],[Mar]],RealeAngajați[#Headers],0))","v":{"v":0,"d":"0.00 lei"}},{"$f":"INDEX(Planif.Angajați[],MATCH(INDEX(DiferențăAngajați[],ROW()-ROW(DiferențăAngajați[[#Headers],[Apr]]),1),INDEX(Planif.Angajați[],,1),0),MATCH(DiferențăAngajați[[#Headers],[Apr]],Planif.Angajați[#Headers],0))-INDEX(RealeAngajați[],MATCH(INDEX(DiferențăAngajați[],ROW()-ROW(DiferențăAngajați[[#Headers],[Apr]]),1),INDEX(Planif.Angajați[],,1),0),MATCH(DiferențăAngajați[[#Headers],[Apr]],RealeAngajați[#Headers],0))","v":{"v":-135,"d":"-135.00 lei"}},{"$f":"INDEX(Planif.Angajați[],MATCH(INDEX(DiferențăAngajați[],ROW()-ROW(DiferențăAngajați[[#Headers],[Mai]]),1),INDEX(Planif.Angajați[],,1),0),MATCH(DiferențăAngajați[[#Headers],[Mai]],Planif.Angajați[#Headers],0))-INDEX(RealeAngajați[],MATCH(INDEX(DiferențăAngajați[],ROW()-ROW(DiferențăAngajați[[#Headers],[Mai]]),1),INDEX(Planif.Angajați[],,1),0),MATCH(DiferențăAngajați[[#Headers],[Mai]],RealeAngajați[#Headers],0))","v":{"v":-135,"d":"-135.00 lei"}},{"$f":"INDEX(Planif.Angajați[],MATCH(INDEX(DiferențăAngajați[],ROW()-ROW(DiferențăAngajați[[#Headers],[Iun]]),1),INDEX(Planif.Angajați[],,1),0),MATCH(DiferențăAngajați[[#Headers],[Iun]],Planif.Angajați[#Headers],0))-INDEX(RealeAngajați[],MATCH(INDEX(DiferențăAngajați[],ROW()-ROW(DiferențăAngajați[[#Headers],[Iun]]),1),INDEX(Planif.Angajați[],,1),0),MATCH(DiferențăAngajați[[#Headers],[Iun]],RealeAngajați[#Headers],0))","v":{"v":-135,"d":"-135.00 lei"}},{"$f":"INDEX(Planif.Angajați[],MATCH(INDEX(DiferențăAngajați[],ROW()-ROW(DiferențăAngajați[[#Headers],[Iul]]),1),INDEX(Planif.Angajați[],,1),0),MATCH(DiferențăAngajați[[#Headers],[Iul]],Planif.Angajați[#Headers],0))-INDEX(RealeAngajați[],MATCH(INDEX(DiferențăAngajați[],ROW()-ROW(DiferențăAngajați[[#Headers],[Iul]]),1),INDEX(Planif.Angajați[],,1),0),MATCH(DiferențăAngajați[[#Headers],[Iul]],RealeAngajați[#Headers],0))","v":{"v":23625,"d":"23,625.00 lei"}},{"$f":"INDEX(Planif.Angajați[],MATCH(INDEX(DiferențăAngajați[],ROW()-ROW(DiferențăAngajați[[#Headers],[Aug]]),1),INDEX(Planif.Angajați[],,1),0),MATCH(DiferențăAngajați[[#Headers],[Aug]],Planif.Angajați[#Headers],0))-INDEX(RealeAngajați[],MATCH(INDEX(DiferențăAngajați[],ROW()-ROW(DiferențăAngajați[[#Headers],[Aug]]),1),INDEX(Planif.Angajați[],,1),0),MATCH(DiferențăAngajați[[#Headers],[Aug]],RealeAngajați[#Headers],0))","v":{"v":24948,"d":"24,948.00 lei"}},{"$f":"INDEX(Planif.Angajați[],MATCH(INDEX(DiferențăAngajați[],ROW()-ROW(DiferențăAngajați[[#Headers],[Sep]]),1),INDEX(Planif.Angajați[],,1),0),MATCH(DiferențăAngajați[[#Headers],[Sep]],Planif.Angajați[#Headers],0))-INDEX(RealeAngajați[],MATCH(INDEX(DiferențăAngajați[],ROW()-ROW(DiferențăAngajați[[#Headers],[Sep]]),1),INDEX(Planif.Angajați[],,1),0),MATCH(DiferențăAngajați[[#Headers],[Sep]],RealeAngajați[#Headers],0))","v":{"v":24948,"d":"24,948.00 lei"}},{"$f":"INDEX(Planif.Angajați[],MATCH(INDEX(DiferențăAngajați[],ROW()-ROW(DiferențăAngajați[[#Headers],[Oct]]),1),INDEX(Planif.Angajați[],,1),0),MATCH(DiferențăAngajați[[#Headers],[Oct]],Planif.Angajați[#Headers],0))-INDEX(RealeAngajați[],MATCH(INDEX(DiferențăAngajați[],ROW()-ROW(DiferențăAngajați[[#Headers],[Oct]]),1),INDEX(Planif.Angajați[],,1),0),MATCH(DiferențăAngajați[[#Headers],[Oct]],RealeAngajați[#Headers],0))","v":{"v":24948,"d":"24,948.00 lei"}},{"$f":"INDEX(Planif.Angajați[],MATCH(INDEX(DiferențăAngajați[],ROW()-ROW(DiferențăAngajați[[#Headers],[Nov]]),1),INDEX(Planif.Angajați[],,1),0),MATCH(DiferențăAngajați[[#Headers],[Nov]],Planif.Angajați[#Headers],0))-INDEX(RealeAngajați[],MATCH(INDEX(DiferențăAngajați[],ROW()-ROW(DiferențăAngajați[[#Headers],[Nov]]),1),INDEX(Planif.Angajați[],,1),0),MATCH(DiferențăAngajați[[#Headers],[Nov]],RealeAngajați[#Headers],0))","v":{"v":24948,"d":"24,948.00 lei"}},{"$f":"INDEX(Planif.Angajați[],MATCH(INDEX(DiferențăAngajați[],ROW()-ROW(DiferențăAngajați[[#Headers],[Dec]]),1),INDEX(Planif.Angajați[],,1),0),MATCH(DiferențăAngajați[[#Headers],[Dec]],Planif.Angajați[#Headers],0))-INDEX(RealeAngajați[],MATCH(INDEX(DiferențăAngajați[],ROW()-ROW(DiferențăAngajați[[#Headers],[Dec]]),1),INDEX(Planif.Angajați[],,1),0),MATCH(DiferențăAngajați[[#Headers],[Dec]],RealeAngajați[#Headers],0))","v":{"v":24948,"d":"24,948.00 lei"}},{"$f":"SUM(DiferențăAngajați[[#This Row],[Ian]:[Dec]])","v":{"v":147960,"d":"147,960.00 lei"}}]
[null,"Subtotal",{"$f":"SUBTOTAL(109,DiferențăAngajați[Ian])","v":{"v":0,"d":"0.00 lei"}},{"$f":"SUBTOTAL(109,DiferențăAngajați[Feb])","v":{"v":0,"d":"0.00 lei"}},{"$f":"SUBTOTAL(109,DiferențăAngajați[Mar])","v":{"v":0,"d":"0.00 lei"}},{"$f":"SUBTOTAL(109,DiferențăAngajați[Apr])","v":{"v":-635,"d":"-635.00 lei"}},{"$f":"SUBTOTAL(109,DiferențăAngajați[Mai])","v":{"v":-635,"d":"-635.00 lei"}},{"$f":"SUBTOTAL(109,DiferențăAngajați[Iun])","v":{"v":-635,"d":"-635.00 lei"}},{"$f":"SUBTOTAL(109,DiferențăAngajați[Iul])","v":{"v":111125,"d":"111,125.00 lei"}},{"$f":"SUBTOTAL(109,DiferențăAngajați[Aug])","v":{"v":117348,"d":"117,348.00 lei"}},{"$f":"SUBTOTAL(109,DiferențăAngajați[Sep])","v":{"v":117348,"d":"117,348.00 lei"}},{"$f":"SUBTOTAL(109,DiferențăAngajați[Oct])","v":{"v":117348,"d":"117,348.00 lei"}},{"$f":"SUBTOTAL(109,DiferențăAngajați[Nov])","v":{"v":117348,"d":"117,348.00 lei"}},{"$f":"SUBTOTAL(109,DiferențăAngajați[Dec])","v":{"v":117348,"d":"117,348.00 lei"}},{"$f":"SUBTOTAL(109,DiferențăAngajați[AN])","v":{"v":695960,"d":"695,960.00 lei"}}]
[]
[null,"Costuri cu biroul","Ian","Feb","Mar","Apr","Mai","Iun","Iul","Aug","Sep","Oct","Nov","Dec","AN"]
[null,"Închiriere birou",{"$f":"INDEX(Planif.Birou[],MATCH(INDEX(DiferențăBirou[],ROW()-ROW(DiferențăBirou[[#Headers],[Ian]]),1),INDEX(Planif.Birou[],,1),0),MATCH(DiferențăBirou[[#Headers],[Ian]],Planif.Birou[#Headers],0))-INDEX(RealeBirou[],MATCH(INDEX(DiferențăBirou[],ROW()-ROW(DiferențăBirou[[#Headers],[Ian]]),1),INDEX(Planif.Birou[],,1),0),MATCH(DiferențăBirou[[#Headers],[Ian]],RealeBirou[#Headers],0))","v":{"v":0,"d":"0.00 lei"}},{"$f":"INDEX(Planif.Birou[],MATCH(INDEX(DiferențăBirou[],ROW()-ROW(DiferențăBirou[[#Headers],[Feb]]),1),INDEX(Planif.Birou[],,1),0),MATCH(DiferențăBirou[[#Headers],[Feb]],Planif.Birou[#Headers],0))-INDEX(RealeBirou[],MATCH(INDEX(DiferențăBirou[],ROW()-ROW(DiferențăBirou[[#Headers],[Feb]]),1),INDEX(Planif.Birou[],,1),0),MATCH(DiferențăBirou[[#Headers],[Feb]],RealeBirou[#Headers],0))","v":{"v":0,"d":"0.00 lei"}},{"$f":"INDEX(Planif.Birou[],MATCH(INDEX(DiferențăBirou[],ROW()-ROW(DiferențăBirou[[#Headers],[Mar]]),1),INDEX(Planif.Birou[],,1),0),MATCH(DiferențăBirou[[#Headers],[Mar]],Planif.Birou[#Headers],0))-INDEX(RealeBirou[],MATCH(INDEX(DiferențăBirou[],ROW()-ROW(DiferențăBirou[[#Headers],[Mar]]),1),INDEX(Planif.Birou[],,1),0),MATCH(DiferențăBirou[[#Headers],[Mar]],RealeBirou[#Headers],0))","v":{"v":0,"d":"0.00 lei"}},{"$f":"INDEX(Planif.Birou[],MATCH(INDEX(DiferențăBirou[],ROW()-ROW(DiferențăBirou[[#Headers],[Apr]]),1),INDEX(Planif.Birou[],,1),0),MATCH(DiferențăBirou[[#Headers],[Apr]],Planif.Birou[#Headers],0))-INDEX(RealeBirou[],MATCH(INDEX(DiferențăBirou[],ROW()-ROW(DiferențăBirou[[#Headers],[Apr]]),1),INDEX(Planif.Birou[],,1),0),MATCH(DiferențăBirou[[#Headers],[Apr]],RealeBirou[#Headers],0))","v":{"v":0,"d":"0.00 lei"}},{"$f":"INDEX(Planif.Birou[],MATCH(INDEX(DiferențăBirou[],ROW()-ROW(DiferențăBirou[[#Headers],[Mai]]),1),INDEX(Planif.Birou[],,1),0),MATCH(DiferențăBirou[[#Headers],[Mai]],Planif.Birou[#Headers],0))-INDEX(RealeBirou[],MATCH(INDEX(DiferențăBirou[],ROW()-ROW(DiferențăBirou[[#Headers],[Mai]]),1),INDEX(Planif.Birou[],,1),0),MATCH(DiferențăBirou[[#Headers],[Mai]],RealeBirou[#Headers],0))","v":{"v":0,"d":"0.00 lei"}},{"$f":"INDEX(Planif.Birou[],MATCH(INDEX(DiferențăBirou[],ROW()-ROW(DiferențăBirou[[#Headers],[Iun]]),1),INDEX(Planif.Birou[],,1),0),MATCH(DiferențăBirou[[#Headers],[Iun]],Planif.Birou[#Headers],0))-INDEX(RealeBirou[],MATCH(INDEX(DiferențăBirou[],ROW()-ROW(DiferențăBirou[[#Headers],[Iun]]),1),INDEX(Planif.Birou[],,1),0),MATCH(DiferențăBirou[[#Headers],[Iun]],RealeBirou[#Headers],0))","v":{"v":0,"d":"0.00 lei"}},{"$f":"INDEX(Planif.Birou[],MATCH(INDEX(DiferențăBirou[],ROW()-ROW(DiferențăBirou[[#Headers],[Iul]]),1),INDEX(Planif.Birou[],,1),0),MATCH(DiferențăBirou[[#Headers],[Iul]],Planif.Birou[#Headers],0))-INDEX(RealeBirou[],MATCH(INDEX(DiferențăBirou[],ROW()-ROW(DiferențăBirou[[#Headers],[Iul]]),1),INDEX(Planif.Birou[],,1),0),MATCH(DiferențăBirou[[#Headers],[Iul]],RealeBirou[#Headers],0))","v":{"v":9800,"d":"9,800.00 lei"}},{"$f":"INDEX(Planif.Birou[],MATCH(INDEX(DiferențăBirou[],ROW()-ROW(DiferențăBirou[[#Headers],[Aug]]),1),INDEX(Planif.Birou[],,1),0),MATCH(DiferențăBirou[[#Headers],[Aug]],Planif.Birou[#Headers],0))-INDEX(RealeBirou[],MATCH(INDEX(DiferențăBirou[],ROW()-ROW(DiferențăBirou[[#Headers],[Aug]]),1),INDEX(Planif.Birou[],,1),0),MATCH(DiferențăBirou[[#Headers],[Aug]],RealeBirou[#Headers],0))","v":{"v":9800,"d":"9,800.00 lei"}},{"$f":"INDEX(Planif.Birou[],MATCH(INDEX(DiferențăBirou[],ROW()-ROW(DiferențăBirou[[#Headers],[Sep]]),1),INDEX(Planif.Birou[],,1),0),MATCH(DiferențăBirou[[#Headers],[Sep]],Planif.Birou[#Headers],0))-INDEX(RealeBirou[],MATCH(INDEX(DiferențăBirou[],ROW()-ROW(DiferențăBirou[[#Headers],[Sep]]),1),INDEX(Planif.Birou[],,1),0),MATCH(DiferențăBirou[[#Headers],[Sep]],RealeBirou[#Headers],0))","v":{"v":9800,"d":"9,800.00 lei"}},{"$f":"INDEX(Planif.Birou[],MATCH(INDEX(DiferențăBirou[],ROW()-ROW(DiferențăBirou[[#Headers],[Oct]]),1),INDEX(Planif.Birou[],,1),0),MATCH(DiferențăBirou[[#Headers],[Oct]],Planif.Birou[#Headers],0))-INDEX(RealeBirou[],MATCH(INDEX(DiferențăBirou[],ROW()-ROW(DiferențăBirou[[#Headers],[Oct]]),1),INDEX(Planif.Birou[],,1),0),MATCH(DiferențăBirou[[#Headers],[Oct]],RealeBirou[#Headers],0))","v":{"v":9800,"d":"9,800.00 lei"}},{"$f":"INDEX(Planif.Birou[],MATCH(INDEX(DiferențăBirou[],ROW()-ROW(DiferențăBirou[[#Headers],[Nov]]),1),INDEX(Planif.Birou[],,1),0),MATCH(DiferențăBirou[[#Headers],[Nov]],Planif.Birou[#Headers],0))-INDEX(RealeBirou[],MATCH(INDEX(DiferențăBirou[],ROW()-ROW(DiferențăBirou[[#Headers],[Nov]]),1),INDEX(Planif.Birou[],,1),0),MATCH(DiferențăBirou[[#Headers],[Nov]],RealeBirou[#Headers],0))","v":{"v":9800,"d":"9,800.00 lei"}},{"$f":"INDEX(Planif.Birou[],MATCH(INDEX(DiferențăBirou[],ROW()-ROW(DiferențăBirou[[#Headers],[Dec]]),1),INDEX(Planif.Birou[],,1),0),MATCH(DiferențăBirou[[#Headers],[Dec]],Planif.Birou[#Headers],0))-INDEX(RealeBirou[],MATCH(INDEX(DiferențăBirou[],ROW()-ROW(DiferențăBirou[[#Headers],[Dec]]),1),INDEX(Planif.Birou[],,1),0),MATCH(DiferențăBirou[[#Headers],[Dec]],RealeBirou[#Headers],0))","v":{"v":9800,"d":"9,800.00 lei"}},{"$f":"SUM(DiferențăBirou[[#This Row],[Ian]:[Dec]])","v":{"v":58800,"d":"58,800.00 lei"}}]
[null,"Gaze",{"$f":"INDEX(Planif.Birou[],MATCH(INDEX(DiferențăBirou[],ROW()-ROW(DiferențăBirou[[#Headers],[Ian]]),1),INDEX(Planif.Birou[],,1),0),MATCH(DiferențăBirou[[#Headers],[Ian]],Planif.Birou[#Headers],0))-INDEX(RealeBirou[],MATCH(INDEX(DiferențăBirou[],ROW()-ROW(DiferențăBirou[[#Headers],[Ian]]),1),INDEX(Planif.Birou[],,1),0),MATCH(DiferențăBirou[[#Headers],[Ian]],RealeBirou[#Headers],0))","v":{"v":-4,"d":"-4.00 lei"}},{"$f":"INDEX(Planif.Birou[],MATCH(INDEX(DiferențăBirou[],ROW()-ROW(DiferențăBirou[[#Headers],[Feb]]),1),INDEX(Planif.Birou[],,1),0),MATCH(DiferențăBirou[[#Headers],[Feb]],Planif.Birou[#Headers],0))-INDEX(RealeBirou[],MATCH(INDEX(DiferențăBirou[],ROW()-ROW(DiferențăBirou[[#Headers],[Feb]]),1),INDEX(Planif.Birou[],,1),0),MATCH(DiferențăBirou[[#Headers],[Feb]],RealeBirou[#Headers],0))","v":{"v":-30,"d":"-30.00 lei"}},{"$f":"INDEX(Planif.Birou[],MATCH(INDEX(DiferențăBirou[],ROW()-ROW(DiferențăBirou[[#Headers],[Mar]]),1),INDEX(Planif.Birou[],,1),0),MATCH(DiferențăBirou[[#Headers],[Mar]],Planif.Birou[#Headers],0))-INDEX(RealeBirou[],MATCH(INDEX(DiferențăBirou[],ROW()-ROW(DiferențăBirou[[#Headers],[Mar]]),1),INDEX(Planif.Birou[],,1),0),MATCH(DiferențăBirou[[#Headers],[Mar]],RealeBirou[#Headers],0))","v":{"v":15,"d":"15.00 lei"}},{"$f":"INDEX(Planif.Birou[],MATCH(INDEX(DiferențăBirou[],ROW()-ROW(DiferențăBirou[[#Headers],[Apr]]),1),INDEX(Planif.Birou[],,1),0),MATCH(DiferențăBirou[[#Headers],[Apr]],Planif.Birou[#Headers],0))-INDEX(RealeBirou[],MATCH(INDEX(DiferențăBirou[],ROW()-ROW(DiferențăBirou[[#Headers],[Apr]]),1),INDEX(Planif.Birou[],,1),0),MATCH(DiferențăBirou[[#Headers],[Apr]],RealeBirou[#Headers],0))","v":{"v":-130,"d":"-130.00 lei"}},{"$f":"INDEX(Planif.Birou[],MATCH(INDEX(DiferențăBirou[],ROW()-ROW(DiferențăBirou[[#Headers],[Mai]]),1),INDEX(Planif.Birou[],,1),0),MATCH(DiferențăBirou[[#Headers],[Mai]],Planif.Birou[#Headers],0))-INDEX(RealeBirou[],MATCH(INDEX(DiferențăBirou[],ROW()-ROW(DiferențăBirou[[#Headers],[Mai]]),1),INDEX(Planif.Birou[],,1),0),MATCH(DiferențăBirou[[#Headers],[Mai]],RealeBirou[#Headers],0))","v":{"v":13,"d":"13.00 lei"}},{"$f":"INDEX(Planif.Birou[],MATCH(INDEX(DiferențăBirou[],ROW()-ROW(DiferențăBirou[[#Headers],[Iun]]),1),INDEX(Planif.Birou[],,1),0),MATCH(DiferențăBirou[[#Headers],[Iun]],Planif.Birou[#Headers],0))-INDEX(RealeBirou[],MATCH(INDEX(DiferențăBirou[],ROW()-ROW(DiferențăBirou[[#Headers],[Iun]]),1),INDEX(Planif.Birou[],,1),0),MATCH(DiferențăBirou[[#Headers],[Iun]],RealeBirou[#Headers],0))","v":{"v":12,"d":"12.00 lei"}},{"$f":"INDEX(Planif.Birou[],MATCH(INDEX(DiferențăBirou[],ROW()-ROW(DiferențăBirou[[#Headers],[Iul]]),1),INDEX(Planif.Birou[],,1),0),MATCH(DiferențăBirou[[#Headers],[Iul]],Planif.Birou[#Headers],0))-INDEX(RealeBirou[],MATCH(INDEX(DiferențăBirou[],ROW()-ROW(DiferențăBirou[[#Headers],[Iul]]),1),INDEX(Planif.Birou[],,1),0),MATCH(DiferențăBirou[[#Headers],[Iul]],RealeBirou[#Headers],0))","v":{"v":100,"d":"100.00 lei"}},{"$f":"INDEX(Planif.Birou[],MATCH(INDEX(DiferențăBirou[],ROW()-ROW(DiferențăBirou[[#Headers],[Aug]]),1),INDEX(Planif.Birou[],,1),0),MATCH(DiferențăBirou[[#Headers],[Aug]],Planif.Birou[#Headers],0))-INDEX(RealeBirou[],MATCH(INDEX(DiferențăBirou[],ROW()-ROW(DiferențăBirou[[#Headers],[Aug]]),1),INDEX(Planif.Birou[],,1),0),MATCH(DiferențăBirou[[#Headers],[Aug]],RealeBirou[#Headers],0))","v":{"v":100,"d":"100.00 lei"}},{"$f":"INDEX(Planif.Birou[],MATCH(INDEX(DiferențăBirou[],ROW()-ROW(DiferențăBirou[[#Headers],[Sep]]),1),INDEX(Planif.Birou[],,1),0),MATCH(DiferențăBirou[[#Headers],[Sep]],Planif.Birou[#Headers],0))-INDEX(RealeBirou[],MATCH(INDEX(DiferențăBirou[],ROW()-ROW(DiferențăBirou[[#Headers],[Sep]]),1),INDEX(Planif.Birou[],,1),0),MATCH(DiferențăBirou[[#Headers],[Sep]],RealeBirou[#Headers],0))","v":{"v":100,"d":"100.00 lei"}},{"$f":"INDEX(Planif.Birou[],MATCH(INDEX(DiferențăBirou[],ROW()-ROW(DiferențăBirou[[#Headers],[Oct]]),1),INDEX(Planif.Birou[],,1),0),MATCH(DiferențăBirou[[#Headers],[Oct]],Planif.Birou[#Headers],0))-INDEX(RealeBirou[],MATCH(INDEX(DiferențăBirou[],ROW()-ROW(DiferențăBirou[[#Headers],[Oct]]),1),INDEX(Planif.Birou[],,1),0),MATCH(DiferențăBirou[[#Headers],[Oct]],RealeBirou[#Headers],0))","v":{"v":100,"d":"100.00 lei"}},{"$f":"INDEX(Planif.Birou[],MATCH(INDEX(DiferențăBirou[],ROW()-ROW(DiferențăBirou[[#Headers],[Nov]]),1),INDEX(Planif.Birou[],,1),0),MATCH(DiferențăBirou[[#Headers],[Nov]],Planif.Birou[#Headers],0))-INDEX(RealeBirou[],MATCH(INDEX(DiferențăBirou[],ROW()-ROW(DiferențăBirou[[#Headers],[Nov]]),1),INDEX(Planif.Birou[],,1),0),MATCH(DiferențăBirou[[#Headers],[Nov]],RealeBirou[#Headers],0))","v":{"v":400,"d":"400.00 lei"}},{"$f":"INDEX(Planif.Birou[],MATCH(INDEX(DiferențăBirou[],ROW()-ROW(DiferențăBirou[[#Headers],[Dec]]),1),INDEX(Planif.Birou[],,1),0),MATCH(DiferențăBirou[[#Headers],[Dec]],Planif.Birou[#Headers],0))-INDEX(RealeBirou[],MATCH(INDEX(DiferențăBirou[],ROW()-ROW(DiferențăBirou[[#Headers],[Dec]]),1),INDEX(Planif.Birou[],,1),0),MATCH(DiferențăBirou[[#Headers],[Dec]],RealeBirou[#Headers],0))","v":{"v":400,"d":"400.00 lei"}},{"$f":"SUM(DiferențăBirou[[#This Row],[Ian]:[Dec]])","v":{"v":1076,"d":"1,076.00 lei"}}]
[null,"Curent electric",{"$f":"INDEX(Planif.Birou[],MATCH(INDEX(DiferențăBirou[],ROW()-ROW(DiferențăBirou[[#Headers],[Ian]]),1),INDEX(Planif.Birou[],,1),0),MATCH(DiferențăBirou[[#Headers],[Ian]],Planif.Birou[#Headers],0))-INDEX(RealeBirou[],MATCH(INDEX(DiferențăBirou[],ROW()-ROW(DiferențăBirou[[#Headers],[Ian]]),1),INDEX(Planif.Birou[],,1),0),MATCH(DiferențăBirou[[#Headers],[Ian]],RealeBirou[#Headers],0))","v":{"v":12,"d":"12.00 lei"}},{"$f":"INDEX(Planif.Birou[],MATCH(INDEX(DiferențăBirou[],ROW()-ROW(DiferențăBirou[[#Headers],[Feb]]),1),INDEX(Planif.Birou[],,1),0),MATCH(DiferențăBirou[[#Headers],[Feb]],Planif.Birou[#Headers],0))-INDEX(RealeBirou[],MATCH(INDEX(DiferențăBirou[],ROW()-ROW(DiferențăBirou[[#Headers],[Feb]]),1),INDEX(Planif.Birou[],,1),0),MATCH(DiferențăBirou[[#Headers],[Feb]],RealeBirou[#Headers],0))","v":{"v":22,"d":"22.00 lei"}},{"$f":"INDEX(Planif.Birou[],MATCH(INDEX(DiferențăBirou[],ROW()-ROW(DiferențăBirou[[#Headers],[Mar]]),1),INDEX(Planif.Birou[],,1),0),MATCH(DiferențăBirou[[#Headers],[Mar]],Planif.Birou[#Headers],0))-INDEX(RealeBirou[],MATCH(INDEX(DiferențăBirou[],ROW()-ROW(DiferențăBirou[[#Headers],[Mar]]),1),INDEX(Planif.Birou[],,1),0),MATCH(DiferențăBirou[[#Headers],[Mar]],RealeBirou[#Headers],0))","v":{"v":32,"d":"32.00 lei"}},{"$f":"INDEX(Planif.Birou[],MATCH(INDEX(DiferențăBirou[],ROW()-ROW(DiferențăBirou[[#Headers],[Apr]]),1),INDEX(Planif.Birou[],,1),0),MATCH(DiferențăBirou[[#Headers],[Apr]],Planif.Birou[#Headers],0))-INDEX(RealeBirou[],MATCH(INDEX(DiferențăBirou[],ROW()-ROW(DiferențăBirou[[#Headers],[Apr]]),1),INDEX(Planif.Birou[],,1),0),MATCH(DiferențăBirou[[#Headers],[Apr]],RealeBirou[#Headers],0))","v":{"v":1,"d":"1.00 lei"}},{"$f":"INDEX(Planif.Birou[],MATCH(INDEX(DiferențăBirou[],ROW()-ROW(DiferențăBirou[[#Headers],[Mai]]),1),INDEX(Planif.Birou[],,1),0),MATCH(DiferențăBirou[[#Headers],[Mai]],Planif.Birou[#Headers],0))-INDEX(RealeBirou[],MATCH(INDEX(DiferențăBirou[],ROW()-ROW(DiferențăBirou[[#Headers],[Mai]]),1),INDEX(Planif.Birou[],,1),0),MATCH(DiferențăBirou[[#Headers],[Mai]],RealeBirou[#Headers],0))","v":{"v":-6,"d":"-6.00 lei"}},{"$f":"INDEX(Planif.Birou[],MATCH(INDEX(DiferențăBirou[],ROW()-ROW(DiferențăBirou[[#Headers],[Iun]]),1),INDEX(Planif.Birou[],,1),0),MATCH(DiferențăBirou[[#Headers],[Iun]],Planif.Birou[#Headers],0))-INDEX(RealeBirou[],MATCH(INDEX(DiferențăBirou[],ROW()-ROW(DiferențăBirou[[#Headers],[Iun]]),1),INDEX(Planif.Birou[],,1),0),MATCH(DiferențăBirou[[#Headers],[Iun]],RealeBirou[#Headers],0))","v":{"v":10,"d":"10.00 lei"}},{"$f":"INDEX(Planif.Birou[],MATCH(INDEX(DiferențăBirou[],ROW()-ROW(DiferențăBirou[[#Headers],[Iul]]),1),INDEX(Planif.Birou[],,1),0),MATCH(DiferențăBirou[[#Headers],[Iul]],Planif.Birou[#Headers],0))-INDEX(RealeBirou[],MATCH(INDEX(DiferențăBirou[],ROW()-ROW(DiferențăBirou[[#Headers],[Iul]]),1),INDEX(Planif.Birou[],,1),0),MATCH(DiferențăBirou[[#Headers],[Iul]],RealeBirou[#Headers],0))","v":{"v":300,"d":"300.00 lei"}},{"$f":"INDEX(Planif.Birou[],MATCH(INDEX(DiferențăBirou[],ROW()-ROW(DiferențăBirou[[#Headers],[Aug]]),1),INDEX(Planif.Birou[],,1),0),MATCH(DiferențăBirou[[#Headers],[Aug]],Planif.Birou[#Headers],0))-INDEX(RealeBirou[],MATCH(INDEX(DiferențăBirou[],ROW()-ROW(DiferențăBirou[[#Headers],[Aug]]),1),INDEX(Planif.Birou[],,1),0),MATCH(DiferențăBirou[[#Headers],[Aug]],RealeBirou[#Headers],0))","v":{"v":300,"d":"300.00 lei"}},{"$f":"INDEX(Planif.Birou[],MATCH(INDEX(DiferențăBirou[],ROW()-ROW(DiferențăBirou[[#Headers],[Sep]]),1),INDEX(Planif.Birou[],,1),0),MATCH(DiferențăBirou[[#Headers],[Sep]],Planif.Birou[#Headers],0))-INDEX(RealeBirou[],MATCH(INDEX(DiferențăBirou[],ROW()-ROW(DiferențăBirou[[#Headers],[Sep]]),1),INDEX(Planif.Birou[],,1),0),MATCH(DiferențăBirou[[#Headers],[Sep]],RealeBirou[#Headers],0))","v":{"v":300,"d":"300.00 lei"}},{"$f":"INDEX(Planif.Birou[],MATCH(INDEX(DiferențăBirou[],ROW()-ROW(DiferențăBirou[[#Headers],[Oct]]),1),INDEX(Planif.Birou[],,1),0),MATCH(DiferențăBirou[[#Headers],[Oct]],Planif.Birou[#Headers],0))-INDEX(RealeBirou[],MATCH(INDEX(DiferențăBirou[],ROW()-ROW(DiferențăBirou[[#Headers],[Oct]]),1),INDEX(Planif.Birou[],,1),0),MATCH(DiferențăBirou[[#Headers],[Oct]],RealeBirou[#Headers],0))","v":{"v":300,"d":"300.00 lei"}},{"$f":"INDEX(Planif.Birou[],MATCH(INDEX(DiferențăBirou[],ROW()-ROW(DiferențăBirou[[#Headers],[Nov]]),1),INDEX(Planif.Birou[],,1),0),MATCH(DiferențăBirou[[#Headers],[Nov]],Planif.Birou[#Headers],0))-INDEX(RealeBirou[],MATCH(INDEX(DiferențăBirou[],ROW()-ROW(DiferențăBirou[[#Headers],[Nov]]),1),INDEX(Planif.Birou[],,1),0),MATCH(DiferențăBirou[[#Headers],[Nov]],RealeBirou[#Headers],0))","v":{"v":300,"d":"300.00 lei"}},{"$f":"INDEX(Planif.Birou[],MATCH(INDEX(DiferențăBirou[],ROW()-ROW(DiferențăBirou[[#Headers],[Dec]]),1),INDEX(Planif.Birou[],,1),0),MATCH(DiferențăBirou[[#Headers],[Dec]],Planif.Birou[#Headers],0))-INDEX(RealeBirou[],MATCH(INDEX(DiferențăBirou[],ROW()-ROW(DiferențăBirou[[#Headers],[Dec]]),1),INDEX(Planif.Birou[],,1),0),MATCH(DiferențăBirou[[#Headers],[Dec]],RealeBirou[#Headers],0))","v":{"v":300,"d":"300.00 lei"}},{"$f":"SUM(DiferențăBirou[[#This Row],[Ian]:[Dec]])","v":{"v":1871,"d":"1,871.00 lei"}}]
[null,"Apă",{"$f":"INDEX(Planif.Birou[],MATCH(INDEX(DiferențăBirou[],ROW()-ROW(DiferențăBirou[[#Headers],[Ian]]),1),INDEX(Planif.Birou[],,1),0),MATCH(DiferențăBirou[[#Headers],[Ian]],Planif.Birou[#Headers],0))-INDEX(RealeBirou[],MATCH(INDEX(DiferențăBirou[],ROW()-ROW(DiferențăBirou[[#Headers],[Ian]]),1),INDEX(Planif.Birou[],,1),0),MATCH(DiferențăBirou[[#Headers],[Ian]],RealeBirou[#Headers],0))","v":{"v":5,"d":"5.00 lei"}},{"$f":"INDEX(Planif.Birou[],MATCH(INDEX(DiferențăBirou[],ROW()-ROW(DiferențăBirou[[#Headers],[Feb]]),1),INDEX(Planif.Birou[],,1),0),MATCH(DiferențăBirou[[#Headers],[Feb]],Planif.Birou[#Headers],0))-INDEX(RealeBirou[],MATCH(INDEX(DiferențăBirou[],ROW()-ROW(DiferențăBirou[[#Headers],[Feb]]),1),INDEX(Planif.Birou[],,1),0),MATCH(DiferențăBirou[[#Headers],[Feb]],RealeBirou[#Headers],0))","v":{"v":7,"d":"7.00 lei"}},{"$f":"INDEX(Planif.Birou[],MATCH(INDEX(DiferențăBirou[],ROW()-ROW(DiferențăBirou[[#Headers],[Mar]]),1),INDEX(Planif.Birou[],,1),0),MATCH(DiferențăBirou[[#Headers],[Mar]],Planif.Birou[#Headers],0))-INDEX(RealeBirou[],MATCH(INDEX(DiferențăBirou[],ROW()-ROW(DiferențăBirou[[#Headers],[Mar]]),1),INDEX(Planif.Birou[],,1),0),MATCH(DiferențăBirou[[#Headers],[Mar]],RealeBirou[#Headers],0))","v":{"v":6,"d":"6.00 lei"}},{"$f":"INDEX(Planif.Birou[],MATCH(INDEX(DiferențăBirou[],ROW()-ROW(DiferențăBirou[[#Headers],[Apr]]),1),INDEX(Planif.Birou[],,1),0),MATCH(DiferențăBirou[[#Headers],[Apr]],Planif.Birou[#Headers],0))-INDEX(RealeBirou[],MATCH(INDEX(DiferențăBirou[],ROW()-ROW(DiferențăBirou[[#Headers],[Apr]]),1),INDEX(Planif.Birou[],,1),0),MATCH(DiferențăBirou[[#Headers],[Apr]],RealeBirou[#Headers],0))","v":{"v":4,"d":"4.00 lei"}},{"$f":"INDEX(Planif.Birou[],MATCH(INDEX(DiferențăBirou[],ROW()-ROW(DiferențăBirou[[#Headers],[Mai]]),1),INDEX(Planif.Birou[],,1),0),MATCH(DiferențăBirou[[#Headers],[Mai]],Planif.Birou[#Headers],0))-INDEX(RealeBirou[],MATCH(INDEX(DiferențăBirou[],ROW()-ROW(DiferențăBirou[[#Headers],[Mai]]),1),INDEX(Planif.Birou[],,1),0),MATCH(DiferențăBirou[[#Headers],[Mai]],RealeBirou[#Headers],0))","v":{"v":6,"d":"6.00 lei"}},{"$f":"INDEX(Planif.Birou[],MATCH(INDEX(DiferențăBirou[],ROW()-ROW(DiferențăBirou[[#Headers],[Iun]]),1),INDEX(Planif.Birou[],,1),0),MATCH(DiferențăBirou[[#Headers],[Iun]],Planif.Birou[#Headers],0))-INDEX(RealeBirou[],MATCH(INDEX(DiferențăBirou[],ROW()-ROW(DiferențăBirou[[#Headers],[Iun]]),1),INDEX(Planif.Birou[],,1),0),MATCH(DiferențăBirou[[#Headers],[Iun]],RealeBirou[#Headers],0))","v":{"v":4,"d":"4.00 lei"}},{"$f":"INDEX(Planif.Birou[],MATCH(INDEX(DiferențăBirou[],ROW()-ROW(DiferențăBirou[[#Headers],[Iul]]),1),INDEX(Planif.Birou[],,1),0),MATCH(DiferențăBirou[[#Headers],[Iul]],Planif.Birou[#Headers],0))-INDEX(RealeBirou[],MATCH(INDEX(DiferențăBirou[],ROW()-ROW(DiferențăBirou[[#Headers],[Iul]]),1),INDEX(Planif.Birou[],,1),0),MATCH(DiferențăBirou[[#Headers],[Iul]],RealeBirou[#Headers],0))","v":{"v":40,"d":"40.00 lei"}},{"$f":"INDEX(Planif.Birou[],MATCH(INDEX(DiferențăBirou[],ROW()-ROW(DiferențăBirou[[#Headers],[Aug]]),1),INDEX(Planif.Birou[],,1),0),MATCH(DiferențăBirou[[#Headers],[Aug]],Planif.Birou[#Headers],0))-INDEX(RealeBirou[],MATCH(INDEX(DiferențăBirou[],ROW()-ROW(DiferențăBirou[[#Headers],[Aug]]),1),INDEX(Planif.Birou[],,1),0),MATCH(DiferențăBirou[[#Headers],[Aug]],RealeBirou[#Headers],0))","v":{"v":40,"d":"40.00 lei"}},{"$f":"INDEX(Planif.Birou[],MATCH(INDEX(DiferențăBirou[],ROW()-ROW(DiferențăBirou[[#Headers],[Sep]]),1),INDEX(Planif.Birou[],,1),0),MATCH(DiferențăBirou[[#Headers],[Sep]],Planif.Birou[#Headers],0))-INDEX(RealeBirou[],MATCH(INDEX(DiferențăBirou[],ROW()-ROW(DiferențăBirou[[#Headers],[Sep]]),1),INDEX(Planif.Birou[],,1),0),MATCH(DiferențăBirou[[#Headers],[Sep]],RealeBirou[#Headers],0))","v":{"v":40,"d":"40.00 lei"}},{"$f":"INDEX(Planif.Birou[],MATCH(INDEX(DiferențăBirou[],ROW()-ROW(DiferențăBirou[[#Headers],[Oct]]),1),INDEX(Planif.Birou[],,1),0),MATCH(DiferențăBirou[[#Headers],[Oct]],Planif.Birou[#Headers],0))-INDEX(RealeBirou[],MATCH(INDEX(DiferențăBirou[],ROW()-ROW(DiferențăBirou[[#Headers],[Oct]]),1),INDEX(Planif.Birou[],,1),0),MATCH(DiferențăBirou[[#Headers],[Oct]],RealeBirou[#Headers],0))","v":{"v":40,"d":"40.00 lei"}},{"$f":"INDEX(Planif.Birou[],MATCH(INDEX(DiferențăBirou[],ROW()-ROW(DiferențăBirou[[#Headers],[Nov]]),1),INDEX(Planif.Birou[],,1),0),MATCH(DiferențăBirou[[#Headers],[Nov]],Planif.Birou[#Headers],0))-INDEX(RealeBirou[],MATCH(INDEX(DiferențăBirou[],ROW()-ROW(DiferențăBirou[[#Headers],[Nov]]),1),INDEX(Planif.Birou[],,1),0),MATCH(DiferențăBirou[[#Headers],[Nov]],RealeBirou[#Headers],0))","v":{"v":40,"d":"40.00 lei"}},{"$f":"INDEX(Planif.Birou[],MATCH(INDEX(DiferențăBirou[],ROW()-ROW(DiferențăBirou[[#Headers],[Dec]]),1),INDEX(Planif.Birou[],,1),0),MATCH(DiferențăBirou[[#Headers],[Dec]],Planif.Birou[#Headers],0))-INDEX(RealeBirou[],MATCH(INDEX(DiferențăBirou[],ROW()-ROW(DiferențăBirou[[#Headers],[Dec]]),1),INDEX(Planif.Birou[],,1),0),MATCH(DiferențăBirou[[#Headers],[Dec]],RealeBirou[#Headers],0))","v":{"v":40,"d":"40.00 lei"}},{"$f":"SUM(DiferențăBirou[[#This Row],[Ian]:[Dec]])","v":{"v":272,"d":"272.00 lei"}}]
[null,"Telefon",{"$f":"INDEX(Planif.Birou[],MATCH(INDEX(DiferențăBirou[],ROW()-ROW(DiferențăBirou[[#Headers],[Ian]]),1),INDEX(Planif.Birou[],,1),0),MATCH(DiferențăBirou[[#Headers],[Ian]],Planif.Birou[#Headers],0))-INDEX(RealeBirou[],MATCH(INDEX(DiferențăBirou[],ROW()-ROW(DiferențăBirou[[#Headers],[Ian]]),1),INDEX(Planif.Birou[],,1),0),MATCH(DiferențăBirou[[#Headers],[Ian]],RealeBirou[#Headers],0))","v":{"v":26,"d":"26.00 lei"}},{"$f":"INDEX(Planif.Birou[],MATCH(INDEX(DiferențăBirou[],ROW()-ROW(DiferențăBirou[[#Headers],[Feb]]),1),INDEX(Planif.Birou[],,1),0),MATCH(DiferențăBirou[[#Headers],[Feb]],Planif.Birou[#Headers],0))-INDEX(RealeBirou[],MATCH(INDEX(DiferențăBirou[],ROW()-ROW(DiferențăBirou[[#Headers],[Feb]]),1),INDEX(Planif.Birou[],,1),0),MATCH(DiferențăBirou[[#Headers],[Feb]],RealeBirou[#Headers],0))","v":{"v":15,"d":"15.00 lei"}},{"$f":"INDEX(Planif.Birou[],MATCH(INDEX(DiferențăBirou[],ROW()-ROW(DiferențăBirou[[#Headers],[Mar]]),1),INDEX(Planif.Birou[],,1),0),MATCH(DiferențăBirou[[#Headers],[Mar]],Planif.Birou[#Headers],0))-INDEX(RealeBirou[],MATCH(INDEX(DiferențăBirou[],ROW()-ROW(DiferențăBirou[[#Headers],[Mar]]),1),INDEX(Planif.Birou[],,1),0),MATCH(DiferențăBirou[[#Headers],[Mar]],RealeBirou[#Headers],0))","v":{"v":-15,"d":"-15.00 lei"}},{"$f":"INDEX(Planif.Birou[],MATCH(INDEX(DiferențăBirou[],ROW()-ROW(DiferențăBirou[[#Headers],[Apr]]),1),INDEX(Planif.Birou[],,1),0),MATCH(DiferențăBirou[[#Headers],[Apr]],Planif.Birou[#Headers],0))-INDEX(RealeBirou[],MATCH(INDEX(DiferențăBirou[],ROW()-ROW(DiferențăBirou[[#Headers],[Apr]]),1),INDEX(Planif.Birou[],,1),0),MATCH(DiferențăBirou[[#Headers],[Apr]],RealeBirou[#Headers],0))","v":{"v":5,"d":"5.00 lei"}},{"$f":"INDEX(Planif.Birou[],MATCH(INDEX(DiferențăBirou[],ROW()-ROW(DiferențăBirou[[#Headers],[Mai]]),1),INDEX(Planif.Birou[],,1),0),MATCH(DiferențăBirou[[#Headers],[Mai]],Planif.Birou[#Headers],0))-INDEX(RealeBirou[],MATCH(INDEX(DiferențăBirou[],ROW()-ROW(DiferențăBirou[[#Headers],[Mai]]),1),INDEX(Planif.Birou[],,1),0),MATCH(DiferențăBirou[[#Headers],[Mai]],RealeBirou[#Headers],0))","v":{"v":5,"d":"5.00 lei"}},{"$f":"INDEX(Planif.Birou[],MATCH(INDEX(DiferențăBirou[],ROW()-ROW(DiferențăBirou[[#Headers],[Iun]]),1),INDEX(Planif.Birou[],,1),0),MATCH(DiferențăBirou[[#Headers],[Iun]],Planif.Birou[#Headers],0))-INDEX(RealeBirou[],MATCH(INDEX(DiferențăBirou[],ROW()-ROW(DiferențăBirou[[#Headers],[Iun]]),1),INDEX(Planif.Birou[],,1),0),MATCH(DiferențăBirou[[#Headers],[Iun]],RealeBirou[#Headers],0))","v":{"v":30,"d":"30.00 lei"}},{"$f":"INDEX(Planif.Birou[],MATCH(INDEX(DiferențăBirou[],ROW()-ROW(DiferențăBirou[[#Headers],[Iul]]),1),INDEX(Planif.Birou[],,1),0),MATCH(DiferențăBirou[[#Headers],[Iul]],Planif.Birou[#Headers],0))-INDEX(RealeBirou[],MATCH(INDEX(DiferențăBirou[],ROW()-ROW(DiferențăBirou[[#Headers],[Iul]]),1),INDEX(Planif.Birou[],,1),0),MATCH(DiferențăBirou[[#Headers],[Iul]],RealeBirou[#Headers],0))","v":{"v":250,"d":"250.00 lei"}},{"$f":"INDEX(Planif.Birou[],MATCH(INDEX(DiferențăBirou[],ROW()-ROW(DiferențăBirou[[#Headers],[Aug]]),1),INDEX(Planif.Birou[],,1),0),MATCH(DiferențăBirou[[#Headers],[Aug]],Planif.Birou[#Headers],0))-INDEX(RealeBirou[],MATCH(INDEX(DiferențăBirou[],ROW()-ROW(DiferențăBirou[[#Headers],[Aug]]),1),INDEX(Planif.Birou[],,1),0),MATCH(DiferențăBirou[[#Headers],[Aug]],RealeBirou[#Headers],0))","v":{"v":250,"d":"250.00 lei"}},{"$f":"INDEX(Planif.Birou[],MATCH(INDEX(DiferențăBirou[],ROW()-ROW(DiferențăBirou[[#Headers],[Sep]]),1),INDEX(Planif.Birou[],,1),0),MATCH(DiferențăBirou[[#Headers],[Sep]],Planif.Birou[#Headers],0))-INDEX(RealeBirou[],MATCH(INDEX(DiferențăBirou[],ROW()-ROW(DiferențăBirou[[#Headers],[Sep]]),1),INDEX(Planif.Birou[],,1),0),MATCH(DiferențăBirou[[#Headers],[Sep]],RealeBirou[#Headers],0))","v":{"v":250,"d":"250.00 lei"}},{"$f":"INDEX(Planif.Birou[],MATCH(INDEX(DiferențăBirou[],ROW()-ROW(DiferențăBirou[[#Headers],[Oct]]),1),INDEX(Planif.Birou[],,1),0),MATCH(DiferențăBirou[[#Headers],[Oct]],Planif.Birou[#Headers],0))-INDEX(RealeBirou[],MATCH(INDEX(DiferențăBirou[],ROW()-ROW(DiferențăBirou[[#Headers],[Oct]]),1),INDEX(Planif.Birou[],,1),0),MATCH(DiferențăBirou[[#Headers],[Oct]],RealeBirou[#Headers],0))","v":{"v":250,"d":"250.00 lei"}},{"$f":"INDEX(Planif.Birou[],MATCH(INDEX(DiferențăBirou[],ROW()-ROW(DiferențăBirou[[#Headers],[Nov]]),1),INDEX(Planif.Birou[],,1),0),MATCH(DiferențăBirou[[#Headers],[Nov]],Planif.Birou[#Headers],0))-INDEX(RealeBirou[],MATCH(INDEX(DiferențăBirou[],ROW()-ROW(DiferențăBirou[[#Headers],[Nov]]),1),INDEX(Planif.Birou[],,1),0),MATCH(DiferențăBirou[[#Headers],[Nov]],RealeBirou[#Headers],0))","v":{"v":250,"d":"250.00 lei"}},{"$f":"INDEX(Planif.Birou[],MATCH(INDEX(DiferențăBirou[],ROW()-ROW(DiferențăBirou[[#Headers],[Dec]]),1),INDEX(Planif.Birou[],,1),0),MATCH(DiferențăBirou[[#Headers],[Dec]],Planif.Birou[#Headers],0))-INDEX(RealeBirou[],MATCH(INDEX(DiferențăBirou[],ROW()-ROW(DiferențăBirou[[#Headers],[Dec]]),1),INDEX(Planif.Birou[],,1),0),MATCH(DiferențăBirou[[#Headers],[Dec]],RealeBirou[#Headers],0))","v":{"v":250,"d":"250.00 lei"}},{"$f":"SUM(DiferențăBirou[[#This Row],[Ian]:[Dec]])","v":{"v":1566,"d":"1,566.00 lei"}}]
[null,"Acces la internet",{"$f":"INDEX(Planif.Birou[],MATCH(INDEX(DiferențăBirou[],ROW()-ROW(DiferențăBirou[[#Headers],[Ian]]),1),INDEX(Planif.Birou[],,1),0),MATCH(DiferențăBirou[[#Headers],[Ian]],Planif.Birou[#Headers],0))-INDEX(RealeBirou[],MATCH(INDEX(DiferențăBirou[],ROW()-ROW(DiferențăBirou[[#Headers],[Ian]]),1),INDEX(Planif.Birou[],,1),0),MATCH(DiferențăBirou[[#Headers],[Ian]],RealeBirou[#Headers],0))","v":{"v":0,"d":"0.00 lei"}},{"$f":"INDEX(Planif.Birou[],MATCH(INDEX(DiferențăBirou[],ROW()-ROW(DiferențăBirou[[#Headers],[Feb]]),1),INDEX(Planif.Birou[],,1),0),MATCH(DiferențăBirou[[#Headers],[Feb]],Planif.Birou[#Headers],0))-INDEX(RealeBirou[],MATCH(INDEX(DiferențăBirou[],ROW()-ROW(DiferențăBirou[[#Headers],[Feb]]),1),INDEX(Planif.Birou[],,1),0),MATCH(DiferențăBirou[[#Headers],[Feb]],RealeBirou[#Headers],0))","v":{"v":0,"d":"0.00 lei"}},{"$f":"INDEX(Planif.Birou[],MATCH(INDEX(DiferențăBirou[],ROW()-ROW(DiferențăBirou[[#Headers],[Mar]]),1),INDEX(Planif.Birou[],,1),0),MATCH(DiferențăBirou[[#Headers],[Mar]],Planif.Birou[#Headers],0))-INDEX(RealeBirou[],MATCH(INDEX(DiferențăBirou[],ROW()-ROW(DiferențăBirou[[#Headers],[Mar]]),1),INDEX(Planif.Birou[],,1),0),MATCH(DiferențăBirou[[#Headers],[Mar]],RealeBirou[#Headers],0))","v":{"v":0,"d":"0.00 lei"}},{"$f":"INDEX(Planif.Birou[],MATCH(INDEX(DiferențăBirou[],ROW()-ROW(DiferențăBirou[[#Headers],[Apr]]),1),INDEX(Planif.Birou[],,1),0),MATCH(DiferențăBirou[[#Headers],[Apr]],Planif.Birou[#Headers],0))-INDEX(RealeBirou[],MATCH(INDEX(DiferențăBirou[],ROW()-ROW(DiferențăBirou[[#Headers],[Apr]]),1),INDEX(Planif.Birou[],,1),0),MATCH(DiferențăBirou[[#Headers],[Apr]],RealeBirou[#Headers],0))","v":{"v":0,"d":"0.00 lei"}},{"$f":"INDEX(Planif.Birou[],MATCH(INDEX(DiferențăBirou[],ROW()-ROW(DiferențăBirou[[#Headers],[Mai]]),1),INDEX(Planif.Birou[],,1),0),MATCH(DiferențăBirou[[#Headers],[Mai]],Planif.Birou[#Headers],0))-INDEX(RealeBirou[],MATCH(INDEX(DiferențăBirou[],ROW()-ROW(DiferențăBirou[[#Headers],[Mai]]),1),INDEX(Planif.Birou[],,1),0),MATCH(DiferențăBirou[[#Headers],[Mai]],RealeBirou[#Headers],0))","v":{"v":0,"d":"0.00 lei"}},{"$f":"INDEX(Planif.Birou[],MATCH(INDEX(DiferențăBirou[],ROW()-ROW(DiferențăBirou[[#Headers],[Iun]]),1),INDEX(Planif.Birou[],,1),0),MATCH(DiferențăBirou[[#Headers],[Iun]],Planif.Birou[#Headers],0))-INDEX(RealeBirou[],MATCH(INDEX(DiferențăBirou[],ROW()-ROW(DiferențăBirou[[#Headers],[Iun]]),1),INDEX(Planif.Birou[],,1),0),MATCH(DiferențăBirou[[#Headers],[Iun]],RealeBirou[#Headers],0))","v":{"v":0,"d":"0.00 lei"}},{"$f":"INDEX(Planif.Birou[],MATCH(INDEX(DiferențăBirou[],ROW()-ROW(DiferențăBirou[[#Headers],[Iul]]),1),INDEX(Planif.Birou[],,1),0),MATCH(DiferențăBirou[[#Headers],[Iul]],Planif.Birou[#Headers],0))-INDEX(RealeBirou[],MATCH(INDEX(DiferențăBirou[],ROW()-ROW(DiferențăBirou[[#Headers],[Iul]]),1),INDEX(Planif.Birou[],,1),0),MATCH(DiferențăBirou[[#Headers],[Iul]],RealeBirou[#Headers],0))","v":{"v":180,"d":"180.00 lei"}},{"$f":"INDEX(Planif.Birou[],MATCH(INDEX(DiferențăBirou[],ROW()-ROW(DiferențăBirou[[#Headers],[Aug]]),1),INDEX(Planif.Birou[],,1),0),MATCH(DiferențăBirou[[#Headers],[Aug]],Planif.Birou[#Headers],0))-INDEX(RealeBirou[],MATCH(INDEX(DiferențăBirou[],ROW()-ROW(DiferențăBirou[[#Headers],[Aug]]),1),INDEX(Planif.Birou[],,1),0),MATCH(DiferențăBirou[[#Headers],[Aug]],RealeBirou[#Headers],0))","v":{"v":180,"d":"180.00 lei"}},{"$f":"INDEX(Planif.Birou[],MATCH(INDEX(DiferențăBirou[],ROW()-ROW(DiferențăBirou[[#Headers],[Sep]]),1),INDEX(Planif.Birou[],,1),0),MATCH(DiferențăBirou[[#Headers],[Sep]],Planif.Birou[#Headers],0))-INDEX(RealeBirou[],MATCH(INDEX(DiferențăBirou[],ROW()-ROW(DiferențăBirou[[#Headers],[Sep]]),1),INDEX(Planif.Birou[],,1),0),MATCH(DiferențăBirou[[#Headers],[Sep]],RealeBirou[#Headers],0))","v":{"v":180,"d":"180.00 lei"}},{"$f":"INDEX(Planif.Birou[],MATCH(INDEX(DiferențăBirou[],ROW()-ROW(DiferențăBirou[[#Headers],[Oct]]),1),INDEX(Planif.Birou[],,1),0),MATCH(DiferențăBirou[[#Headers],[Oct]],Planif.Birou[#Headers],0))-INDEX(RealeBirou[],MATCH(INDEX(DiferențăBirou[],ROW()-ROW(DiferențăBirou[[#Headers],[Oct]]),1),INDEX(Planif.Birou[],,1),0),MATCH(DiferențăBirou[[#Headers],[Oct]],RealeBirou[#Headers],0))","v":{"v":180,"d":"180.00 lei"}},{"$f":"INDEX(Planif.Birou[],MATCH(INDEX(DiferențăBirou[],ROW()-ROW(DiferențăBirou[[#Headers],[Nov]]),1),INDEX(Planif.Birou[],,1),0),MATCH(DiferențăBirou[[#Headers],[Nov]],Planif.Birou[#Headers],0))-INDEX(RealeBirou[],MATCH(INDEX(DiferențăBirou[],ROW()-ROW(DiferențăBirou[[#Headers],[Nov]]),1),INDEX(Planif.Birou[],,1),0),MATCH(DiferențăBirou[[#Headers],[Nov]],RealeBirou[#Headers],0))","v":{"v":180,"d":"180.00 lei"}},{"$f":"INDEX(Planif.Birou[],MATCH(INDEX(DiferențăBirou[],ROW()-ROW(DiferențăBirou[[#Headers],[Dec]]),1),INDEX(Planif.Birou[],,1),0),MATCH(DiferențăBirou[[#Headers],[Dec]],Planif.Birou[#Headers],0))-INDEX(RealeBirou[],MATCH(INDEX(DiferențăBirou[],ROW()-ROW(DiferențăBirou[[#Headers],[Dec]]),1),INDEX(Planif.Birou[],,1),0),MATCH(DiferențăBirou[[#Headers],[Dec]],RealeBirou[#Headers],0))","v":{"v":180,"d":"180.00 lei"}},{"$f":"SUM(DiferențăBirou[[#This Row],[Ian]:[Dec]])","v":{"v":1080,"d":"1,080.00 lei"}}]
[null,"Consumabile de birou",{"$f":"INDEX(Planif.Birou[],MATCH(INDEX(DiferențăBirou[],ROW()-ROW(DiferențăBirou[[#Headers],[Ian]]),1),INDEX(Planif.Birou[],,1),0),MATCH(DiferențăBirou[[#Headers],[Ian]],Planif.Birou[#Headers],0))-INDEX(RealeBirou[],MATCH(INDEX(DiferențăBirou[],ROW()-ROW(DiferențăBirou[[#Headers],[Ian]]),1),INDEX(Planif.Birou[],,1),0),MATCH(DiferențăBirou[[#Headers],[Ian]],RealeBirou[#Headers],0))","v":{"v":-56,"d":"-56.00 lei"}},{"$f":"INDEX(Planif.Birou[],MATCH(INDEX(DiferențăBirou[],ROW()-ROW(DiferențăBirou[[#Headers],[Feb]]),1),INDEX(Planif.Birou[],,1),0),MATCH(DiferențăBirou[[#Headers],[Feb]],Planif.Birou[#Headers],0))-INDEX(RealeBirou[],MATCH(INDEX(DiferențăBirou[],ROW()-ROW(DiferențăBirou[[#Headers],[Feb]]),1),INDEX(Planif.Birou[],,1),0),MATCH(DiferențăBirou[[#Headers],[Feb]],RealeBirou[#Headers],0))","v":{"v":58,"d":"58.00 lei"}},{"$f":"INDEX(Planif.Birou[],MATCH(INDEX(DiferențăBirou[],ROW()-ROW(DiferențăBirou[[#Headers],[Mar]]),1),INDEX(Planif.Birou[],,1),0),MATCH(DiferențăBirou[[#Headers],[Mar]],Planif.Birou[#Headers],0))-INDEX(RealeBirou[],MATCH(INDEX(DiferențăBirou[],ROW()-ROW(DiferențăBirou[[#Headers],[Mar]]),1),INDEX(Planif.Birou[],,1),0),MATCH(DiferențăBirou[[#Headers],[Mar]],RealeBirou[#Headers],0))","v":{"v":40,"d":"40.00 lei"}},{"$f":"INDEX(Planif.Birou[],MATCH(INDEX(DiferențăBirou[],ROW()-ROW(DiferențăBirou[[#Headers],[Apr]]),1),INDEX(Planif.Birou[],,1),0),MATCH(DiferențăBirou[[#Headers],[Apr]],Planif.Birou[#Headers],0))-INDEX(RealeBirou[],MATCH(INDEX(DiferențăBirou[],ROW()-ROW(DiferențăBirou[[#Headers],[Apr]]),1),INDEX(Planif.Birou[],,1),0),MATCH(DiferențăBirou[[#Headers],[Apr]],RealeBirou[#Headers],0))","v":{"v":-21,"d":"-21.00 lei"}},{"$f":"INDEX(Planif.Birou[],MATCH(INDEX(DiferențăBirou[],ROW()-ROW(DiferențăBirou[[#Headers],[Mai]]),1),INDEX(Planif.Birou[],,1),0),MATCH(DiferențăBirou[[#Headers],[Mai]],Planif.Birou[#Headers],0))-INDEX(RealeBirou[],MATCH(INDEX(DiferențăBirou[],ROW()-ROW(DiferențăBirou[[#Headers],[Mai]]),1),INDEX(Planif.Birou[],,1),0),MATCH(DiferențăBirou[[#Headers],[Mai]],RealeBirou[#Headers],0))","v":{"v":-56,"d":"-56.00 lei"}},{"$f":"INDEX(Planif.Birou[],MATCH(INDEX(DiferențăBirou[],ROW()-ROW(DiferențăBirou[[#Headers],[Iun]]),1),INDEX(Planif.Birou[],,1),0),MATCH(DiferențăBirou[[#Headers],[Iun]],Planif.Birou[#Headers],0))-INDEX(RealeBirou[],MATCH(INDEX(DiferențăBirou[],ROW()-ROW(DiferențăBirou[[#Headers],[Iun]]),1),INDEX(Planif.Birou[],,1),0),MATCH(DiferențăBirou[[#Headers],[Iun]],RealeBirou[#Headers],0))","v":{"v":-40,"d":"-40.00 lei"}},{"$f":"INDEX(Planif.Birou[],MATCH(INDEX(DiferențăBirou[],ROW()-ROW(DiferențăBirou[[#Headers],[Iul]]),1),INDEX(Planif.Birou[],,1),0),MATCH(DiferențăBirou[[#Headers],[Iul]],Planif.Birou[#Headers],0))-INDEX(RealeBirou[],MATCH(INDEX(DiferențăBirou[],ROW()-ROW(DiferențăBirou[[#Headers],[Iul]]),1),INDEX(Planif.Birou[],,1),0),MATCH(DiferențăBirou[[#Headers],[Iul]],RealeBirou[#Headers],0))","v":{"v":200,"d":"200.00 lei"}},{"$f":"INDEX(Planif.Birou[],MATCH(INDEX(DiferențăBirou[],ROW()-ROW(DiferențăBirou[[#Headers],[Aug]]),1),INDEX(Planif.Birou[],,1),0),MATCH(DiferențăBirou[[#Headers],[Aug]],Planif.Birou[#Headers],0))-INDEX(RealeBirou[],MATCH(INDEX(DiferențăBirou[],ROW()-ROW(DiferențăBirou[[#Headers],[Aug]]),1),INDEX(Planif.Birou[],,1),0),MATCH(DiferențăBirou[[#Headers],[Aug]],RealeBirou[#Headers],0))","v":{"v":200,"d":"200.00 lei"}},{"$f":"INDEX(Planif.Birou[],MATCH(INDEX(DiferențăBirou[],ROW()-ROW(DiferențăBirou[[#Headers],[Sep]]),1),INDEX(Planif.Birou[],,1),0),MATCH(DiferențăBirou[[#Headers],[Sep]],Planif.Birou[#Headers],0))-INDEX(RealeBirou[],MATCH(INDEX(DiferențăBirou[],ROW()-ROW(DiferențăBirou[[#Headers],[Sep]]),1),INDEX(Planif.Birou[],,1),0),MATCH(DiferențăBirou[[#Headers],[Sep]],RealeBirou[#Headers],0))","v":{"v":200,"d":"200.00 lei"}},{"$f":"INDEX(Planif.Birou[],MATCH(INDEX(DiferențăBirou[],ROW()-ROW(DiferențăBirou[[#Headers],[Oct]]),1),INDEX(Planif.Birou[],,1),0),MATCH(DiferențăBirou[[#Headers],[Oct]],Planif.Birou[#Headers],0))-INDEX(RealeBirou[],MATCH(INDEX(DiferențăBirou[],ROW()-ROW(DiferențăBirou[[#Headers],[Oct]]),1),INDEX(Planif.Birou[],,1),0),MATCH(DiferențăBirou[[#Headers],[Oct]],RealeBirou[#Headers],0))","v":{"v":200,"d":"200.00 lei"}},{"$f":"INDEX(Planif.Birou[],MATCH(INDEX(DiferențăBirou[],ROW()-ROW(DiferențăBirou[[#Headers],[Nov]]),1),INDEX(Planif.Birou[],,1),0),MATCH(DiferențăBirou[[#Headers],[Nov]],Planif.Birou[#Headers],0))-INDEX(RealeBirou[],MATCH(INDEX(DiferențăBirou[],ROW()-ROW(DiferențăBirou[[#Headers],[Nov]]),1),INDEX(Planif.Birou[],,1),0),MATCH(DiferențăBirou[[#Headers],[Nov]],RealeBirou[#Headers],0))","v":{"v":200,"d":"200.00 lei"}},{"$f":"INDEX(Planif.Birou[],MATCH(INDEX(DiferențăBirou[],ROW()-ROW(DiferențăBirou[[#Headers],[Dec]]),1),INDEX(Planif.Birou[],,1),0),MATCH(DiferențăBirou[[#Headers],[Dec]],Planif.Birou[#Headers],0))-INDEX(RealeBirou[],MATCH(INDEX(DiferențăBirou[],ROW()-ROW(DiferențăBirou[[#Headers],[Dec]]),1),INDEX(Planif.Birou[],,1),0),MATCH(DiferențăBirou[[#Headers],[Dec]],RealeBirou[#Headers],0))","v":{"v":200,"d":"200.00 lei"}},{"$f":"SUM(DiferențăBirou[[#This Row],[Ian]:[Dec]])","v":{"v":1125,"d":"1,125.00 lei"}}]
[null,"Securitate",{"$f":"INDEX(Planif.Birou[],MATCH(INDEX(DiferențăBirou[],ROW()-ROW(DiferențăBirou[[#Headers],[Ian]]),1),INDEX(Planif.Birou[],,1),0),MATCH(DiferențăBirou[[#Headers],[Ian]],Planif.Birou[#Headers],0))-INDEX(RealeBirou[],MATCH(INDEX(DiferențăBirou[],ROW()-ROW(DiferențăBirou[[#Headers],[Ian]]),1),INDEX(Planif.Birou[],,1),0),MATCH(DiferențăBirou[[#Headers],[Ian]],RealeBirou[#Headers],0))","v":{"v":0,"d":"0.00 lei"}},{"$f":"INDEX(Planif.Birou[],MATCH(INDEX(DiferențăBirou[],ROW()-ROW(DiferențăBirou[[#Headers],[Feb]]),1),INDEX(Planif.Birou[],,1),0),MATCH(DiferențăBirou[[#Headers],[Feb]],Planif.Birou[#Headers],0))-INDEX(RealeBirou[],MATCH(INDEX(DiferențăBirou[],ROW()-ROW(DiferențăBirou[[#Headers],[Feb]]),1),INDEX(Planif.Birou[],,1),0),MATCH(DiferențăBirou[[#Headers],[Feb]],RealeBirou[#Headers],0))","v":{"v":0,"d":"0.00 lei"}},{"$f":"INDEX(Planif.Birou[],MATCH(INDEX(DiferențăBirou[],ROW()-ROW(DiferențăBirou[[#Headers],[Mar]]),1),INDEX(Planif.Birou[],,1),0),MATCH(DiferențăBirou[[#Headers],[Mar]],Planif.Birou[#Headers],0))-INDEX(RealeBirou[],MATCH(INDEX(DiferențăBirou[],ROW()-ROW(DiferențăBirou[[#Headers],[Mar]]),1),INDEX(Planif.Birou[],,1),0),MATCH(DiferențăBirou[[#Headers],[Mar]],RealeBirou[#Headers],0))","v":{"v":0,"d":"0.00 lei"}},{"$f":"INDEX(Planif.Birou[],MATCH(INDEX(DiferențăBirou[],ROW()-ROW(DiferențăBirou[[#Headers],[Apr]]),1),INDEX(Planif.Birou[],,1),0),MATCH(DiferențăBirou[[#Headers],[Apr]],Planif.Birou[#Headers],0))-INDEX(RealeBirou[],MATCH(INDEX(DiferențăBirou[],ROW()-ROW(DiferențăBirou[[#Headers],[Apr]]),1),INDEX(Planif.Birou[],,1),0),MATCH(DiferențăBirou[[#Headers],[Apr]],RealeBirou[#Headers],0))","v":{"v":0,"d":"0.00 lei"}},{"$f":"INDEX(Planif.Birou[],MATCH(INDEX(DiferențăBirou[],ROW()-ROW(DiferențăBirou[[#Headers],[Mai]]),1),INDEX(Planif.Birou[],,1),0),MATCH(DiferențăBirou[[#Headers],[Mai]],Planif.Birou[#Headers],0))-INDEX(RealeBirou[],MATCH(INDEX(DiferențăBirou[],ROW()-ROW(DiferențăBirou[[#Headers],[Mai]]),1),INDEX(Planif.Birou[],,1),0),MATCH(DiferențăBirou[[#Headers],[Mai]],RealeBirou[#Headers],0))","v":{"v":0,"d":"0.00 lei"}},{"$f":"INDEX(Planif.Birou[],MATCH(INDEX(DiferențăBirou[],ROW()-ROW(DiferențăBirou[[#Headers],[Iun]]),1),INDEX(Planif.Birou[],,1),0),MATCH(DiferențăBirou[[#Headers],[Iun]],Planif.Birou[#Headers],0))-INDEX(RealeBirou[],MATCH(INDEX(DiferențăBirou[],ROW()-ROW(DiferențăBirou[[#Headers],[Iun]]),1),INDEX(Planif.Birou[],,1),0),MATCH(DiferențăBirou[[#Headers],[Iun]],RealeBirou[#Headers],0))","v":{"v":0,"d":"0.00 lei"}},{"$f":"INDEX(Planif.Birou[],MATCH(INDEX(DiferențăBirou[],ROW()-ROW(DiferențăBirou[[#Headers],[Iul]]),1),INDEX(Planif.Birou[],,1),0),MATCH(DiferențăBirou[[#Headers],[Iul]],Planif.Birou[#Headers],0))-INDEX(RealeBirou[],MATCH(INDEX(DiferențăBirou[],ROW()-ROW(DiferențăBirou[[#Headers],[Iul]]),1),INDEX(Planif.Birou[],,1),0),MATCH(DiferențăBirou[[#Headers],[Iul]],RealeBirou[#Headers],0))","v":{"v":600,"d":"600.00 lei"}},{"$f":"INDEX(Planif.Birou[],MATCH(INDEX(DiferențăBirou[],ROW()-ROW(DiferențăBirou[[#Headers],[Aug]]),1),INDEX(Planif.Birou[],,1),0),MATCH(DiferențăBirou[[#Headers],[Aug]],Planif.Birou[#Headers],0))-INDEX(RealeBirou[],MATCH(INDEX(DiferențăBirou[],ROW()-ROW(DiferențăBirou[[#Headers],[Aug]]),1),INDEX(Planif.Birou[],,1),0),MATCH(DiferențăBirou[[#Headers],[Aug]],RealeBirou[#Headers],0))","v":{"v":600,"d":"600.00 lei"}},{"$f":"INDEX(Planif.Birou[],MATCH(INDEX(DiferențăBirou[],ROW()-ROW(DiferențăBirou[[#Headers],[Sep]]),1),INDEX(Planif.Birou[],,1),0),MATCH(DiferențăBirou[[#Headers],[Sep]],Planif.Birou[#Headers],0))-INDEX(RealeBirou[],MATCH(INDEX(DiferențăBirou[],ROW()-ROW(DiferențăBirou[[#Headers],[Sep]]),1),INDEX(Planif.Birou[],,1),0),MATCH(DiferențăBirou[[#Headers],[Sep]],RealeBirou[#Headers],0))","v":{"v":600,"d":"600.00 lei"}},{"$f":"INDEX(Planif.Birou[],MATCH(INDEX(DiferențăBirou[],ROW()-ROW(DiferențăBirou[[#Headers],[Oct]]),1),INDEX(Planif.Birou[],,1),0),MATCH(DiferențăBirou[[#Headers],[Oct]],Planif.Birou[#Headers],0))-INDEX(RealeBirou[],MATCH(INDEX(DiferențăBirou[],ROW()-ROW(DiferențăBirou[[#Headers],[Oct]]),1),INDEX(Planif.Birou[],,1),0),MATCH(DiferențăBirou[[#Headers],[Oct]],RealeBirou[#Headers],0))","v":{"v":600,"d":"600.00 lei"}},{"$f":"INDEX(Planif.Birou[],MATCH(INDEX(DiferențăBirou[],ROW()-ROW(DiferențăBirou[[#Headers],[Nov]]),1),INDEX(Planif.Birou[],,1),0),MATCH(DiferențăBirou[[#Headers],[Nov]],Planif.Birou[#Headers],0))-INDEX(RealeBirou[],MATCH(INDEX(DiferențăBirou[],ROW()-ROW(DiferențăBirou[[#Headers],[Nov]]),1),INDEX(Planif.Birou[],,1),0),MATCH(DiferențăBirou[[#Headers],[Nov]],RealeBirou[#Headers],0))","v":{"v":600,"d":"600.00 lei"}},{"$f":"INDEX(Planif.Birou[],MATCH(INDEX(DiferențăBirou[],ROW()-ROW(DiferențăBirou[[#Headers],[Dec]]),1),INDEX(Planif.Birou[],,1),0),MATCH(DiferențăBirou[[#Headers],[Dec]],Planif.Birou[#Headers],0))-INDEX(RealeBirou[],MATCH(INDEX(DiferențăBirou[],ROW()-ROW(DiferențăBirou[[#Headers],[Dec]]),1),INDEX(Planif.Birou[],,1),0),MATCH(DiferențăBirou[[#Headers],[Dec]],RealeBirou[#Headers],0))","v":{"v":600,"d":"600.00 lei"}},{"$f":"SUM(DiferențăBirou[[#This Row],[Ian]:[Dec]])","v":{"v":3600,"d":"3,600.00 lei"}}]
[null,"Subtotal",{"$f":"SUBTOTAL(109,DiferențăBirou[Ian])","v":{"v":-17,"d":"-17.00 lei"}},{"$f":"SUBTOTAL(109,DiferențăBirou[Feb])","v":{"v":72,"d":"72.00 lei"}},{"$f":"SUBTOTAL(109,DiferențăBirou[Mar])","v":{"v":78,"d":"78.00 lei"}},{"$f":"SUBTOTAL(109,DiferențăBirou[Apr])","v":{"v":-141,"d":"-141.00 lei"}},{"$f":"SUBTOTAL(109,DiferențăBirou[Mai])","v":{"v":-38,"d":"-38.00 lei"}},{"$f":"SUBTOTAL(109,DiferențăBirou[Iun])","v":{"v":16,"d":"16.00 lei"}},{"$f":"SUBTOTAL(109,DiferențăBirou[Iul])","v":{"v":11470,"d":"11,470.00 lei"}},{"$f":"SUBTOTAL(109,DiferențăBirou[Aug])","v":{"v":11470,"d":"11,470.00 lei"}},{"$f":"SUBTOTAL(109,DiferențăBirou[Sep])","v":{"v":11470,"d":"11,470.00 lei"}},{"$f":"SUBTOTAL(109,DiferențăBirou[Oct])","v":{"v":11470,"d":"11,470.00 lei"}},{"$f":"SUBTOTAL(109,DiferențăBirou[Nov])","v":{"v":11770,"d":"11,770.00 lei"}},{"$f":"SUBTOTAL(109,DiferențăBirou[Dec])","v":{"v":11770,"d":"11,770.00 lei"}},{"$f":"SUBTOTAL(109,DiferențăBirou[AN])","v":{"v":69390,"d":"69,390.00 lei"}}]
[]
[null,"Costuri de marketing","Ian","Feb","Mar","Apr","Mai","Iun","Iul","Aug","Sep","Oct","Nov","Dec","AN"]
[null,"Găzduire site web",{"$f":"INDEX(Planif.Marketing[],MATCH(INDEX(DiferențăMarketing[],ROW()-ROW(DiferențăMarketing[[#Headers],[Ian]]),1),INDEX(Planif.Marketing[],,1),0),MATCH(DiferențăMarketing[[#Headers],[Ian]],Planif.Marketing[#Headers],0))-INDEX(RealeMarketing[],MATCH(INDEX(DiferențăMarketing[],ROW()-ROW(DiferențăMarketing[[#Headers],[Ian]]),1),INDEX(Planif.Marketing[],,1),0),MATCH(DiferențăMarketing[[#Headers],[Ian]],RealeMarketing[#Headers],0))","v":{"v":0,"d":"0.00 lei"}},{"$f":"INDEX(Planif.Marketing[],MATCH(INDEX(DiferențăMarketing[],ROW()-ROW(DiferențăMarketing[[#Headers],[Feb]]),1),INDEX(Planif.Marketing[],,1),0),MATCH(DiferențăMarketing[[#Headers],[Feb]],Planif.Marketing[#Headers],0))-INDEX(RealeMarketing[],MATCH(INDEX(DiferențăMarketing[],ROW()-ROW(DiferențăMarketing[[#Headers],[Feb]]),1),INDEX(Planif.Marketing[],,1),0),MATCH(DiferențăMarketing[[#Headers],[Feb]],RealeMarketing[#Headers],0))","v":{"v":0,"d":"0.00 lei"}},{"$f":"INDEX(Planif.Marketing[],MATCH(INDEX(DiferențăMarketing[],ROW()-ROW(DiferențăMarketing[[#Headers],[Mar]]),1),INDEX(Planif.Marketing[],,1),0),MATCH(DiferențăMarketing[[#Headers],[Mar]],Planif.Marketing[#Headers],0))-INDEX(RealeMarketing[],MATCH(INDEX(DiferențăMarketing[],ROW()-ROW(DiferențăMarketing[[#Headers],[Mar]]),1),INDEX(Planif.Marketing[],,1),0),MATCH(DiferențăMarketing[[#Headers],[Mar]],RealeMarketing[#Headers],0))","v":{"v":0,"d":"0.00 lei"}},{"$f":"INDEX(Planif.Marketing[],MATCH(INDEX(DiferențăMarketing[],ROW()-ROW(DiferențăMarketing[[#Headers],[Apr]]),1),INDEX(Planif.Marketing[],,1),0),MATCH(DiferențăMarketing[[#Headers],[Apr]],Planif.Marketing[#Headers],0))-INDEX(RealeMarketing[],MATCH(INDEX(DiferențăMarketing[],ROW()-ROW(DiferențăMarketing[[#Headers],[Apr]]),1),INDEX(Planif.Marketing[],,1),0),MATCH(DiferențăMarketing[[#Headers],[Apr]],RealeMarketing[#Headers],0))","v":{"v":0,"d":"0.00 lei"}},{"$f":"INDEX(Planif.Marketing[],MATCH(INDEX(DiferențăMarketing[],ROW()-ROW(DiferențăMarketing[[#Headers],[Mai]]),1),INDEX(Planif.Marketing[],,1),0),MATCH(DiferențăMarketing[[#Headers],[Mai]],Planif.Marketing[#Headers],0))-INDEX(RealeMarketing[],MATCH(INDEX(DiferențăMarketing[],ROW()-ROW(DiferențăMarketing[[#Headers],[Mai]]),1),INDEX(Planif.Marketing[],,1),0),MATCH(DiferențăMarketing[[#Headers],[Mai]],RealeMarketing[#Headers],0))","v":{"v":0,"d":"0.00 lei"}},{"$f":"INDEX(Planif.Marketing[],MATCH(INDEX(DiferențăMarketing[],ROW()-ROW(DiferențăMarketing[[#Headers],[Iun]]),1),INDEX(Planif.Marketing[],,1),0),MATCH(DiferențăMarketing[[#Headers],[Iun]],Planif.Marketing[#Headers],0))-INDEX(RealeMarketing[],MATCH(INDEX(DiferențăMarketing[],ROW()-ROW(DiferențăMarketing[[#Headers],[Iun]]),1),INDEX(Planif.Marketing[],,1),0),MATCH(DiferențăMarketing[[#Headers],[Iun]],RealeMarketing[#Headers],0))","v":{"v":0,"d":"0.00 lei"}},{"$f":"INDEX(Planif.Marketing[],MATCH(INDEX(DiferențăMarketing[],ROW()-ROW(DiferențăMarketing[[#Headers],[Iul]]),1),INDEX(Planif.Marketing[],,1),0),MATCH(DiferențăMarketing[[#Headers],[Iul]],Planif.Marketing[#Headers],0))-INDEX(RealeMarketing[],MATCH(INDEX(DiferențăMarketing[],ROW()-ROW(DiferențăMarketing[[#Headers],[Iul]]),1),INDEX(Planif.Marketing[],,1),0),MATCH(DiferențăMarketing[[#Headers],[Iul]],RealeMarketing[#Headers],0))","v":{"v":500,"d":"500.00 lei"}},{"$f":"INDEX(Planif.Marketing[],MATCH(INDEX(DiferențăMarketing[],ROW()-ROW(DiferențăMarketing[[#Headers],[Aug]]),1),INDEX(Planif.Marketing[],,1),0),MATCH(DiferențăMarketing[[#Headers],[Aug]],Planif.Marketing[#Headers],0))-INDEX(RealeMarketing[],MATCH(INDEX(DiferențăMarketing[],ROW()-ROW(DiferențăMarketing[[#Headers],[Aug]]),1),INDEX(Planif.Marketing[],,1),0),MATCH(DiferențăMarketing[[#Headers],[Aug]],RealeMarketing[#Headers],0))","v":{"v":500,"d":"500.00 lei"}},{"$f":"INDEX(Planif.Marketing[],MATCH(INDEX(DiferențăMarketing[],ROW()-ROW(DiferențăMarketing[[#Headers],[Sep]]),1),INDEX(Planif.Marketing[],,1),0),MATCH(DiferențăMarketing[[#Headers],[Sep]],Planif.Marketing[#Headers],0))-INDEX(RealeMarketing[],MATCH(INDEX(DiferențăMarketing[],ROW()-ROW(DiferențăMarketing[[#Headers],[Sep]]),1),INDEX(Planif.Marketing[],,1),0),MATCH(DiferențăMarketing[[#Headers],[Sep]],RealeMarketing[#Headers],0))","v":{"v":500,"d":"500.00 lei"}},{"$f":"INDEX(Planif.Marketing[],MATCH(INDEX(DiferențăMarketing[],ROW()-ROW(DiferențăMarketing[[#Headers],[Oct]]),1),INDEX(Planif.Marketing[],,1),0),MATCH(DiferențăMarketing[[#Headers],[Oct]],Planif.Marketing[#Headers],0))-INDEX(RealeMarketing[],MATCH(INDEX(DiferențăMarketing[],ROW()-ROW(DiferențăMarketing[[#Headers],[Oct]]),1),INDEX(Planif.Marketing[],,1),0),MATCH(DiferențăMarketing[[#Headers],[Oct]],RealeMarketing[#Headers],0))","v":{"v":500,"d":"500.00 lei"}},{"$f":"INDEX(Planif.Marketing[],MATCH(INDEX(DiferențăMarketing[],ROW()-ROW(DiferențăMarketing[[#Headers],[Nov]]),1),INDEX(Planif.Marketing[],,1),0),MATCH(DiferențăMarketing[[#Headers],[Nov]],Planif.Marketing[#Headers],0))-INDEX(RealeMarketing[],MATCH(INDEX(DiferențăMarketing[],ROW()-ROW(DiferențăMarketing[[#Headers],[Nov]]),1),INDEX(Planif.Marketing[],,1),0),MATCH(DiferențăMarketing[[#Headers],[Nov]],RealeMarketing[#Headers],0))","v":{"v":500,"d":"500.00 lei"}},{"$f":"INDEX(Planif.Marketing[],MATCH(INDEX(DiferențăMarketing[],ROW()-ROW(DiferențăMarketing[[#Headers],[Dec]]),1),INDEX(Planif.Marketing[],,1),0),MATCH(DiferențăMarketing[[#Headers],[Dec]],Planif.Marketing[#Headers],0))-INDEX(RealeMarketing[],MATCH(INDEX(DiferențăMarketing[],ROW()-ROW(DiferențăMarketing[[#Headers],[Dec]]),1),INDEX(Planif.Marketing[],,1),0),MATCH(DiferențăMarketing[[#Headers],[Dec]],RealeMarketing[#Headers],0))","v":{"v":500,"d":"500.00 lei"}},{"$f":"SUM(DiferențăMarketing[[#This Row],[Ian]:[Dec]])","v":{"v":3000,"d":"3,000.00 lei"}}]
[null,"Actualizări site web",{"$f":"INDEX(Planif.Marketing[],MATCH(INDEX(DiferențăMarketing[],ROW()-ROW(DiferențăMarketing[[#Headers],[Ian]]),1),INDEX(Planif.Marketing[],,1),0),MATCH(DiferențăMarketing[[#Headers],[Ian]],Planif.Marketing[#Headers],0))-INDEX(RealeMarketing[],MATCH(INDEX(DiferențăMarketing[],ROW()-ROW(DiferențăMarketing[[#Headers],[Ian]]),1),INDEX(Planif.Marketing[],,1),0),MATCH(DiferențăMarketing[[#Headers],[Ian]],RealeMarketing[#Headers],0))","v":{"v":0,"d":"0.00 lei"}},{"$f":"INDEX(Planif.Marketing[],MATCH(INDEX(DiferențăMarketing[],ROW()-ROW(DiferențăMarketing[[#Headers],[Feb]]),1),INDEX(Planif.Marketing[],,1),0),MATCH(DiferențăMarketing[[#Headers],[Feb]],Planif.Marketing[#Headers],0))-INDEX(RealeMarketing[],MATCH(INDEX(DiferențăMarketing[],ROW()-ROW(DiferențăMarketing[[#Headers],[Feb]]),1),INDEX(Planif.Marketing[],,1),0),MATCH(DiferențăMarketing[[#Headers],[Feb]],RealeMarketing[#Headers],0))","v":{"v":0,"d":"0.00 lei"}},{"$f":"INDEX(Planif.Marketing[],MATCH(INDEX(DiferențăMarketing[],ROW()-ROW(DiferențăMarketing[[#Headers],[Mar]]),1),INDEX(Planif.Marketing[],,1),0),MATCH(DiferențăMarketing[[#Headers],[Mar]],Planif.Marketing[#Headers],0))-INDEX(RealeMarketing[],MATCH(INDEX(DiferențăMarketing[],ROW()-ROW(DiferențăMarketing[[#Headers],[Mar]]),1),INDEX(Planif.Marketing[],,1),0),MATCH(DiferențăMarketing[[#Headers],[Mar]],RealeMarketing[#Headers],0))","v":{"v":0,"d":"0.00 lei"}},{"$f":"INDEX(Planif.Marketing[],MATCH(INDEX(DiferențăMarketing[],ROW()-ROW(DiferențăMarketing[[#Headers],[Apr]]),1),INDEX(Planif.Marketing[],,1),0),MATCH(DiferențăMarketing[[#Headers],[Apr]],Planif.Marketing[#Headers],0))-INDEX(RealeMarketing[],MATCH(INDEX(DiferențăMarketing[],ROW()-ROW(DiferențăMarketing[[#Headers],[Apr]]),1),INDEX(Planif.Marketing[],,1),0),MATCH(DiferențăMarketing[[#Headers],[Apr]],RealeMarketing[#Headers],0))","v":{"v":0,"d":"0.00 lei"}},{"$f":"INDEX(Planif.Marketing[],MATCH(INDEX(DiferențăMarketing[],ROW()-ROW(DiferențăMarketing[[#Headers],[Mai]]),1),INDEX(Planif.Marketing[],,1),0),MATCH(DiferențăMarketing[[#Headers],[Mai]],Planif.Marketing[#Headers],0))-INDEX(RealeMarketing[],MATCH(INDEX(DiferențăMarketing[],ROW()-ROW(DiferențăMarketing[[#Headers],[Mai]]),1),INDEX(Planif.Marketing[],,1),0),MATCH(DiferențăMarketing[[#Headers],[Mai]],RealeMarketing[#Headers],0))","v":{"v":0,"d":"0.00 lei"}},{"$f":"INDEX(Planif.Marketing[],MATCH(INDEX(DiferențăMarketing[],ROW()-ROW(DiferențăMarketing[[#Headers],[Iun]]),1),INDEX(Planif.Marketing[],,1),0),MATCH(DiferențăMarketing[[#Headers],[Iun]],Planif.Marketing[#Headers],0))-INDEX(RealeMarketing[],MATCH(INDEX(DiferențăMarketing[],ROW()-ROW(DiferențăMarketing[[#Headers],[Iun]]),1),INDEX(Planif.Marketing[],,1),0),MATCH(DiferențăMarketing[[#Headers],[Iun]],RealeMarketing[#Headers],0))","v":{"v":-500,"d":"-500.00 lei"}},{"$f":"INDEX(Planif.Marketing[],MATCH(INDEX(DiferențăMarketing[],ROW()-ROW(DiferențăMarketing[[#Headers],[Iul]]),1),INDEX(Planif.Marketing[],,1),0),MATCH(DiferențăMarketing[[#Headers],[Iul]],Planif.Marketing[#Headers],0))-INDEX(RealeMarketing[],MATCH(INDEX(DiferențăMarketing[],ROW()-ROW(DiferențăMarketing[[#Headers],[Iul]]),1),INDEX(Planif.Marketing[],,1),0),MATCH(DiferențăMarketing[[#Headers],[Iul]],RealeMarketing[#Headers],0))","v":{"v":200,"d":"200.00 lei"}},{"$f":"INDEX(Planif.Marketing[],MATCH(INDEX(DiferențăMarketing[],ROW()-ROW(DiferențăMarketing[[#Headers],[Aug]]),1),INDEX(Planif.Marketing[],,1),0),MATCH(DiferențăMarketing[[#Headers],[Aug]],Planif.Marketing[#Headers],0))-INDEX(RealeMarketing[],MATCH(INDEX(DiferențăMarketing[],ROW()-ROW(DiferențăMarketing[[#Headers],[Aug]]),1),INDEX(Planif.Marketing[],,1),0),MATCH(DiferențăMarketing[[#Headers],[Aug]],RealeMarketing[#Headers],0))","v":{"v":200,"d":"200.00 lei"}},{"$f":"INDEX(Planif.Marketing[],MATCH(INDEX(DiferențăMarketing[],ROW()-ROW(DiferențăMarketing[[#Headers],[Sep]]),1),INDEX(Planif.Marketing[],,1),0),MATCH(DiferențăMarketing[[#Headers],[Sep]],Planif.Marketing[#Headers],0))-INDEX(RealeMarketing[],MATCH(INDEX(DiferențăMarketing[],ROW()-ROW(DiferențăMarketing[[#Headers],[Sep]]),1),INDEX(Planif.Marketing[],,1),0),MATCH(DiferențăMarketing[[#Headers],[Sep]],RealeMarketing[#Headers],0))","v":{"v":200,"d":"200.00 lei"}},{"$f":"INDEX(Planif.Marketing[],MATCH(INDEX(DiferențăMarketing[],ROW()-ROW(DiferențăMarketing[[#Headers],[Oct]]),1),INDEX(Planif.Marketing[],,1),0),MATCH(DiferențăMarketing[[#Headers],[Oct]],Planif.Marketing[#Headers],0))-INDEX(RealeMarketing[],MATCH(INDEX(DiferențăMarketing[],ROW()-ROW(DiferențăMarketing[[#Headers],[Oct]]),1),INDEX(Planif.Marketing[],,1),0),MATCH(DiferențăMarketing[[#Headers],[Oct]],RealeMarketing[#Headers],0))","v":{"v":200,"d":"200.00 lei"}},{"$f":"INDEX(Planif.Marketing[],MATCH(INDEX(DiferențăMarketing[],ROW()-ROW(DiferențăMarketing[[#Headers],[Nov]]),1),INDEX(Planif.Marketing[],,1),0),MATCH(DiferențăMarketing[[#Headers],[Nov]],Planif.Marketing[#Headers],0))-INDEX(RealeMarketing[],MATCH(INDEX(DiferențăMarketing[],ROW()-ROW(DiferențăMarketing[[#Headers],[Nov]]),1),INDEX(Planif.Marketing[],,1),0),MATCH(DiferențăMarketing[[#Headers],[Nov]],RealeMarketing[#Headers],0))","v":{"v":200,"d":"200.00 lei"}},{"$f":"INDEX(Planif.Marketing[],MATCH(INDEX(DiferențăMarketing[],ROW()-ROW(DiferențăMarketing[[#Headers],[Dec]]),1),INDEX(Planif.Marketing[],,1),0),MATCH(DiferențăMarketing[[#Headers],[Dec]],Planif.Marketing[#Headers],0))-INDEX(RealeMarketing[],MATCH(INDEX(DiferențăMarketing[],ROW()-ROW(DiferențăMarketing[[#Headers],[Dec]]),1),INDEX(Planif.Marketing[],,1),0),MATCH(DiferențăMarketing[[#Headers],[Dec]],RealeMarketing[#Headers],0))","v":{"v":1000,"d":"1,000.00 lei"}},{"$f":"SUM(DiferențăMarketing[[#This Row],[Ian]:[Dec]])","v":{"v":1500,"d":"1,500.00 lei"}}]
[null,"Creare materiale publicitare",{"$f":"INDEX(Planif.Marketing[],MATCH(INDEX(DiferențăMarketing[],ROW()-ROW(DiferențăMarketing[[#Headers],[Ian]]),1),INDEX(Planif.Marketing[],,1),0),MATCH(DiferențăMarketing[[#Headers],[Ian]],Planif.Marketing[#Headers],0))-INDEX(RealeMarketing[],MATCH(INDEX(DiferențăMarketing[],ROW()-ROW(DiferențăMarketing[[#Headers],[Ian]]),1),INDEX(Planif.Marketing[],,1),0),MATCH(DiferențăMarketing[[#Headers],[Ian]],RealeMarketing[#Headers],0))","v":{"v":200,"d":"200.00 lei"}},{"$f":"INDEX(Planif.Marketing[],MATCH(INDEX(DiferențăMarketing[],ROW()-ROW(DiferențăMarketing[[#Headers],[Feb]]),1),INDEX(Planif.Marketing[],,1),0),MATCH(DiferențăMarketing[[#Headers],[Feb]],Planif.Marketing[#Headers],0))-INDEX(RealeMarketing[],MATCH(INDEX(DiferențăMarketing[],ROW()-ROW(DiferențăMarketing[[#Headers],[Feb]]),1),INDEX(Planif.Marketing[],,1),0),MATCH(DiferențăMarketing[[#Headers],[Feb]],RealeMarketing[#Headers],0))","v":{"v":0,"d":"0.00 lei"}},{"$f":"INDEX(Planif.Marketing[],MATCH(INDEX(DiferențăMarketing[],ROW()-ROW(DiferențăMarketing[[#Headers],[Mar]]),1),INDEX(Planif.Marketing[],,1),0),MATCH(DiferențăMarketing[[#Headers],[Mar]],Planif.Marketing[#Headers],0))-INDEX(RealeMarketing[],MATCH(INDEX(DiferențăMarketing[],ROW()-ROW(DiferențăMarketing[[#Headers],[Mar]]),1),INDEX(Planif.Marketing[],,1),0),MATCH(DiferențăMarketing[[#Headers],[Mar]],RealeMarketing[#Headers],0))","v":{"v":0,"d":"0.00 lei"}},{"$f":"INDEX(Planif.Marketing[],MATCH(INDEX(DiferențăMarketing[],ROW()-ROW(DiferențăMarketing[[#Headers],[Apr]]),1),INDEX(Planif.Marketing[],,1),0),MATCH(DiferențăMarketing[[#Headers],[Apr]],Planif.Marketing[#Headers],0))-INDEX(RealeMarketing[],MATCH(INDEX(DiferențăMarketing[],ROW()-ROW(DiferențăMarketing[[#Headers],[Apr]]),1),INDEX(Planif.Marketing[],,1),0),MATCH(DiferențăMarketing[[#Headers],[Apr]],RealeMarketing[#Headers],0))","v":{"v":-500,"d":"-500.00 lei"}},{"$f":"INDEX(Planif.Marketing[],MATCH(INDEX(DiferențăMarketing[],ROW()-ROW(DiferențăMarketing[[#Headers],[Mai]]),1),INDEX(Planif.Marketing[],,1),0),MATCH(DiferențăMarketing[[#Headers],[Mai]],Planif.Marketing[#Headers],0))-INDEX(RealeMarketing[],MATCH(INDEX(DiferențăMarketing[],ROW()-ROW(DiferențăMarketing[[#Headers],[Mai]]),1),INDEX(Planif.Marketing[],,1),0),MATCH(DiferențăMarketing[[#Headers],[Mai]],RealeMarketing[#Headers],0))","v":{"v":0,"d":"0.00 lei"}},{"$f":"INDEX(Planif.Marketing[],MATCH(INDEX(DiferențăMarketing[],ROW()-ROW(DiferențăMarketing[[#Headers],[Iun]]),1),INDEX(Planif.Marketing[],,1),0),MATCH(DiferențăMarketing[[#Headers],[Iun]],Planif.Marketing[#Headers],0))-INDEX(RealeMarketing[],MATCH(INDEX(DiferențăMarketing[],ROW()-ROW(DiferențăMarketing[[#Headers],[Iun]]),1),INDEX(Planif.Marketing[],,1),0),MATCH(DiferențăMarketing[[#Headers],[Iun]],RealeMarketing[#Headers],0))","v":{"v":0,"d":"0.00 lei"}},{"$f":"INDEX(Planif.Marketing[],MATCH(INDEX(DiferențăMarketing[],ROW()-ROW(DiferențăMarketing[[#Headers],[Iul]]),1),INDEX(Planif.Marketing[],,1),0),MATCH(DiferențăMarketing[[#Headers],[Iul]],Planif.Marketing[#Headers],0))-INDEX(RealeMarketing[],MATCH(INDEX(DiferențăMarketing[],ROW()-ROW(DiferențăMarketing[[#Headers],[Iul]]),1),INDEX(Planif.Marketing[],,1),0),MATCH(DiferențăMarketing[[#Headers],[Iul]],RealeMarketing[#Headers],0))","v":{"v":5000,"d":"5,000.00 lei"}},{"$f":"INDEX(Planif.Marketing[],MATCH(INDEX(DiferențăMarketing[],ROW()-ROW(DiferențăMarketing[[#Headers],[Aug]]),1),INDEX(Planif.Marketing[],,1),0),MATCH(DiferențăMarketing[[#Headers],[Aug]],Planif.Marketing[#Headers],0))-INDEX(RealeMarketing[],MATCH(INDEX(DiferențăMarketing[],ROW()-ROW(DiferențăMarketing[[#Headers],[Aug]]),1),INDEX(Planif.Marketing[],,1),0),MATCH(DiferențăMarketing[[#Headers],[Aug]],RealeMarketing[#Headers],0))","v":{"v":0,"d":"0.00 lei"}},{"$f":"INDEX(Planif.Marketing[],MATCH(INDEX(DiferențăMarketing[],ROW()-ROW(DiferențăMarketing[[#Headers],[Sep]]),1),INDEX(Planif.Marketing[],,1),0),MATCH(DiferențăMarketing[[#Headers],[Sep]],Planif.Marketing[#Headers],0))-INDEX(RealeMarketing[],MATCH(INDEX(DiferențăMarketing[],ROW()-ROW(DiferențăMarketing[[#Headers],[Sep]]),1),INDEX(Planif.Marketing[],,1),0),MATCH(DiferențăMarketing[[#Headers],[Sep]],RealeMarketing[#Headers],0))","v":{"v":0,"d":"0.00 lei"}},{"$f":"INDEX(Planif.Marketing[],MATCH(INDEX(DiferențăMarketing[],ROW()-ROW(DiferențăMarketing[[#Headers],[Oct]]),1),INDEX(Planif.Marketing[],,1),0),MATCH(DiferențăMarketing[[#Headers],[Oct]],Planif.Marketing[#Headers],0))-INDEX(RealeMarketing[],MATCH(INDEX(DiferențăMarketing[],ROW()-ROW(DiferențăMarketing[[#Headers],[Oct]]),1),INDEX(Planif.Marketing[],,1),0),MATCH(DiferențăMarketing[[#Headers],[Oct]],RealeMarketing[#Headers],0))","v":{"v":5000,"d":"5,000.00 lei"}},{"$f":"INDEX(Planif.Marketing[],MATCH(INDEX(DiferențăMarketing[],ROW()-ROW(DiferențăMarketing[[#Headers],[Nov]]),1),INDEX(Planif.Marketing[],,1),0),MATCH(DiferențăMarketing[[#Headers],[Nov]],Planif.Marketing[#Headers],0))-INDEX(RealeMarketing[],MATCH(INDEX(DiferențăMarketing[],ROW()-ROW(DiferențăMarketing[[#Headers],[Nov]]),1),INDEX(Planif.Marketing[],,1),0),MATCH(DiferențăMarketing[[#Headers],[Nov]],RealeMarketing[#Headers],0))","v":{"v":0,"d":"0.00 lei"}},{"$f":"INDEX(Planif.Marketing[],MATCH(INDEX(DiferențăMarketing[],ROW()-ROW(DiferențăMarketing[[#Headers],[Dec]]),1),INDEX(Planif.Marketing[],,1),0),MATCH(DiferențăMarketing[[#Headers],[Dec]],Planif.Marketing[#Headers],0))-INDEX(RealeMarketing[],MATCH(INDEX(DiferențăMarketing[],ROW()-ROW(DiferențăMarketing[[#Headers],[Dec]]),1),INDEX(Planif.Marketing[],,1),0),MATCH(DiferențăMarketing[[#Headers],[Dec]],RealeMarketing[#Headers],0))","v":{"v":0,"d":"0.00 lei"}},{"$f":"SUM(DiferențăMarketing[[#This Row],[Ian]:[Dec]])","v":{"v":9700,"d":"9,700.00 lei"}}]
[null,"Imprimare materiale publicitare",{"$f":"INDEX(Planif.Marketing[],MATCH(INDEX(DiferențăMarketing[],ROW()-ROW(DiferențăMarketing[[#Headers],[Ian]]),1),INDEX(Planif.Marketing[],,1),0),MATCH(DiferențăMarketing[[#Headers],[Ian]],Planif.Marketing[#Headers],0))-INDEX(RealeMarketing[],MATCH(INDEX(DiferențăMarketing[],ROW()-ROW(DiferențăMarketing[[#Headers],[Ian]]),1),INDEX(Planif.Marketing[],,1),0),MATCH(DiferențăMarketing[[#Headers],[Ian]],RealeMarketing[#Headers],0))","v":{"v":100,"d":"100.00 lei"}},{"$f":"INDEX(Planif.Marketing[],MATCH(INDEX(DiferențăMarketing[],ROW()-ROW(DiferențăMarketing[[#Headers],[Feb]]),1),INDEX(Planif.Marketing[],,1),0),MATCH(DiferențăMarketing[[#Headers],[Feb]],Planif.Marketing[#Headers],0))-INDEX(RealeMarketing[],MATCH(INDEX(DiferențăMarketing[],ROW()-ROW(DiferențăMarketing[[#Headers],[Feb]]),1),INDEX(Planif.Marketing[],,1),0),MATCH(DiferențăMarketing[[#Headers],[Feb]],RealeMarketing[#Headers],0))","v":{"v":-300,"d":"-300.00 lei"}},{"$f":"INDEX(Planif.Marketing[],MATCH(INDEX(DiferențăMarketing[],ROW()-ROW(DiferențăMarketing[[#Headers],[Mar]]),1),INDEX(Planif.Marketing[],,1),0),MATCH(DiferențăMarketing[[#Headers],[Mar]],Planif.Marketing[#Headers],0))-INDEX(RealeMarketing[],MATCH(INDEX(DiferențăMarketing[],ROW()-ROW(DiferențăMarketing[[#Headers],[Mar]]),1),INDEX(Planif.Marketing[],,1),0),MATCH(DiferențăMarketing[[#Headers],[Mar]],RealeMarketing[#Headers],0))","v":{"v":100,"d":"100.00 lei"}},{"$f":"INDEX(Planif.Marketing[],MATCH(INDEX(DiferențăMarketing[],ROW()-ROW(DiferențăMarketing[[#Headers],[Apr]]),1),INDEX(Planif.Marketing[],,1),0),MATCH(DiferențăMarketing[[#Headers],[Apr]],Planif.Marketing[#Headers],0))-INDEX(RealeMarketing[],MATCH(INDEX(DiferențăMarketing[],ROW()-ROW(DiferențăMarketing[[#Headers],[Apr]]),1),INDEX(Planif.Marketing[],,1),0),MATCH(DiferențăMarketing[[#Headers],[Apr]],RealeMarketing[#Headers],0))","v":{"v":100,"d":"100.00 lei"}},{"$f":"INDEX(Planif.Marketing[],MATCH(INDEX(DiferențăMarketing[],ROW()-ROW(DiferențăMarketing[[#Headers],[Mai]]),1),INDEX(Planif.Marketing[],,1),0),MATCH(DiferențăMarketing[[#Headers],[Mai]],Planif.Marketing[#Headers],0))-INDEX(RealeMarketing[],MATCH(INDEX(DiferențăMarketing[],ROW()-ROW(DiferențăMarketing[[#Headers],[Mai]]),1),INDEX(Planif.Marketing[],,1),0),MATCH(DiferențăMarketing[[#Headers],[Mai]],RealeMarketing[#Headers],0))","v":{"v":-400,"d":"-400.00 lei"}},{"$f":"INDEX(Planif.Marketing[],MATCH(INDEX(DiferențăMarketing[],ROW()-ROW(DiferențăMarketing[[#Headers],[Iun]]),1),INDEX(Planif.Marketing[],,1),0),MATCH(DiferențăMarketing[[#Headers],[Iun]],Planif.Marketing[#Headers],0))-INDEX(RealeMarketing[],MATCH(INDEX(DiferențăMarketing[],ROW()-ROW(DiferențăMarketing[[#Headers],[Iun]]),1),INDEX(Planif.Marketing[],,1),0),MATCH(DiferențăMarketing[[#Headers],[Iun]],RealeMarketing[#Headers],0))","v":{"v":20,"d":"20.00 lei"}},{"$f":"INDEX(Planif.Marketing[],MATCH(INDEX(DiferențăMarketing[],ROW()-ROW(DiferențăMarketing[[#Headers],[Iul]]),1),INDEX(Planif.Marketing[],,1),0),MATCH(DiferențăMarketing[[#Headers],[Iul]],Planif.Marketing[#Headers],0))-INDEX(RealeMarketing[],MATCH(INDEX(DiferențăMarketing[],ROW()-ROW(DiferențăMarketing[[#Headers],[Iul]]),1),INDEX(Planif.Marketing[],,1),0),MATCH(DiferențăMarketing[[#Headers],[Iul]],RealeMarketing[#Headers],0))","v":{"v":200,"d":"200.00 lei"}},{"$f":"INDEX(Planif.Marketing[],MATCH(INDEX(DiferențăMarketing[],ROW()-ROW(DiferențăMarketing[[#Headers],[Aug]]),1),INDEX(Planif.Marketing[],,1),0),MATCH(DiferențăMarketing[[#Headers],[Aug]],Planif.Marketing[#Headers],0))-INDEX(RealeMarketing[],MATCH(INDEX(DiferențăMarketing[],ROW()-ROW(DiferențăMarketing[[#Headers],[Aug]]),1),INDEX(Planif.Marketing[],,1),0),MATCH(DiferențăMarketing[[#Headers],[Aug]],RealeMarketing[#Headers],0))","v":{"v":200,"d":"200.00 lei"}},{"$f":"INDEX(Planif.Marketing[],MATCH(INDEX(DiferențăMarketing[],ROW()-ROW(DiferențăMarketing[[#Headers],[Sep]]),1),INDEX(Planif.Marketing[],,1),0),MATCH(DiferențăMarketing[[#Headers],[Sep]],Planif.Marketing[#Headers],0))-INDEX(RealeMarketing[],MATCH(INDEX(DiferențăMarketing[],ROW()-ROW(DiferențăMarketing[[#Headers],[Sep]]),1),INDEX(Planif.Marketing[],,1),0),MATCH(DiferențăMarketing[[#Headers],[Sep]],RealeMarketing[#Headers],0))","v":{"v":200,"d":"200.00 lei"}},{"$f":"INDEX(Planif.Marketing[],MATCH(INDEX(DiferențăMarketing[],ROW()-ROW(DiferențăMarketing[[#Headers],[Oct]]),1),INDEX(Planif.Marketing[],,1),0),MATCH(DiferențăMarketing[[#Headers],[Oct]],Planif.Marketing[#Headers],0))-INDEX(RealeMarketing[],MATCH(INDEX(DiferențăMarketing[],ROW()-ROW(DiferențăMarketing[[#Headers],[Oct]]),1),INDEX(Planif.Marketing[],,1),0),MATCH(DiferențăMarketing[[#Headers],[Oct]],RealeMarketing[#Headers],0))","v":{"v":200,"d":"200.00 lei"}},{"$f":"INDEX(Planif.Marketing[],MATCH(INDEX(DiferențăMarketing[],ROW()-ROW(DiferențăMarketing[[#Headers],[Nov]]),1),INDEX(Planif.Marketing[],,1),0),MATCH(DiferențăMarketing[[#Headers],[Nov]],Planif.Marketing[#Headers],0))-INDEX(RealeMarketing[],MATCH(INDEX(DiferențăMarketing[],ROW()-ROW(DiferențăMarketing[[#Headers],[Nov]]),1),INDEX(Planif.Marketing[],,1),0),MATCH(DiferențăMarketing[[#Headers],[Nov]],RealeMarketing[#Headers],0))","v":{"v":200,"d":"200.00 lei"}},{"$f":"INDEX(Planif.Marketing[],MATCH(INDEX(DiferențăMarketing[],ROW()-ROW(DiferențăMarketing[[#Headers],[Dec]]),1),INDEX(Planif.Marketing[],,1),0),MATCH(DiferențăMarketing[[#Headers],[Dec]],Planif.Marketing[#Headers],0))-INDEX(RealeMarketing[],MATCH(INDEX(DiferențăMarketing[],ROW()-ROW(DiferențăMarketing[[#Headers],[Dec]]),1),INDEX(Planif.Marketing[],,1),0),MATCH(DiferențăMarketing[[#Headers],[Dec]],RealeMarketing[#Headers],0))","v":{"v":200,"d":"200.00 lei"}},{"$f":"SUM(DiferențăMarketing[[#This Row],[Ian]:[Dec]])","v":{"v":820,"d":"820.00 lei"}}]
[null,"Evenimente de marketing",{"$f":"INDEX(Planif.Marketing[],MATCH(INDEX(DiferențăMarketing[],ROW()-ROW(DiferențăMarketing[[#Headers],[Ian]]),1),INDEX(Planif.Marketing[],,1),0),MATCH(DiferențăMarketing[[#Headers],[Ian]],Planif.Marketing[#Headers],0))-INDEX(RealeMarketing[],MATCH(INDEX(DiferențăMarketing[],ROW()-ROW(DiferențăMarketing[[#Headers],[Ian]]),1),INDEX(Planif.Marketing[],,1),0),MATCH(DiferențăMarketing[[#Headers],[Ian]],RealeMarketing[#Headers],0))","v":{"v":200,"d":"200.00 lei"}},{"$f":"INDEX(Planif.Marketing[],MATCH(INDEX(DiferențăMarketing[],ROW()-ROW(DiferențăMarketing[[#Headers],[Feb]]),1),INDEX(Planif.Marketing[],,1),0),MATCH(DiferențăMarketing[[#Headers],[Feb]],Planif.Marketing[#Headers],0))-INDEX(RealeMarketing[],MATCH(INDEX(DiferențăMarketing[],ROW()-ROW(DiferențăMarketing[[#Headers],[Feb]]),1),INDEX(Planif.Marketing[],,1),0),MATCH(DiferențăMarketing[[#Headers],[Feb]],RealeMarketing[#Headers],0))","v":{"v":-200,"d":"-200.00 lei"}},{"$f":"INDEX(Planif.Marketing[],MATCH(INDEX(DiferențăMarketing[],ROW()-ROW(DiferențăMarketing[[#Headers],[Mar]]),1),INDEX(Planif.Marketing[],,1),0),MATCH(DiferențăMarketing[[#Headers],[Mar]],Planif.Marketing[#Headers],0))-INDEX(RealeMarketing[],MATCH(INDEX(DiferențăMarketing[],ROW()-ROW(DiferențăMarketing[[#Headers],[Mar]]),1),INDEX(Planif.Marketing[],,1),0),MATCH(DiferențăMarketing[[#Headers],[Mar]],RealeMarketing[#Headers],0))","v":{"v":-200,"d":"-200.00 lei"}},{"$f":"INDEX(Planif.Marketing[],MATCH(INDEX(DiferențăMarketing[],ROW()-ROW(DiferențăMarketing[[#Headers],[Apr]]),1),INDEX(Planif.Marketing[],,1),0),MATCH(DiferențăMarketing[[#Headers],[Apr]],Planif.Marketing[#Headers],0))-INDEX(RealeMarketing[],MATCH(INDEX(DiferențăMarketing[],ROW()-ROW(DiferențăMarketing[[#Headers],[Apr]]),1),INDEX(Planif.Marketing[],,1),0),MATCH(DiferențăMarketing[[#Headers],[Apr]],RealeMarketing[#Headers],0))","v":{"v":300,"d":"300.00 lei"}},{"$f":"INDEX(Planif.Marketing[],MATCH(INDEX(DiferențăMarketing[],ROW()-ROW(DiferențăMarketing[[#Headers],[Mai]]),1),INDEX(Planif.Marketing[],,1),0),MATCH(DiferențăMarketing[[#Headers],[Mai]],Planif.Marketing[#Headers],0))-INDEX(RealeMarketing[],MATCH(INDEX(DiferențăMarketing[],ROW()-ROW(DiferențăMarketing[[#Headers],[Mai]]),1),INDEX(Planif.Marketing[],,1),0),MATCH(DiferențăMarketing[[#Headers],[Mai]],RealeMarketing[#Headers],0))","v":{"v":500,"d":"500.00 lei"}},{"$f":"INDEX(Planif.Marketing[],MATCH(INDEX(DiferențăMarketing[],ROW()-ROW(DiferențăMarketing[[#Headers],[Iun]]),1),INDEX(Planif.Marketing[],,1),0),MATCH(DiferențăMarketing[[#Headers],[Iun]],Planif.Marketing[#Headers],0))-INDEX(RealeMarketing[],MATCH(INDEX(DiferențăMarketing[],ROW()-ROW(DiferențăMarketing[[#Headers],[Iun]]),1),INDEX(Planif.Marketing[],,1),0),MATCH(DiferențăMarketing[[#Headers],[Iun]],RealeMarketing[#Headers],0))","v":{"v":-300,"d":"-300.00 lei"}},{"$f":"INDEX(Planif.Marketing[],MATCH(INDEX(DiferențăMarketing[],ROW()-ROW(DiferențăMarketing[[#Headers],[Iul]]),1),INDEX(Planif.Marketing[],,1),0),MATCH(DiferențăMarketing[[#Headers],[Iul]],Planif.Marketing[#Headers],0))-INDEX(RealeMarketing[],MATCH(INDEX(DiferențăMarketing[],ROW()-ROW(DiferențăMarketing[[#Headers],[Iul]]),1),INDEX(Planif.Marketing[],,1),0),MATCH(DiferențăMarketing[[#Headers],[Iul]],RealeMarketing[#Headers],0))","v":{"v":2000,"d":"2,000.00 lei"}},{"$f":"INDEX(Planif.Marketing[],MATCH(INDEX(DiferențăMarketing[],ROW()-ROW(DiferențăMarketing[[#Headers],[Aug]]),1),INDEX(Planif.Marketing[],,1),0),MATCH(DiferențăMarketing[[#Headers],[Aug]],Planif.Marketing[#Headers],0))-INDEX(RealeMarketing[],MATCH(INDEX(DiferențăMarketing[],ROW()-ROW(DiferențăMarketing[[#Headers],[Aug]]),1),INDEX(Planif.Marketing[],,1),0),MATCH(DiferențăMarketing[[#Headers],[Aug]],RealeMarketing[#Headers],0))","v":{"v":5000,"d":"5,000.00 lei"}},{"$f":"INDEX(Planif.Marketing[],MATCH(INDEX(DiferențăMarketing[],ROW()-ROW(DiferențăMarketing[[#Headers],[Sep]]),1),INDEX(Planif.Marketing[],,1),0),MATCH(DiferențăMarketing[[#Headers],[Sep]],Planif.Marketing[#Headers],0))-INDEX(RealeMarketing[],MATCH(INDEX(DiferențăMarketing[],ROW()-ROW(DiferențăMarketing[[#Headers],[Sep]]),1),INDEX(Planif.Marketing[],,1),0),MATCH(DiferențăMarketing[[#Headers],[Sep]],RealeMarketing[#Headers],0))","v":{"v":2000,"d":"2,000.00 lei"}},{"$f":"INDEX(Planif.Marketing[],MATCH(INDEX(DiferențăMarketing[],ROW()-ROW(DiferențăMarketing[[#Headers],[Oct]]),1),INDEX(Planif.Marketing[],,1),0),MATCH(DiferențăMarketing[[#Headers],[Oct]],Planif.Marketing[#Headers],0))-INDEX(RealeMarketing[],MATCH(INDEX(DiferențăMarketing[],ROW()-ROW(DiferențăMarketing[[#Headers],[Oct]]),1),INDEX(Planif.Marketing[],,1),0),MATCH(DiferențăMarketing[[#Headers],[Oct]],RealeMarketing[#Headers],0))","v":{"v":2000,"d":"2,000.00 lei"}},{"$f":"INDEX(Planif.Marketing[],MATCH(INDEX(DiferențăMarketing[],ROW()-ROW(DiferențăMarketing[[#Headers],[Nov]]),1),INDEX(Planif.Marketing[],,1),0),MATCH(DiferențăMarketing[[#Headers],[Nov]],Planif.Marketing[#Headers],0))-INDEX(RealeMarketing[],MATCH(INDEX(DiferențăMarketing[],ROW()-ROW(DiferențăMarketing[[#Headers],[Nov]]),1),INDEX(Planif.Marketing[],,1),0),MATCH(DiferențăMarketing[[#Headers],[Nov]],RealeMarketing[#Headers],0))","v":{"v":2000,"d":"2,000.00 lei"}},{"$f":"INDEX(Planif.Marketing[],MATCH(INDEX(DiferențăMarketing[],ROW()-ROW(DiferențăMarketing[[#Headers],[Dec]]),1),INDEX(Planif.Marketing[],,1),0),MATCH(DiferențăMarketing[[#Headers],[Dec]],Planif.Marketing[#Headers],0))-INDEX(RealeMarketing[],MATCH(INDEX(DiferențăMarketing[],ROW()-ROW(DiferențăMarketing[[#Headers],[Dec]]),1),INDEX(Planif.Marketing[],,1),0),MATCH(DiferențăMarketing[[#Headers],[Dec]],RealeMarketing[#Headers],0))","v":{"v":5000,"d":"5,000.00 lei"}},{"$f":"SUM(DiferențăMarketing[[#This Row],[Ian]:[Dec]])","v":{"v":18300,"d":"18,300.00 lei"}}]
[null,"Cheltuieli diverse",{"$f":"INDEX(Planif.Marketing[],MATCH(INDEX(DiferențăMarketing[],ROW()-ROW(DiferențăMarketing[[#Headers],[Ian]]),1),INDEX(Planif.Marketing[],,1),0),MATCH(DiferențăMarketing[[#Headers],[Ian]],Planif.Marketing[#Headers],0))-INDEX(RealeMarketing[],MATCH(INDEX(DiferențăMarketing[],ROW()-ROW(DiferențăMarketing[[#Headers],[Ian]]),1),INDEX(Planif.Marketing[],,1),0),MATCH(DiferențăMarketing[[#Headers],[Ian]],RealeMarketing[#Headers],0))","v":{"v":55,"d":"55.00 lei"}},{"$f":"INDEX(Planif.Marketing[],MATCH(INDEX(DiferențăMarketing[],ROW()-ROW(DiferențăMarketing[[#Headers],[Feb]]),1),INDEX(Planif.Marketing[],,1),0),MATCH(DiferențăMarketing[[#Headers],[Feb]],Planif.Marketing[#Headers],0))-INDEX(RealeMarketing[],MATCH(INDEX(DiferențăMarketing[],ROW()-ROW(DiferențăMarketing[[#Headers],[Feb]]),1),INDEX(Planif.Marketing[],,1),0),MATCH(DiferențăMarketing[[#Headers],[Feb]],RealeMarketing[#Headers],0))","v":{"v":44,"d":"44.00 lei"}},{"$f":"INDEX(Planif.Marketing[],MATCH(INDEX(DiferențăMarketing[],ROW()-ROW(DiferențăMarketing[[#Headers],[Mar]]),1),INDEX(Planif.Marketing[],,1),0),MATCH(DiferențăMarketing[[#Headers],[Mar]],Planif.Marketing[#Headers],0))-INDEX(RealeMarketing[],MATCH(INDEX(DiferențăMarketing[],ROW()-ROW(DiferențăMarketing[[#Headers],[Mar]]),1),INDEX(Planif.Marketing[],,1),0),MATCH(DiferențăMarketing[[#Headers],[Mar]],RealeMarketing[#Headers],0))","v":{"v":77,"d":"77.00 lei"}},{"$f":"INDEX(Planif.Marketing[],MATCH(INDEX(DiferențăMarketing[],ROW()-ROW(DiferențăMarketing[[#Headers],[Apr]]),1),INDEX(Planif.Marketing[],,1),0),MATCH(DiferențăMarketing[[#Headers],[Apr]],Planif.Marketing[#Headers],0))-INDEX(RealeMarketing[],MATCH(INDEX(DiferențăMarketing[],ROW()-ROW(DiferențăMarketing[[#Headers],[Apr]]),1),INDEX(Planif.Marketing[],,1),0),MATCH(DiferențăMarketing[[#Headers],[Apr]],RealeMarketing[#Headers],0))","v":{"v":-23,"d":"-23.00 lei"}},{"$f":"INDEX(Planif.Marketing[],MATCH(INDEX(DiferențăMarketing[],ROW()-ROW(DiferențăMarketing[[#Headers],[Mai]]),1),INDEX(Planif.Marketing[],,1),0),MATCH(DiferențăMarketing[[#Headers],[Mai]],Planif.Marketing[#Headers],0))-INDEX(RealeMarketing[],MATCH(INDEX(DiferențăMarketing[],ROW()-ROW(DiferențăMarketing[[#Headers],[Mai]]),1),INDEX(Planif.Marketing[],,1),0),MATCH(DiferențăMarketing[[#Headers],[Mai]],RealeMarketing[#Headers],0))","v":{"v":13,"d":"13.00 lei"}},{"$f":"INDEX(Planif.Marketing[],MATCH(INDEX(DiferențăMarketing[],ROW()-ROW(DiferențăMarketing[[#Headers],[Iun]]),1),INDEX(Planif.Marketing[],,1),0),MATCH(DiferențăMarketing[[#Headers],[Iun]],Planif.Marketing[#Headers],0))-INDEX(RealeMarketing[],MATCH(INDEX(DiferențăMarketing[],ROW()-ROW(DiferențăMarketing[[#Headers],[Iun]]),1),INDEX(Planif.Marketing[],,1),0),MATCH(DiferențăMarketing[[#Headers],[Iun]],RealeMarketing[#Headers],0))","v":{"v":-45,"d":"-45.00 lei"}},{"$f":"INDEX(Planif.Marketing[],MATCH(INDEX(DiferențăMarketing[],ROW()-ROW(DiferențăMarketing[[#Headers],[Iul]]),1),INDEX(Planif.Marketing[],,1),0),MATCH(DiferențăMarketing[[#Headers],[Iul]],Planif.Marketing[#Headers],0))-INDEX(RealeMarketing[],MATCH(INDEX(DiferențăMarketing[],ROW()-ROW(DiferențăMarketing[[#Headers],[Iul]]),1),INDEX(Planif.Marketing[],,1),0),MATCH(DiferențăMarketing[[#Headers],[Iul]],RealeMarketing[#Headers],0))","v":{"v":200,"d":"200.00 lei"}},{"$f":"INDEX(Planif.Marketing[],MATCH(INDEX(DiferențăMarketing[],ROW()-ROW(DiferențăMarketing[[#Headers],[Aug]]),1),INDEX(Planif.Marketing[],,1),0),MATCH(DiferențăMarketing[[#Headers],[Aug]],Planif.Marketing[#Headers],0))-INDEX(RealeMarketing[],MATCH(INDEX(DiferențăMarketing[],ROW()-ROW(DiferențăMarketing[[#Headers],[Aug]]),1),INDEX(Planif.Marketing[],,1),0),MATCH(DiferențăMarketing[[#Headers],[Aug]],RealeMarketing[#Headers],0))","v":{"v":200,"d":"200.00 lei"}},{"$f":"INDEX(Planif.Marketing[],MATCH(INDEX(DiferențăMarketing[],ROW()-ROW(DiferențăMarketing[[#Headers],[Sep]]),1),INDEX(Planif.Marketing[],,1),0),MATCH(DiferențăMarketing[[#Headers],[Sep]],Planif.Marketing[#Headers],0))-INDEX(RealeMarketing[],MATCH(INDEX(DiferențăMarketing[],ROW()-ROW(DiferențăMarketing[[#Headers],[Sep]]),1),INDEX(Planif.Marketing[],,1),0),MATCH(DiferențăMarketing[[#Headers],[Sep]],RealeMarketing[#Headers],0))","v":{"v":200,"d":"200.00 lei"}},{"$f":"INDEX(Planif.Marketing[],MATCH(INDEX(DiferențăMarketing[],ROW()-ROW(DiferențăMarketing[[#Headers],[Oct]]),1),INDEX(Planif.Marketing[],,1),0),MATCH(DiferențăMarketing[[#Headers],[Oct]],Planif.Marketing[#Headers],0))-INDEX(RealeMarketing[],MATCH(INDEX(DiferențăMarketing[],ROW()-ROW(DiferențăMarketing[[#Headers],[Oct]]),1),INDEX(Planif.Marketing[],,1),0),MATCH(DiferențăMarketing[[#Headers],[Oct]],RealeMarketing[#Headers],0))","v":{"v":200,"d":"200.00 lei"}},{"$f":"INDEX(Planif.Marketing[],MATCH(INDEX(DiferențăMarketing[],ROW()-ROW(DiferențăMarketing[[#Headers],[Nov]]),1),INDEX(Planif.Marketing[],,1),0),MATCH(DiferențăMarketing[[#Headers],[Nov]],Planif.Marketing[#Headers],0))-INDEX(RealeMarketing[],MATCH(INDEX(DiferențăMarketing[],ROW()-ROW(DiferențăMarketing[[#Headers],[Nov]]),1),INDEX(Planif.Marketing[],,1),0),MATCH(DiferențăMarketing[[#Headers],[Nov]],RealeMarketing[#Headers],0))","v":{"v":200,"d":"200.00 lei"}},{"$f":"INDEX(Planif.Marketing[],MATCH(INDEX(DiferențăMarketing[],ROW()-ROW(DiferențăMarketing[[#Headers],[Dec]]),1),INDEX(Planif.Marketing[],,1),0),MATCH(DiferențăMarketing[[#Headers],[Dec]],Planif.Marketing[#Headers],0))-INDEX(RealeMarketing[],MATCH(INDEX(DiferențăMarketing[],ROW()-ROW(DiferențăMarketing[[#Headers],[Dec]]),1),INDEX(Planif.Marketing[],,1),0),MATCH(DiferențăMarketing[[#Headers],[Dec]],RealeMarketing[#Headers],0))","v":{"v":200,"d":"200.00 lei"}},{"$f":"SUM(DiferențăMarketing[[#This Row],[Ian]:[Dec]])","v":{"v":1321,"d":"1,321.00 lei"}}]
[null,"Subtotal",{"$f":"SUBTOTAL(109,DiferențăMarketing[Ian])","v":{"v":555,"d":"555.00 lei"}},{"$f":"SUBTOTAL(109,DiferențăMarketing[Feb])","v":{"v":-456,"d":"-456.00 lei"}},{"$f":"SUBTOTAL(109,DiferențăMarketing[Mar])","v":{"v":-23,"d":"-23.00 lei"}},{"$f":"SUBTOTAL(109,DiferențăMarketing[Apr])","v":{"v":-123,"d":"-123.00 lei"}},{"$f":"SUBTOTAL(109,DiferențăMarketing[Mai])","v":{"v":113,"d":"113.00 lei"}},{"$f":"SUBTOTAL(109,DiferențăMarketing[Iun])","v":{"v":-825,"d":"-825.00 lei"}},{"$f":"SUBTOTAL(109,DiferențăMarketing[Iul])","v":{"v":8100,"d":"8,100.00 lei"}},{"$f":"SUBTOTAL(109,DiferențăMarketing[Aug])","v":{"v":6100,"d":"6,100.00 lei"}},{"$f":"SUBTOTAL(109,DiferențăMarketing[Sep])","v":{"v":3100,"d":"3,100.00 lei"}},{"$f":"SUBTOTAL(109,DiferențăMarketing[Oct])","v":{"v":8100,"d":"8,100.00 lei"}},{"$f":"SUBTOTAL(109,DiferențăMarketing[Nov])","v":{"v":3100,"d":"3,100.00 lei"}},{"$f":"SUBTOTAL(109,DiferențăMarketing[Dec])","v":{"v":6900,"d":"6,900.00 lei"}},{"$f":"SUBTOTAL(109,DiferențăMarketing[AN])","v":{"v":34641,"d":"34,641.00 lei"}}]
[]
[null,"Instruire/deplasare","Ian","Feb","Mar","Apr","Mai","Iun","Iul","Aug","Sep","Oct","Nov","Dec","AN"]
[null,"Cursuri de instruire",{"$f":"INDEX(Planif.InstruireȘiDeplasare[],MATCH(INDEX(DiferențăInstruireȘiDeplasare[],ROW()-ROW(DiferențăInstruireȘiDeplasare[[#Headers],[Ian]]),1),INDEX(Planif.InstruireȘiDeplasare[],,1),0),MATCH(DiferențăInstruireȘiDeplasare[[#Headers],[Ian]],Planif.InstruireȘiDeplasare[#Headers],0))-INDEX(RealeInstruireȘiDeplasare[],MATCH(INDEX(DiferențăInstruireȘiDeplasare[],ROW()-ROW(DiferențăInstruireȘiDeplasare[[#Headers],[Ian]]),1),INDEX(Planif.InstruireȘiDeplasare[],,1),0),MATCH(DiferențăInstruireȘiDeplasare[[#Headers],[Ian]],RealeInstruireȘiDeplasare[#Headers],0))","v":{"v":400,"d":"400.00 lei"}},{"$f":"INDEX(Planif.InstruireȘiDeplasare[],MATCH(INDEX(DiferențăInstruireȘiDeplasare[],ROW()-ROW(DiferențăInstruireȘiDeplasare[[#Headers],[Feb]]),1),INDEX(Planif.InstruireȘiDeplasare[],,1),0),MATCH(DiferențăInstruireȘiDeplasare[[#Headers],[Feb]],Planif.InstruireȘiDeplasare[#Headers],0))-INDEX(RealeInstruireȘiDeplasare[],MATCH(INDEX(DiferențăInstruireȘiDeplasare[],ROW()-ROW(DiferențăInstruireȘiDeplasare[[#Headers],[Feb]]),1),INDEX(Planif.InstruireȘiDeplasare[],,1),0),MATCH(DiferențăInstruireȘiDeplasare[[#Headers],[Feb]],RealeInstruireȘiDeplasare[#Headers],0))","v":{"v":-400,"d":"-400.00 lei"}},{"$f":"INDEX(Planif.InstruireȘiDeplasare[],MATCH(INDEX(DiferențăInstruireȘiDeplasare[],ROW()-ROW(DiferențăInstruireȘiDeplasare[[#Headers],[Mar]]),1),INDEX(Planif.InstruireȘiDeplasare[],,1),0),MATCH(DiferențăInstruireȘiDeplasare[[#Headers],[Mar]],Planif.InstruireȘiDeplasare[#Headers],0))-INDEX(RealeInstruireȘiDeplasare[],MATCH(INDEX(DiferențăInstruireȘiDeplasare[],ROW()-ROW(DiferențăInstruireȘiDeplasare[[#Headers],[Mar]]),1),INDEX(Planif.InstruireȘiDeplasare[],,1),0),MATCH(DiferențăInstruireȘiDeplasare[[#Headers],[Mar]],RealeInstruireȘiDeplasare[#Headers],0))","v":{"v":600,"d":"600.00 lei"}},{"$f":"INDEX(Planif.InstruireȘiDeplasare[],MATCH(INDEX(DiferențăInstruireȘiDeplasare[],ROW()-ROW(DiferențăInstruireȘiDeplasare[[#Headers],[Apr]]),1),INDEX(Planif.InstruireȘiDeplasare[],,1),0),MATCH(DiferențăInstruireȘiDeplasare[[#Headers],[Apr]],Planif.InstruireȘiDeplasare[#Headers],0))-INDEX(RealeInstruireȘiDeplasare[],MATCH(INDEX(DiferențăInstruireȘiDeplasare[],ROW()-ROW(DiferențăInstruireȘiDeplasare[[#Headers],[Apr]]),1),INDEX(Planif.InstruireȘiDeplasare[],,1),0),MATCH(DiferențăInstruireȘiDeplasare[[#Headers],[Apr]],RealeInstruireȘiDeplasare[#Headers],0))","v":{"v":400,"d":"400.00 lei"}},{"$f":"INDEX(Planif.InstruireȘiDeplasare[],MATCH(INDEX(DiferențăInstruireȘiDeplasare[],ROW()-ROW(DiferențăInstruireȘiDeplasare[[#Headers],[Mai]]),1),INDEX(Planif.InstruireȘiDeplasare[],,1),0),MATCH(DiferențăInstruireȘiDeplasare[[#Headers],[Mai]],Planif.InstruireȘiDeplasare[#Headers],0))-INDEX(RealeInstruireȘiDeplasare[],MATCH(INDEX(DiferențăInstruireȘiDeplasare[],ROW()-ROW(DiferențăInstruireȘiDeplasare[[#Headers],[Mai]]),1),INDEX(Planif.InstruireȘiDeplasare[],,1),0),MATCH(DiferențăInstruireȘiDeplasare[[#Headers],[Mai]],RealeInstruireȘiDeplasare[#Headers],0))","v":{"v":800,"d":"800.00 lei"}},{"$f":"INDEX(Planif.InstruireȘiDeplasare[],MATCH(INDEX(DiferențăInstruireȘiDeplasare[],ROW()-ROW(DiferențăInstruireȘiDeplasare[[#Headers],[Iun]]),1),INDEX(Planif.InstruireȘiDeplasare[],,1),0),MATCH(DiferențăInstruireȘiDeplasare[[#Headers],[Iun]],Planif.InstruireȘiDeplasare[#Headers],0))-INDEX(RealeInstruireȘiDeplasare[],MATCH(INDEX(DiferențăInstruireȘiDeplasare[],ROW()-ROW(DiferențăInstruireȘiDeplasare[[#Headers],[Iun]]),1),INDEX(Planif.InstruireȘiDeplasare[],,1),0),MATCH(DiferențăInstruireȘiDeplasare[[#Headers],[Iun]],RealeInstruireȘiDeplasare[#Headers],0))","v":{"v":-800,"d":"-800.00 lei"}},{"$f":"INDEX(Planif.InstruireȘiDeplasare[],MATCH(INDEX(DiferențăInstruireȘiDeplasare[],ROW()-ROW(DiferențăInstruireȘiDeplasare[[#Headers],[Iul]]),1),INDEX(Planif.InstruireȘiDeplasare[],,1),0),MATCH(DiferențăInstruireȘiDeplasare[[#Headers],[Iul]],Planif.InstruireȘiDeplasare[#Headers],0))-INDEX(RealeInstruireȘiDeplasare[],MATCH(INDEX(DiferențăInstruireȘiDeplasare[],ROW()-ROW(DiferențăInstruireȘiDeplasare[[#Headers],[Iul]]),1),INDEX(Planif.InstruireȘiDeplasare[],,1),0),MATCH(DiferențăInstruireȘiDeplasare[[#Headers],[Iul]],RealeInstruireȘiDeplasare[#Headers],0))","v":{"v":2000,"d":"2,000.00 lei"}},{"$f":"INDEX(Planif.InstruireȘiDeplasare[],MATCH(INDEX(DiferențăInstruireȘiDeplasare[],ROW()-ROW(DiferențăInstruireȘiDeplasare[[#Headers],[Aug]]),1),INDEX(Planif.InstruireȘiDeplasare[],,1),0),MATCH(DiferențăInstruireȘiDeplasare[[#Headers],[Aug]],Planif.InstruireȘiDeplasare[#Headers],0))-INDEX(RealeInstruireȘiDeplasare[],MATCH(INDEX(DiferențăInstruireȘiDeplasare[],ROW()-ROW(DiferențăInstruireȘiDeplasare[[#Headers],[Aug]]),1),INDEX(Planif.InstruireȘiDeplasare[],,1),0),MATCH(DiferențăInstruireȘiDeplasare[[#Headers],[Aug]],RealeInstruireȘiDeplasare[#Headers],0))","v":{"v":2000,"d":"2,000.00 lei"}},{"$f":"INDEX(Planif.InstruireȘiDeplasare[],MATCH(INDEX(DiferențăInstruireȘiDeplasare[],ROW()-ROW(DiferențăInstruireȘiDeplasare[[#Headers],[Sep]]),1),INDEX(Planif.InstruireȘiDeplasare[],,1),0),MATCH(DiferențăInstruireȘiDeplasare[[#Headers],[Sep]],Planif.InstruireȘiDeplasare[#Headers],0))-INDEX(RealeInstruireȘiDeplasare[],MATCH(INDEX(DiferențăInstruireȘiDeplasare[],ROW()-ROW(DiferențăInstruireȘiDeplasare[[#Headers],[Sep]]),1),INDEX(Planif.InstruireȘiDeplasare[],,1),0),MATCH(DiferențăInstruireȘiDeplasare[[#Headers],[Sep]],RealeInstruireȘiDeplasare[#Headers],0))","v":{"v":2000,"d":"2,000.00 lei"}},{"$f":"INDEX(Planif.InstruireȘiDeplasare[],MATCH(INDEX(DiferențăInstruireȘiDeplasare[],ROW()-ROW(DiferențăInstruireȘiDeplasare[[#Headers],[Oct]]),1),INDEX(Planif.InstruireȘiDeplasare[],,1),0),MATCH(DiferențăInstruireȘiDeplasare[[#Headers],[Oct]],Planif.InstruireȘiDeplasare[#Headers],0))-INDEX(RealeInstruireȘiDeplasare[],MATCH(INDEX(DiferențăInstruireȘiDeplasare[],ROW()-ROW(DiferențăInstruireȘiDeplasare[[#Headers],[Oct]]),1),INDEX(Planif.InstruireȘiDeplasare[],,1),0),MATCH(DiferențăInstruireȘiDeplasare[[#Headers],[Oct]],RealeInstruireȘiDeplasare[#Headers],0))","v":{"v":2000,"d":"2,000.00 lei"}},{"$f":"INDEX(Planif.InstruireȘiDeplasare[],MATCH(INDEX(DiferențăInstruireȘiDeplasare[],ROW()-ROW(DiferențăInstruireȘiDeplasare[[#Headers],[Nov]]),1),INDEX(Planif.InstruireȘiDeplasare[],,1),0),MATCH(DiferențăInstruireȘiDeplasare[[#Headers],[Nov]],Planif.InstruireȘiDeplasare[#Headers],0))-INDEX(RealeInstruireȘiDeplasare[],MATCH(INDEX(DiferențăInstruireȘiDeplasare[],ROW()-ROW(DiferențăInstruireȘiDeplasare[[#Headers],[Nov]]),1),INDEX(Planif.InstruireȘiDeplasare[],,1),0),MATCH(DiferențăInstruireȘiDeplasare[[#Headers],[Nov]],RealeInstruireȘiDeplasare[#Headers],0))","v":{"v":2000,"d":"2,000.00 lei"}},{"$f":"INDEX(Planif.InstruireȘiDeplasare[],MATCH(INDEX(DiferențăInstruireȘiDeplasare[],ROW()-ROW(DiferențăInstruireȘiDeplasare[[#Headers],[Dec]]),1),INDEX(Planif.InstruireȘiDeplasare[],,1),0),MATCH(DiferențăInstruireȘiDeplasare[[#Headers],[Dec]],Planif.InstruireȘiDeplasare[#Headers],0))-INDEX(RealeInstruireȘiDeplasare[],MATCH(INDEX(DiferențăInstruireȘiDeplasare[],ROW()-ROW(DiferențăInstruireȘiDeplasare[[#Headers],[Dec]]),1),INDEX(Planif.InstruireȘiDeplasare[],,1),0),MATCH(DiferențăInstruireȘiDeplasare[[#Headers],[Dec]],RealeInstruireȘiDeplasare[#Headers],0))","v":{"v":2000,"d":"2,000.00 lei"}},{"$f":"SUM(DiferențăInstruireȘiDeplasare[[#This Row],[Ian]:[Dec]])","v":{"v":13000,"d":"13,000.00 lei"}}]
[null,"Costuri de deplasare în scopul instruirii",{"$f":"INDEX(Planif.InstruireȘiDeplasare[],MATCH(INDEX(DiferențăInstruireȘiDeplasare[],ROW()-ROW(DiferențăInstruireȘiDeplasare[[#Headers],[Ian]]),1),INDEX(Planif.InstruireȘiDeplasare[],,1),0),MATCH(DiferențăInstruireȘiDeplasare[[#Headers],[Ian]],Planif.InstruireȘiDeplasare[#Headers],0))-INDEX(RealeInstruireȘiDeplasare[],MATCH(INDEX(DiferențăInstruireȘiDeplasare[],ROW()-ROW(DiferențăInstruireȘiDeplasare[[#Headers],[Ian]]),1),INDEX(Planif.InstruireȘiDeplasare[],,1),0),MATCH(DiferențăInstruireȘiDeplasare[[#Headers],[Ian]],RealeInstruireȘiDeplasare[#Headers],0))","v":{"v":800,"d":"800.00 lei"}},{"$f":"INDEX(Planif.InstruireȘiDeplasare[],MATCH(INDEX(DiferențăInstruireȘiDeplasare[],ROW()-ROW(DiferențăInstruireȘiDeplasare[[#Headers],[Feb]]),1),INDEX(Planif.InstruireȘiDeplasare[],,1),0),MATCH(DiferențăInstruireȘiDeplasare[[#Headers],[Feb]],Planif.InstruireȘiDeplasare[#Headers],0))-INDEX(RealeInstruireȘiDeplasare[],MATCH(INDEX(DiferențăInstruireȘiDeplasare[],ROW()-ROW(DiferențăInstruireȘiDeplasare[[#Headers],[Feb]]),1),INDEX(Planif.InstruireȘiDeplasare[],,1),0),MATCH(DiferențăInstruireȘiDeplasare[[#Headers],[Feb]],RealeInstruireȘiDeplasare[#Headers],0))","v":{"v":-200,"d":"-200.00 lei"}},{"$f":"INDEX(Planif.InstruireȘiDeplasare[],MATCH(INDEX(DiferențăInstruireȘiDeplasare[],ROW()-ROW(DiferențăInstruireȘiDeplasare[[#Headers],[Mar]]),1),INDEX(Planif.InstruireȘiDeplasare[],,1),0),MATCH(DiferențăInstruireȘiDeplasare[[#Headers],[Mar]],Planif.InstruireȘiDeplasare[#Headers],0))-INDEX(RealeInstruireȘiDeplasare[],MATCH(INDEX(DiferențăInstruireȘiDeplasare[],ROW()-ROW(DiferențăInstruireȘiDeplasare[[#Headers],[Mar]]),1),INDEX(Planif.InstruireȘiDeplasare[],,1),0),MATCH(DiferențăInstruireȘiDeplasare[[#Headers],[Mar]],RealeInstruireȘiDeplasare[#Headers],0))","v":{"v":600,"d":"600.00 lei"}},{"$f":"INDEX(Planif.InstruireȘiDeplasare[],MATCH(INDEX(DiferențăInstruireȘiDeplasare[],ROW()-ROW(DiferențăInstruireȘiDeplasare[[#Headers],[Apr]]),1),INDEX(Planif.InstruireȘiDeplasare[],,1),0),MATCH(DiferențăInstruireȘiDeplasare[[#Headers],[Apr]],Planif.InstruireȘiDeplasare[#Headers],0))-INDEX(RealeInstruireȘiDeplasare[],MATCH(INDEX(DiferențăInstruireȘiDeplasare[],ROW()-ROW(DiferențăInstruireȘiDeplasare[[#Headers],[Apr]]),1),INDEX(Planif.InstruireȘiDeplasare[],,1),0),MATCH(DiferențăInstruireȘiDeplasare[[#Headers],[Apr]],RealeInstruireȘiDeplasare[#Headers],0))","v":{"v":800,"d":"800.00 lei"}},{"$f":"INDEX(Planif.InstruireȘiDeplasare[],MATCH(INDEX(DiferențăInstruireȘiDeplasare[],ROW()-ROW(DiferențăInstruireȘiDeplasare[[#Headers],[Mai]]),1),INDEX(Planif.InstruireȘiDeplasare[],,1),0),MATCH(DiferențăInstruireȘiDeplasare[[#Headers],[Mai]],Planif.InstruireȘiDeplasare[#Headers],0))-INDEX(RealeInstruireȘiDeplasare[],MATCH(INDEX(DiferențăInstruireȘiDeplasare[],ROW()-ROW(DiferențăInstruireȘiDeplasare[[#Headers],[Mai]]),1),INDEX(Planif.InstruireȘiDeplasare[],,1),0),MATCH(DiferențăInstruireȘiDeplasare[[#Headers],[Mai]],RealeInstruireȘiDeplasare[#Headers],0))","v":{"v":1200,"d":"1,200.00 lei"}},{"$f":"INDEX(Planif.InstruireȘiDeplasare[],MATCH(INDEX(DiferențăInstruireȘiDeplasare[],ROW()-ROW(DiferențăInstruireȘiDeplasare[[#Headers],[Iun]]),1),INDEX(Planif.InstruireȘiDeplasare[],,1),0),MATCH(DiferențăInstruireȘiDeplasare[[#Headers],[Iun]],Planif.InstruireȘiDeplasare[#Headers],0))-INDEX(RealeInstruireȘiDeplasare[],MATCH(INDEX(DiferențăInstruireȘiDeplasare[],ROW()-ROW(DiferențăInstruireȘiDeplasare[[#Headers],[Iun]]),1),INDEX(Planif.InstruireȘiDeplasare[],,1),0),MATCH(DiferențăInstruireȘiDeplasare[[#Headers],[Iun]],RealeInstruireȘiDeplasare[#Headers],0))","v":{"v":-1500,"d":"-1,500.00 lei"}},{"$f":"INDEX(Planif.InstruireȘiDeplasare[],MATCH(INDEX(DiferențăInstruireȘiDeplasare[],ROW()-ROW(DiferențăInstruireȘiDeplasare[[#Headers],[Iul]]),1),INDEX(Planif.InstruireȘiDeplasare[],,1),0),MATCH(DiferențăInstruireȘiDeplasare[[#Headers],[Iul]],Planif.InstruireȘiDeplasare[#Headers],0))-INDEX(RealeInstruireȘiDeplasare[],MATCH(INDEX(DiferențăInstruireȘiDeplasare[],ROW()-ROW(DiferențăInstruireȘiDeplasare[[#Headers],[Iul]]),1),INDEX(Planif.InstruireȘiDeplasare[],,1),0),MATCH(DiferențăInstruireȘiDeplasare[[#Headers],[Iul]],RealeInstruireȘiDeplasare[#Headers],0))","v":{"v":2000,"d":"2,000.00 lei"}},{"$f":"INDEX(Planif.InstruireȘiDeplasare[],MATCH(INDEX(DiferențăInstruireȘiDeplasare[],ROW()-ROW(DiferențăInstruireȘiDeplasare[[#Headers],[Aug]]),1),INDEX(Planif.InstruireȘiDeplasare[],,1),0),MATCH(DiferențăInstruireȘiDeplasare[[#Headers],[Aug]],Planif.InstruireȘiDeplasare[#Headers],0))-INDEX(RealeInstruireȘiDeplasare[],MATCH(INDEX(DiferențăInstruireȘiDeplasare[],ROW()-ROW(DiferențăInstruireȘiDeplasare[[#Headers],[Aug]]),1),INDEX(Planif.InstruireȘiDeplasare[],,1),0),MATCH(DiferențăInstruireȘiDeplasare[[#Headers],[Aug]],RealeInstruireȘiDeplasare[#Headers],0))","v":{"v":2000,"d":"2,000.00 lei"}},{"$f":"INDEX(Planif.InstruireȘiDeplasare[],MATCH(INDEX(DiferențăInstruireȘiDeplasare[],ROW()-ROW(DiferențăInstruireȘiDeplasare[[#Headers],[Sep]]),1),INDEX(Planif.InstruireȘiDeplasare[],,1),0),MATCH(DiferențăInstruireȘiDeplasare[[#Headers],[Sep]],Planif.InstruireȘiDeplasare[#Headers],0))-INDEX(RealeInstruireȘiDeplasare[],MATCH(INDEX(DiferențăInstruireȘiDeplasare[],ROW()-ROW(DiferențăInstruireȘiDeplasare[[#Headers],[Sep]]),1),INDEX(Planif.InstruireȘiDeplasare[],,1),0),MATCH(DiferențăInstruireȘiDeplasare[[#Headers],[Sep]],RealeInstruireȘiDeplasare[#Headers],0))","v":{"v":2000,"d":"2,000.00 lei"}},{"$f":"INDEX(Planif.InstruireȘiDeplasare[],MATCH(INDEX(DiferențăInstruireȘiDeplasare[],ROW()-ROW(DiferențăInstruireȘiDeplasare[[#Headers],[Oct]]),1),INDEX(Planif.InstruireȘiDeplasare[],,1),0),MATCH(DiferențăInstruireȘiDeplasare[[#Headers],[Oct]],Planif.InstruireȘiDeplasare[#Headers],0))-INDEX(RealeInstruireȘiDeplasare[],MATCH(INDEX(DiferențăInstruireȘiDeplasare[],ROW()-ROW(DiferențăInstruireȘiDeplasare[[#Headers],[Oct]]),1),INDEX(Planif.InstruireȘiDeplasare[],,1),0),MATCH(DiferențăInstruireȘiDeplasare[[#Headers],[Oct]],RealeInstruireȘiDeplasare[#Headers],0))","v":{"v":2000,"d":"2,000.00 lei"}},{"$f":"INDEX(Planif.InstruireȘiDeplasare[],MATCH(INDEX(DiferențăInstruireȘiDeplasare[],ROW()-ROW(DiferențăInstruireȘiDeplasare[[#Headers],[Nov]]),1),INDEX(Planif.InstruireȘiDeplasare[],,1),0),MATCH(DiferențăInstruireȘiDeplasare[[#Headers],[Nov]],Planif.InstruireȘiDeplasare[#Headers],0))-INDEX(RealeInstruireȘiDeplasare[],MATCH(INDEX(DiferențăInstruireȘiDeplasare[],ROW()-ROW(DiferențăInstruireȘiDeplasare[[#Headers],[Nov]]),1),INDEX(Planif.InstruireȘiDeplasare[],,1),0),MATCH(DiferențăInstruireȘiDeplasare[[#Headers],[Nov]],RealeInstruireȘiDeplasare[#Headers],0))","v":{"v":2000,"d":"2,000.00 lei"}},{"$f":"INDEX(Planif.InstruireȘiDeplasare[],MATCH(INDEX(DiferențăInstruireȘiDeplasare[],ROW()-ROW(DiferențăInstruireȘiDeplasare[[#Headers],[Dec]]),1),INDEX(Planif.InstruireȘiDeplasare[],,1),0),MATCH(DiferențăInstruireȘiDeplasare[[#Headers],[Dec]],Planif.InstruireȘiDeplasare[#Headers],0))-INDEX(RealeInstruireȘiDeplasare[],MATCH(INDEX(DiferențăInstruireȘiDeplasare[],ROW()-ROW(DiferențăInstruireȘiDeplasare[[#Headers],[Dec]]),1),INDEX(Planif.InstruireȘiDeplasare[],,1),0),MATCH(DiferențăInstruireȘiDeplasare[[#Headers],[Dec]],RealeInstruireȘiDeplasare[#Headers],0))","v":{"v":2000,"d":"2,000.00 lei"}},{"$f":"SUM(DiferențăInstruireȘiDeplasare[[#This Row],[Ian]:[Dec]])","v":{"v":13700,"d":"13,700.00 lei"}}]
[null,"Subtotal",{"$f":"SUBTOTAL(109,DiferențăInstruireȘiDeplasare[Ian])","v":{"v":1200,"d":"1,200.00 lei"}},{"$f":"SUBTOTAL(109,DiferențăInstruireȘiDeplasare[Feb])","v":{"v":-600,"d":"-600.00 lei"}},{"$f":"SUBTOTAL(109,DiferențăInstruireȘiDeplasare[Mar])","v":{"v":1200,"d":"1,200.00 lei"}},{"$f":"SUBTOTAL(109,DiferențăInstruireȘiDeplasare[Apr])","v":{"v":1200,"d":"1,200.00 lei"}},{"$f":"SUBTOTAL(109,DiferențăInstruireȘiDeplasare[Mai])","v":{"v":2000,"d":"2,000.00 lei"}},{"$f":"SUBTOTAL(109,DiferențăInstruireȘiDeplasare[Iun])","v":{"v":-2300,"d":"-2,300.00 lei"}},{"$f":"SUBTOTAL(109,DiferențăInstruireȘiDeplasare[Iul])","v":{"v":4000,"d":"4,000.00 lei"}},{"$f":"SUBTOTAL(109,DiferențăInstruireȘiDeplasare[Aug])","v":{"v":4000,"d":"4,000.00 lei"}},{"$f":"SUBTOTAL(109,DiferențăInstruireȘiDeplasare[Sep])","v":{"v":4000,"d":"4,000.00 lei"}},{"$f":"SUBTOTAL(109,DiferențăInstruireȘiDeplasare[Oct])","v":{"v":4000,"d":"4,000.00 lei"}},{"$f":"SUBTOTAL(109,DiferențăInstruireȘiDeplasare[Nov])","v":{"v":4000,"d":"4,000.00 lei"}},{"$f":"SUBTOTAL(109,DiferențăInstruireȘiDeplasare[Dec])","v":{"v":4000,"d":"4,000.00 lei"}},{"$f":"SUBTOTAL(109,DiferențăInstruireȘiDeplasare[AN])","v":{"v":26700,"d":"26,700.00 lei"}}]
[]
[null,"TOTALURI","Ian","Feb","Mar","Apr","Mai","Iun","Iul","Aug","Sep","Oct","Nov","Dec","An"]
[null,"Cheltuieli lunare reale",{"$f":"DiferențăInstruireȘiDeplasare[[#Totals],[Ian]]+DiferențăMarketing[[#Totals],[Ian]]+DiferențăBirou[[#Totals],[Ian]]+DiferențăAngajați[[#Totals],[Ian]]","v":{"v":1738,"d":"1,738.00 lei"}},{"$f":"DiferențăInstruireȘiDeplasare[[#Totals],[Feb]]+DiferențăMarketing[[#Totals],[Feb]]+DiferențăBirou[[#Totals],[Feb]]+DiferențăAngajați[[#Totals],[Feb]]","v":{"v":-984,"d":"-984.00 lei"}},{"$f":"DiferențăInstruireȘiDeplasare[[#Totals],[Mar]]+DiferențăMarketing[[#Totals],[Mar]]+DiferențăBirou[[#Totals],[Mar]]+DiferențăAngajați[[#Totals],[Mar]]","v":{"v":1255,"d":"1,255.00 lei"}},{"$f":"DiferențăInstruireȘiDeplasare[[#Totals],[Apr]]+DiferențăMarketing[[#Totals],[Apr]]+DiferențăBirou[[#Totals],[Apr]]+DiferențăAngajați[[#Totals],[Apr]]","v":{"v":301,"d":"301.00 lei"}},{"$f":"DiferențăInstruireȘiDeplasare[[#Totals],[Mai]]+DiferențăMarketing[[#Totals],[Mai]]+DiferențăBirou[[#Totals],[Mai]]+DiferențăAngajați[[#Totals],[Mai]]","v":{"v":1440,"d":"1,440.00 lei"}},{"$f":"DiferențăInstruireȘiDeplasare[[#Totals],[Iun]]+DiferențăMarketing[[#Totals],[Iun]]+DiferențăBirou[[#Totals],[Iun]]+DiferențăAngajați[[#Totals],[Iun]]","v":{"v":-3744,"d":"-3,744.00 lei"}},{"$f":"DiferențăInstruireȘiDeplasare[[#Totals],[Iul]]+DiferențăMarketing[[#Totals],[Iul]]+DiferențăBirou[[#Totals],[Iul]]+DiferențăAngajați[[#Totals],[Iul]]","v":{"v":134695,"d":"134,695.00 lei"}},{"$f":"DiferențăInstruireȘiDeplasare[[#Totals],[Aug]]+DiferențăMarketing[[#Totals],[Aug]]+DiferențăBirou[[#Totals],[Aug]]+DiferențăAngajați[[#Totals],[Aug]]","v":{"v":138918,"d":"138,918.00 lei"}},{"$f":"DiferențăInstruireȘiDeplasare[[#Totals],[Sep]]+DiferențăMarketing[[#Totals],[Sep]]+DiferențăBirou[[#Totals],[Sep]]+DiferențăAngajați[[#Totals],[Sep]]","v":{"v":135918,"d":"135,918.00 lei"}},{"$f":"DiferențăInstruireȘiDeplasare[[#Totals],[Oct]]+DiferențăMarketing[[#Totals],[Oct]]+DiferențăBirou[[#Totals],[Oct]]+DiferențăAngajați[[#Totals],[Oct]]","v":{"v":140918,"d":"140,918.00 lei"}},{"$f":"DiferențăInstruireȘiDeplasare[[#Totals],[Nov]]+DiferențăMarketing[[#Totals],[Nov]]+DiferențăBirou[[#Totals],[Nov]]+DiferențăAngajați[[#Totals],[Nov]]","v":{"v":136218,"d":"136,218.00 lei"}},{"$f":"DiferențăInstruireȘiDeplasare[[#Totals],[Dec]]+DiferențăMarketing[[#Totals],[Dec]]+DiferențăBirou[[#Totals],[Dec]]+DiferențăAngajați[[#Totals],[Dec]]","v":{"v":140018,"d":"140,018.00 lei"}},{"$f":"DiferențăInstruireȘiDeplasare[[#Totals],[AN]]+DiferențăMarketing[[#Totals],[AN]]+DiferențăBirou[[#Totals],[AN]]+DiferențăAngajați[[#Totals],[AN]]","v":{"v":826691,"d":"826,691.00 lei"}}]
[null,"TOTAL cheltuieli reale",{"$f":"SUM($C$36:C36)","v":{"v":1738,"d":"1,738.00 lei"}},{"$f":"SUM($C$36:D36)","v":{"v":754,"d":"754.00 lei"}},{"$f":"SUM($C$36:E36)","v":{"v":2009,"d":"2,009.00 lei"}},{"$f":"SUM($C$36:F36)","v":{"v":2310,"d":"2,310.00 lei"}},{"$f":"SUM($C$36:G36)","v":{"v":3750,"d":"3,750.00 lei"}},{"$f":"SUM($C$36:H36)","v":{"v":6,"d":"6.00 lei"}},{"$f":"SUM($C$36:I36)","v":{"v":134701,"d":"134,701.00 lei"}},{"$f":"SUM($C$36:J36)","v":{"v":273619,"d":"273,619.00 lei"}},{"$f":"SUM($C$36:K36)","v":{"v":409537,"d":"409,537.00 lei"}},{"$f":"SUM($C$36:L36)","v":{"v":550455,"d":"550,455.00 lei"}},{"$f":"SUM($C$36:M36)","v":{"v":686673,"d":"686,673.00 lei"}},{"$f":"SUM($C$36:N36)","v":{"v":826691,"d":"826,691.00 lei"}}]

{"sheet":"ANALIZA CHELTUIELILOR","index":4,"n_rows":10,"n_cols":16,"rows_kept":10,"merged":[[2,4,2,6],[11,1,11,5]]}
[{"$nulls":6}," ",{"$nulls":8}," "]
[null,{"$f":"'CHELTUIELI PLANIFICATE'!B2:D3","v":"Numele firmei"}]
[{"$nulls":4},{"$f":"titlu_foaie_de_lucru","v":"Estimări detaliate cheltuieli"}]
[]
[null,"Categorie de cheltuieli","Cheltuieli planificate","Cheltuieli reale","Varianța cheltuielilor","Procentajul de varianță"]
[null,"Costuri cu angajații",{"$f":"Planif.Angajați[[#Totals],[AN]]","v":{"v":1355090,"d":"1,355,090.00 lei"}},{"$f":"RealeAngajați[[#Totals],[AN]]","v":{"v":659130,"d":"659,130.00 lei"}},{"$f":"C6-D6","v":{"v":695960,"d":"695,960.00 lei"}},{"$f":"E6/C6","v":{"v":0.5135895032802249,"d":"51%"}}]
[null,{"$f":"'CHELTUIELI PLANIFICATE'!B10","v":"Costuri cu biroul"},{"$f":"Planif.Birou[[#Totals],[AN]]","v":{"v":138740,"d":"138,740.00 lei"}},{"$f":"RealeBirou[[#Totals],[AN]]","v":{"v":69350,"d":"69,350.00 lei"}},{"$f":"C7-D7","v":{"v":69390,"d":"69,390.00 lei"}},{"$f":"E7/C7","v":{"v":0.5001441545336601,"d":"50%"}}]
[null,{"$f":"'CHELTUIELI PLANIFICATE'!B21","v":"Costuri de marketing"},{"$f":"Planif.Marketing[[#Totals],[AN]]","v":{"v":67800,"d":"67,800.00 lei"}},{"$f":"RealeMarketing[[#Totals],[AN]]","v":{"v":33159,"d":"33,159.00 lei"}},{"$f":"C8-D8","v":{"v":34641,"d":"34,641.00 lei"}},{"$f":"E8/C8","v":{"v":0.510929203539823,"d":"51%"}}]
[null,{"$f":"'CHELTUIELI PLANIFICATE'!B30","v":"Instruire/deplasare"},{"$f":"Planif.InstruireȘiDeplasare[[#Totals],[AN]]","v":{"v":48000,"d":"48,000.00 lei"}},{"$f":"RealeInstruireȘiDeplasare[[#Totals],[AN]]","v":{"v":21300,"d":"21,300.00 lei"}},{"$f":"C9-D9","v":{"v":26700,"d":"26,700.00 lei"}},{"$f":"E9/C9","v":{"v":0.55625,"d":"56%"}}]
[null,{"$f":"'CHELTUIELI PLANIFICATE'!B35","v":"TOTALURI"},{"$f":"'CHELTUIELI PLANIFICATE'!O36","v":{"v":1609630,"d":"1,609,630.00 lei"}},{"$f":"'CHELTUIELI REALE'!O36","v":{"v":782939,"d":"782,939.00 lei"}},{"$f":"C10-D10","v":{"v":826691,"d":"826,691.00 lei"}},{"$f":"E10/C10","v":{"v":0.5135907009685455,"d":"51%"}}]